﻿Department Family,Entity,Date,Expense Type,Expense Area,Supplier,Transaction Number,Amount,Item Description
BEIS,UKRI - AHRC,01/04/2020,Non-staff travel and subsistance,GCRF - Programme Delivery,Unspecified,98729166,244.25,Non-staff travel and subsistance
BEIS,UKRI - AHRC,01/04/2020,T&S Overseas - Other Charges,International Development and Area Studies,Unspecified,98730806,85.46,T&S Overseas - Other Charges
BEIS,UKRI - AHRC,01/04/2020,T&S UK - Other Charges,Skills Strategy,Unspecified,98730807,24.99,T&S UK - Other Charges
BEIS,UKRI - AHRC,02/04/2020,Non-staff travel and subsistance,Operations,Unspecified,98731133,191.20,Non-staff travel and subsistance
BEIS,UKRI - AHRC,02/04/2020,Non-staff travel and subsistance,Funds for International Collaboration (FIC 20 US),Unspecified,98731134,1823.21,Non-staff travel and subsistance
BEIS,UKRI - AHRC,02/04/2020,T&S UK - Other Charges,Health and Environmental Humanities,Unspecified,98731256,182.99,T&S UK - Other Charges
BEIS,UKRI - AHRC,02/04/2020,T&S UK - Other Charges,Health and Environmental Humanities,Unspecified,98731257,155.97,T&S UK - Other Charges
BEIS,UKRI - AHRC,02/04/2020,T&S UK - Other Charges,Digital Arts and Humanities and Creative Industries,Unspecified,98731258,245.01,T&S UK - Other Charges
BEIS,UKRI - AHRC,02/04/2020,T&S UK - Other Charges,Strategy and Evidence,Unspecified,98731259,205.07,T&S UK - Other Charges
BEIS,UKRI - AHRC,02/04/2020,T&S UK - Vehicle Hire,Industrial Strategy Challenge Fund (ISCF) - Creative Clusters,Unspecified,98731260,64.44,T&S UK - Vehicle Hire
BEIS,UKRI - AHRC,02/04/2020,T&S UK - Other Charges,"History, Heritage, Languages and Literature",Unspecified,98731261,37.00,T&S UK - Other Charges
BEIS,UKRI - AHRC,03/04/2020,Advertising & Promotion,Public and Stakeholder Engagement,Steven Haywood T/A sghaywood photography,98730788,700.00,Advertising & Promotion
BEIS,UKRI - AHRC,03/04/2020,Advertising & Promotion,Public and Stakeholder Engagement,Steven Haywood T/A sghaywood photography,98730788,131.35,Advertising & Promotion
BEIS,UKRI - AHRC,03/04/2020,Non-staff travel and subsistance,Funds for International Collaboration (FIC 20 US),Unspecified,98731135,3269.00,Non-staff travel and subsistance
BEIS,UKRI - AHRC,03/04/2020,T&S UK - Other Charges,Operations,Unspecified,98731255,55.00,T&S UK - Other Charges
BEIS,UKRI - AHRC,03/04/2020,Non-staff travel and subsistance,Infrastruture Roadmap,Unspecified,98731541,238.50,Non-staff travel and subsistance
BEIS,UKRI - AHRC,03/04/2020,Non-staff travel and subsistance,Infrastruture Roadmap,Unspecified,98731542,223.65,Non-staff travel and subsistance
BEIS,UKRI - AHRC,03/04/2020,Non-staff travel and subsistance,Infrastruture Roadmap,Unspecified,98731543,28.20,Non-staff travel and subsistance
BEIS,UKRI - AHRC,03/04/2020,Non-staff travel and subsistance,Infrastruture Roadmap,Unspecified,98731544,33.50,Non-staff travel and subsistance
BEIS,UKRI - AHRC,03/04/2020,T&S UK - Other Charges,Operations,Unspecified,98731604,110.98,T&S UK - Other Charges
BEIS,UKRI - AHRC,03/04/2020,T&S UK - Other Charges,Skills Strategy,Unspecified,98731606,149.00,T&S UK - Other Charges
BEIS,UKRI - AHRC,03/04/2020,Conferences & Seminars,Public and Stakeholder Engagement,University of London,98732527,35000.00,Conferences & Seminars
BEIS,UKRI - AHRC,03/04/2020,Health & Safety (inc. Medicals & Opticians),HR,Swindon Occupational Medical Services Ltd,98732602,350.00,Health & Safety (inc. Medicals & Opticians)
BEIS,UKRI - AHRC,06/04/2020,Non-staff travel and subsistance,Operations,Unspecified,98731646,15.70,Non-staff travel and subsistance
BEIS,UKRI - AHRC,06/04/2020,Non-staff travel and subsistance,Operations,Unspecified,98731647,183.20,Non-staff travel and subsistance
BEIS,UKRI - AHRC,06/04/2020,Non-staff travel and subsistance,Operations,Unspecified,98731648,63.10,Non-staff travel and subsistance
BEIS,UKRI - AHRC,06/04/2020,Non-staff travel and subsistance,Operations,Unspecified,98731649,63.25,Non-staff travel and subsistance
BEIS,UKRI - AHRC,06/04/2020,Unspecified,Public and Stakeholder Engagement,Tamasine McCaig T/A Mighty Oaks Digital,98731825,1200.00,Legal & Professional Services
BEIS,UKRI - AHRC,06/04/2020,Non-staff travel and subsistance,Funds for International Collaboration (FIC 20 US),Unspecified,98732736,167.55,Non-staff travel and subsistance
BEIS,UKRI - AHRC,06/04/2020,Advertising & Promotion,Public and Stakeholder Engagement,Unspecified,98732837,3000.00,Advertising & Promotion
BEIS,UKRI - AHRC,06/04/2020,T&S UK - Other Charges,"History, Heritage, Languages and Literature",Unspecified,98733058,47.98,T&S UK - Other Charges
BEIS,UKRI - AHRC,06/04/2020,T&S UK - Other Charges,Operations,Unspecified,98733059,40.00,T&S UK - Other Charges
BEIS,UKRI - AHRC,06/04/2020,T&S UK - Other Charges,Operations,Unspecified,98733060,65.56,T&S UK - Other Charges
BEIS,UKRI - AHRC,06/04/2020,T&S UK - Other Charges,Operations,Unspecified,98733061,17.99,T&S UK - Other Charges
BEIS,UKRI - AHRC,06/04/2020,T&S UK - Other Charges,Operations,Unspecified,98733062,65.99,T&S UK - Other Charges
BEIS,UKRI - AHRC,06/04/2020,T&S UK - Public Transport,Operations,Unspecified,98733063,9.00,T&S UK - Public Transport
BEIS,UKRI - AHRC,07/04/2020,Staff Training,Corporate Services,MINDSET WESSEX LTD,98655012,200.00,Staff Training
BEIS,UKRI - AHRC,07/04/2020,Non-staff travel and subsistance,Operations,Unspecified,98734571,173.70,Non-staff travel and subsistance
BEIS,UKRI - AHRC,07/04/2020,Non-staff travel and subsistance,Operations,Unspecified,98734572,27.40,Non-staff travel and subsistance
BEIS,UKRI - AHRC,07/04/2020,Non-staff travel and subsistance,Operations,Unspecified,98734573,27.05,Non-staff travel and subsistance
BEIS,UKRI - AHRC,07/04/2020,Non-staff travel and subsistance,Operations,Unspecified,98734574,74.70,Non-staff travel and subsistance
BEIS,UKRI - AHRC,07/04/2020,Non-staff travel and subsistance,Operations,Unspecified,98734575,21.50,Non-staff travel and subsistance
BEIS,UKRI - AHRC,07/04/2020,Non-staff travel and subsistance,Operations,Unspecified,98734576,109.70,Non-staff travel and subsistance
BEIS,UKRI - AHRC,07/04/2020,Unspecified,Public and Stakeholder Engagement,E & P Design Ltd,98735023,1200.00,Legal & Professional Services
BEIS,UKRI - AHRC,07/04/2020,T&S UK - Parking Tolls Congestion Charges,SMT,Unspecified,98735337,6.60,T&S UK - Parking Tolls Congestion Charges
BEIS,UKRI - AHRC,07/04/2020,T&S UK - Public Transport,SMT,Unspecified,98735337,9.00,T&S UK - Public Transport
BEIS,UKRI - AHRC,07/04/2020,T&S UK - Public Transport,SMT,Unspecified,98735337,9.60,T&S UK - Public Transport
BEIS,UKRI - AHRC,07/04/2020,T&S UK - Subsistence,SMT,Unspecified,98735337,5.45,T&S UK - Subsistence
BEIS,UKRI - AHRC,07/04/2020,T&S UK - Subsistence,SMT,Unspecified,98735337,24.03,T&S UK - Subsistence
BEIS,UKRI - AHRC,07/04/2020,T&S UK - Subsistence,SMT,Unspecified,98735337,8.10,T&S UK - Subsistence
BEIS,UKRI - AHRC,07/04/2020,T&S UK - Accommodation,"History, Heritage, Languages and Literature",Unspecified,98735339,148.00,T&S UK - Accommodation
BEIS,UKRI - AHRC,07/04/2020,T&S UK - Public Transport,"History, Heritage, Languages and Literature",Unspecified,98735339,9.00,T&S UK - Public Transport
BEIS,UKRI - AHRC,07/04/2020,T&S UK - Subsistence,"History, Heritage, Languages and Literature",Unspecified,98735339,25.00,T&S UK - Subsistence
BEIS,UKRI - AHRC,07/04/2020,T&S UK - Subsistence,"History, Heritage, Languages and Literature",Unspecified,98735339,24.75,T&S UK - Subsistence
BEIS,UKRI - AHRC,07/04/2020,T&S UK - Other Charges,Digital Arts and Humanities and Creative Industries,Unspecified,98735340,184.97,T&S UK - Other Charges
BEIS,UKRI - AHRC,07/04/2020,T&S UK - Other Charges,Digital Arts and Humanities and Creative Industries,Unspecified,98735341,335.56,T&S UK - Other Charges
BEIS,UKRI - AHRC,07/04/2020,T&S UK - Other Charges,Operations,Unspecified,98735342,251.44,T&S UK - Other Charges
BEIS,UKRI - AHRC,07/04/2020,T&S UK - Other Charges,Digital Arts and Humanities and Creative Industries,Unspecified,98735343,5.99,T&S UK - Other Charges
BEIS,UKRI - AHRC,07/04/2020,T&S UK - Other Charges,Public and Stakeholder Engagement,Unspecified,98735344,54.32,T&S UK - Other Charges
BEIS,UKRI - AHRC,07/04/2020,T&S UK - Subsistence,Public and Stakeholder Engagement,Unspecified,98735344,8.17,T&S UK - Subsistence
BEIS,UKRI - AHRC,07/04/2020,T&S UK - Subsistence,Public and Stakeholder Engagement,Unspecified,98735344,4.80,T&S UK - Subsistence
BEIS,UKRI - AHRC,07/04/2020,T&S UK - Subsistence,Public and Stakeholder Engagement,Unspecified,98735344,5.25,T&S UK - Subsistence
BEIS,UKRI - AHRC,07/04/2020,Unspecified,PSU Project Office,Alexander Mann Solutions Ltd,98735349,2795.58,Contract Staff
BEIS,UKRI - AHRC,08/04/2020,Other Programme Costs,SMT,Four Communications Group Ltd,98735213,20400.00,Other Programme Costs
BEIS,UKRI - AHRC,08/04/2020,T&S Overseas - Accommodation,"History, Heritage, Languages and Literature",Corporate Travel Management (North) Ltd,98736151,1.17,T&S Overseas - Accommodation
BEIS,UKRI - AHRC,08/04/2020,T&S Overseas - Accommodation,"History, Heritage, Languages and Literature",Corporate Travel Management (North) Ltd,98736151,0.23,T&S Overseas - Accommodation
BEIS,UKRI - AHRC,08/04/2020,T&S Overseas - Flights,FIC- US,Corporate Travel Management (North) Ltd,98736151,2.50,T&S Overseas - Flights
BEIS,UKRI - AHRC,08/04/2020,T&S Overseas - Flights,FIC- US,Corporate Travel Management (North) Ltd,98736151,90.36,T&S Overseas - Flights
BEIS,UKRI - AHRC,08/04/2020,T&S Overseas - Flights,SMT,Corporate Travel Management (North) Ltd,98736151,4.50,T&S Overseas - Flights
BEIS,UKRI - AHRC,08/04/2020,T&S Overseas - Flights,SMT,Corporate Travel Management (North) Ltd,98736151,201.81,T&S Overseas - Flights
BEIS,UKRI - AHRC,08/04/2020,T&S Overseas - Public Transport,"History, Heritage, Languages and Literature",Corporate Travel Management (North) Ltd,98736151,0.25,T&S Overseas - Public Transport
BEIS,UKRI - AHRC,08/04/2020,T&S Overseas - Public Transport,"History, Heritage, Languages and Literature",Corporate Travel Management (North) Ltd,98736151,163.40,T&S Overseas - Public Transport
BEIS,UKRI - AHRC,08/04/2020,T&S UK - Accommodation,Digital Arts and Humanities and Creative Industries,Corporate Travel Management (North) Ltd,98736151,2.00,T&S UK - Accommodation
BEIS,UKRI - AHRC,08/04/2020,T&S UK - Accommodation,Digital Arts and Humanities and Creative Industries,Corporate Travel Management (North) Ltd,98736151,11520.00,T&S UK - Accommodation
BEIS,UKRI - AHRC,08/04/2020,T&S UK - Accommodation,Digital Arts and Humanities and Creative Industries,Corporate Travel Management (North) Ltd,98736151,0.80,T&S UK - Accommodation
BEIS,UKRI - AHRC,08/04/2020,T&S UK - Accommodation,Digital Arts and Humanities and Creative Industries,Corporate Travel Management (North) Ltd,98736151,0.56,T&S UK - Accommodation
BEIS,UKRI - AHRC,08/04/2020,T&S UK - Accommodation,FIC- US,Corporate Travel Management (North) Ltd,98736151,0.80,T&S UK - Accommodation
BEIS,UKRI - AHRC,08/04/2020,T&S UK - Accommodation,FIC- US,Corporate Travel Management (North) Ltd,98736151,138.00,T&S UK - Accommodation
BEIS,UKRI - AHRC,08/04/2020,T&S UK - Accommodation,FIC- US,Corporate Travel Management (North) Ltd,98736151,0.16,T&S UK - Accommodation
BEIS,UKRI - AHRC,08/04/2020,T&S UK - Accommodation,GCRF - Programme Delivery,Corporate Travel Management (North) Ltd,98736151,0.80,T&S UK - Accommodation
BEIS,UKRI - AHRC,08/04/2020,T&S UK - Accommodation,GCRF - Programme Delivery,Corporate Travel Management (North) Ltd,98736151,116.25,T&S UK - Accommodation
BEIS,UKRI - AHRC,08/04/2020,T&S UK - Accommodation,GCRF - Programme Delivery,Corporate Travel Management (North) Ltd,98736151,0.80,T&S UK - Accommodation
BEIS,UKRI - AHRC,08/04/2020,T&S UK - Accommodation,GCRF - Programme Delivery,Corporate Travel Management (North) Ltd,98736151,162.00,T&S UK - Accommodation
BEIS,UKRI - AHRC,08/04/2020,T&S UK - Accommodation,GCRF - Programme Delivery,Corporate Travel Management (North) Ltd,98736151,0.32,T&S UK - Accommodation
BEIS,UKRI - AHRC,08/04/2020,T&S UK - Accommodation,"History, Heritage, Languages and Literature",Corporate Travel Management (North) Ltd,98736151,0.80,T&S UK - Accommodation
BEIS,UKRI - AHRC,08/04/2020,T&S UK - Accommodation,"History, Heritage, Languages and Literature",Corporate Travel Management (North) Ltd,98736151,74.00,T&S UK - Accommodation
BEIS,UKRI - AHRC,08/04/2020,T&S UK - Accommodation,"History, Heritage, Languages and Literature",Corporate Travel Management (North) Ltd,98736151,0.80,T&S UK - Accommodation
BEIS,UKRI - AHRC,08/04/2020,T&S UK - Accommodation,"History, Heritage, Languages and Literature",Corporate Travel Management (North) Ltd,98736151,74.00,T&S UK - Accommodation
BEIS,UKRI - AHRC,08/04/2020,T&S UK - Accommodation,"History, Heritage, Languages and Literature",Corporate Travel Management (North) Ltd,98736151,0.80,T&S UK - Accommodation
BEIS,UKRI - AHRC,08/04/2020,T&S UK - Accommodation,"History, Heritage, Languages and Literature",Corporate Travel Management (North) Ltd,98736151,0.80,T&S UK - Accommodation
BEIS,UKRI - AHRC,08/04/2020,T&S UK - Accommodation,"History, Heritage, Languages and Literature",Corporate Travel Management (North) Ltd,98736151,0.64,T&S UK - Accommodation
BEIS,UKRI - AHRC,08/04/2020,T&S UK - Accommodation,Industrial Strategy Challenge Fund (ISCF) - Creative Clusters,Corporate Travel Management (North) Ltd,98736151,0.80,T&S UK - Accommodation
BEIS,UKRI - AHRC,08/04/2020,T&S UK - Accommodation,Industrial Strategy Challenge Fund (ISCF) - Creative Clusters,Corporate Travel Management (North) Ltd,98736151,69.00,T&S UK - Accommodation
BEIS,UKRI - AHRC,08/04/2020,T&S UK - Accommodation,Industrial Strategy Challenge Fund (ISCF) - Creative Clusters,Corporate Travel Management (North) Ltd,98736151,0.80,T&S UK - Accommodation
BEIS,UKRI - AHRC,08/04/2020,T&S UK - Accommodation,Industrial Strategy Challenge Fund (ISCF) - Creative Clusters,Corporate Travel Management (North) Ltd,98736151,69.00,T&S UK - Accommodation
BEIS,UKRI - AHRC,08/04/2020,T&S UK - Accommodation,Industrial Strategy Challenge Fund (ISCF) - Creative Clusters,Corporate Travel Management (North) Ltd,98736151,0.80,T&S UK - Accommodation
BEIS,UKRI - AHRC,08/04/2020,T&S UK - Accommodation,Industrial Strategy Challenge Fund (ISCF) - Creative Clusters,Corporate Travel Management (North) Ltd,98736151,69.00,T&S UK - Accommodation
BEIS,UKRI - AHRC,08/04/2020,T&S UK - Accommodation,Industrial Strategy Challenge Fund (ISCF) - Creative Clusters,Corporate Travel Management (North) Ltd,98736151,0.80,T&S UK - Accommodation
BEIS,UKRI - AHRC,08/04/2020,T&S UK - Accommodation,Industrial Strategy Challenge Fund (ISCF) - Creative Clusters,Corporate Travel Management (North) Ltd,98736151,0.64,T&S UK - Accommodation
BEIS,UKRI - AHRC,08/04/2020,T&S UK - Accommodation,International,Corporate Travel Management (North) Ltd,98736151,0.80,T&S UK - Accommodation
BEIS,UKRI - AHRC,08/04/2020,T&S UK - Accommodation,International,Corporate Travel Management (North) Ltd,98736151,39.39,T&S UK - Accommodation
BEIS,UKRI - AHRC,08/04/2020,T&S UK - Accommodation,International,Corporate Travel Management (North) Ltd,98736151,0.16,T&S UK - Accommodation
BEIS,UKRI - AHRC,08/04/2020,T&S UK - Accommodation,Operations,Corporate Travel Management (North) Ltd,98736151,0.80,T&S UK - Accommodation
BEIS,UKRI - AHRC,08/04/2020,T&S UK - Accommodation,Operations,Corporate Travel Management (North) Ltd,98736151,134.00,T&S UK - Accommodation
BEIS,UKRI - AHRC,08/04/2020,T&S UK - Accommodation,Operations,Corporate Travel Management (North) Ltd,98736151,0.80,T&S UK - Accommodation
BEIS,UKRI - AHRC,08/04/2020,T&S UK - Accommodation,Operations,Corporate Travel Management (North) Ltd,98736151,66.29,T&S UK - Accommodation
BEIS,UKRI - AHRC,08/04/2020,T&S UK - Accommodation,Operations,Corporate Travel Management (North) Ltd,98736151,0.80,T&S UK - Accommodation
BEIS,UKRI - AHRC,08/04/2020,T&S UK - Accommodation,Operations,Corporate Travel Management (North) Ltd,98736151,63.29,T&S UK - Accommodation
BEIS,UKRI - AHRC,08/04/2020,T&S UK - Accommodation,Operations,Corporate Travel Management (North) Ltd,98736151,0.80,T&S UK - Accommodation
BEIS,UKRI - AHRC,08/04/2020,T&S UK - Accommodation,Operations,Corporate Travel Management (North) Ltd,98736151,45.11,T&S UK - Accommodation
BEIS,UKRI - AHRC,08/04/2020,T&S UK - Accommodation,Operations,Corporate Travel Management (North) Ltd,98736151,0.64,T&S UK - Accommodation
BEIS,UKRI - AHRC,08/04/2020,T&S UK - Accommodation,SMT,Corporate Travel Management (North) Ltd,98736151,0.80,T&S UK - Accommodation
BEIS,UKRI - AHRC,08/04/2020,T&S UK - Accommodation,SMT,Corporate Travel Management (North) Ltd,98736151,172.80,T&S UK - Accommodation
BEIS,UKRI - AHRC,08/04/2020,T&S UK - Accommodation,SMT,Corporate Travel Management (North) Ltd,98736151,0.80,T&S UK - Accommodation
BEIS,UKRI - AHRC,08/04/2020,T&S UK - Accommodation,SMT,Corporate Travel Management (North) Ltd,98736151,316.54,T&S UK - Accommodation
BEIS,UKRI - AHRC,08/04/2020,T&S UK - Accommodation,SMT,Corporate Travel Management (North) Ltd,98736151,0.80,T&S UK - Accommodation
BEIS,UKRI - AHRC,08/04/2020,T&S UK - Accommodation,SMT,Corporate Travel Management (North) Ltd,98736151,62.00,T&S UK - Accommodation
BEIS,UKRI - AHRC,08/04/2020,T&S UK - Accommodation,SMT,Corporate Travel Management (North) Ltd,98736151,0.48,T&S UK - Accommodation
BEIS,UKRI - AHRC,08/04/2020,T&S UK - Accommodation,Secretariat,Corporate Travel Management (North) Ltd,98736151,0.80,T&S UK - Accommodation
BEIS,UKRI - AHRC,08/04/2020,T&S UK - Accommodation,Secretariat,Corporate Travel Management (North) Ltd,98736151,135.00,T&S UK - Accommodation
BEIS,UKRI - AHRC,08/04/2020,T&S UK - Accommodation,Secretariat,Corporate Travel Management (North) Ltd,98736151,0.80,T&S UK - Accommodation
BEIS,UKRI - AHRC,08/04/2020,T&S UK - Accommodation,Secretariat,Corporate Travel Management (North) Ltd,98736151,0.80,T&S UK - Accommodation
BEIS,UKRI - AHRC,08/04/2020,T&S UK - Accommodation,Secretariat,Corporate Travel Management (North) Ltd,98736151,120.00,T&S UK - Accommodation
BEIS,UKRI - AHRC,08/04/2020,T&S UK - Accommodation,Secretariat,Corporate Travel Management (North) Ltd,98736151,0.80,T&S UK - Accommodation
BEIS,UKRI - AHRC,08/04/2020,T&S UK - Accommodation,Secretariat,Corporate Travel Management (North) Ltd,98736151,299.16,T&S UK - Accommodation
BEIS,UKRI - AHRC,08/04/2020,T&S UK - Accommodation,Secretariat,Corporate Travel Management (North) Ltd,98736151,0.80,T&S UK - Accommodation
BEIS,UKRI - AHRC,08/04/2020,T&S UK - Accommodation,Secretariat,Corporate Travel Management (North) Ltd,98736151,299.16,T&S UK - Accommodation
BEIS,UKRI - AHRC,08/04/2020,T&S UK - Accommodation,Secretariat,Corporate Travel Management (North) Ltd,98736151,0.80,T&S UK - Accommodation
BEIS,UKRI - AHRC,08/04/2020,T&S UK - Accommodation,Secretariat,Corporate Travel Management (North) Ltd,98736151,75.00,T&S UK - Accommodation
BEIS,UKRI - AHRC,08/04/2020,T&S UK - Accommodation,Secretariat,Corporate Travel Management (North) Ltd,98736151,0.96,T&S UK - Accommodation
BEIS,UKRI - AHRC,08/04/2020,T&S UK - Flights,Digital Arts and Humanities and Creative Industries,Corporate Travel Management (North) Ltd,98736151,2.00,T&S UK - Flights
BEIS,UKRI - AHRC,08/04/2020,T&S UK - Flights,Digital Arts and Humanities and Creative Industries,Corporate Travel Management (North) Ltd,98736151,126.34,T&S UK - Flights
BEIS,UKRI - AHRC,08/04/2020,T&S UK - Flights,Digital Arts and Humanities and Creative Industries,Corporate Travel Management (North) Ltd,98736151,2.00,T&S UK - Flights
BEIS,UKRI - AHRC,08/04/2020,T&S UK - Flights,Digital Arts and Humanities and Creative Industries,Corporate Travel Management (North) Ltd,98736151,123.41,T&S UK - Flights
BEIS,UKRI - AHRC,08/04/2020,T&S UK - Flights,"History, Heritage, Languages and Literature",Corporate Travel Management (North) Ltd,98736151,2.50,T&S UK - Flights
BEIS,UKRI - AHRC,08/04/2020,T&S UK - Flights,"History, Heritage, Languages and Literature",Corporate Travel Management (North) Ltd,98736151,196.98,T&S UK - Flights
BEIS,UKRI - AHRC,08/04/2020,T&S UK - Flights,"History, Heritage, Languages and Literature",Corporate Travel Management (North) Ltd,98736151,4.50,T&S UK - Flights
BEIS,UKRI - AHRC,08/04/2020,T&S UK - Flights,"History, Heritage, Languages and Literature",Corporate Travel Management (North) Ltd,98736151,196.98,T&S UK - Flights
BEIS,UKRI - AHRC,08/04/2020,T&S UK - Flights,Industrial Strategy Challenge Fund (ISCF) - Creative Clusters,Corporate Travel Management (North) Ltd,98736151,2.50,T&S UK - Flights
BEIS,UKRI - AHRC,08/04/2020,T&S UK - Flights,Industrial Strategy Challenge Fund (ISCF) - Creative Clusters,Corporate Travel Management (North) Ltd,98736151,55.98,T&S UK - Flights
BEIS,UKRI - AHRC,08/04/2020,T&S UK - Flights,Industrial Strategy Challenge Fund (ISCF) - Creative Clusters,Corporate Travel Management (North) Ltd,98736151,2.50,T&S UK - Flights
BEIS,UKRI - AHRC,08/04/2020,T&S UK - Flights,Industrial Strategy Challenge Fund (ISCF) - Creative Clusters,Corporate Travel Management (North) Ltd,98736151,163.65,T&S UK - Flights
BEIS,UKRI - AHRC,08/04/2020,T&S UK - Flights,SMT,Corporate Travel Management (North) Ltd,98736151,2.50,T&S UK - Flights
BEIS,UKRI - AHRC,08/04/2020,T&S UK - Flights,SMT,Corporate Travel Management (North) Ltd,98736151,77.46,T&S UK - Flights
BEIS,UKRI - AHRC,08/04/2020,T&S UK - Flights,Skills Strategy,Corporate Travel Management (North) Ltd,98736151,2.50,T&S UK - Flights
BEIS,UKRI - AHRC,08/04/2020,T&S UK - Flights,Skills Strategy,Corporate Travel Management (North) Ltd,98736151,133.98,T&S UK - Flights
BEIS,UKRI - AHRC,08/04/2020,T&S UK - Parking Tolls Congestion Charges,"History, Heritage, Languages and Literature",Corporate Travel Management (North) Ltd,98736151,4.50,T&S UK - Parking Tolls Congestion Charges
BEIS,UKRI - AHRC,08/04/2020,T&S UK - Parking Tolls Congestion Charges,"History, Heritage, Languages and Literature",Corporate Travel Management (North) Ltd,98736151,34.99,T&S UK - Parking Tolls Congestion Charges
BEIS,UKRI - AHRC,08/04/2020,T&S UK - Parking Tolls Congestion Charges,"History, Heritage, Languages and Literature",Corporate Travel Management (North) Ltd,98736151,0.90,T&S UK - Parking Tolls Congestion Charges
BEIS,UKRI - AHRC,08/04/2020,T&S UK - Public Transport,Digital Arts and Humanities and Creative Industries,Corporate Travel Management (North) Ltd,98736151,0.25,T&S UK - Public Transport
BEIS,UKRI - AHRC,08/04/2020,T&S UK - Public Transport,Digital Arts and Humanities and Creative Industries,Corporate Travel Management (North) Ltd,98736151,128.30,T&S UK - Public Transport
BEIS,UKRI - AHRC,08/04/2020,T&S UK - Public Transport,Digital Arts and Humanities and Creative Industries,Corporate Travel Management (North) Ltd,98736151,5.00,T&S UK - Public Transport
BEIS,UKRI - AHRC,08/04/2020,T&S UK - Public Transport,Digital Arts and Humanities and Creative Industries,Corporate Travel Management (North) Ltd,98736151,-8.50,T&S UK - Public Transport
BEIS,UKRI - AHRC,08/04/2020,T&S UK - Public Transport,Digital Arts and Humanities and Creative Industries,Corporate Travel Management (North) Ltd,98736151,15.00,T&S UK - Public Transport
BEIS,UKRI - AHRC,08/04/2020,T&S UK - Public Transport,Digital Arts and Humanities and Creative Industries,Corporate Travel Management (North) Ltd,98736151,-93.50,T&S UK - Public Transport
BEIS,UKRI - AHRC,08/04/2020,T&S UK - Public Transport,Digital Arts and Humanities and Creative Industries,Corporate Travel Management (North) Ltd,98736151,0.50,T&S UK - Public Transport
BEIS,UKRI - AHRC,08/04/2020,T&S UK - Public Transport,Digital Arts and Humanities and Creative Industries,Corporate Travel Management (North) Ltd,98736151,41.90,T&S UK - Public Transport
BEIS,UKRI - AHRC,08/04/2020,T&S UK - Public Transport,Digital Arts and Humanities and Creative Industries,Corporate Travel Management (North) Ltd,98736151,4.60,T&S UK - Public Transport
BEIS,UKRI - AHRC,08/04/2020,T&S UK - Public Transport,Digital Arts and Humanities and Creative Industries,Corporate Travel Management (North) Ltd,98736151,0.25,T&S UK - Public Transport
BEIS,UKRI - AHRC,08/04/2020,T&S UK - Public Transport,Digital Arts and Humanities and Creative Industries,Corporate Travel Management (North) Ltd,98736151,20.00,T&S UK - Public Transport
BEIS,UKRI - AHRC,08/04/2020,T&S UK - Public Transport,Digital Arts and Humanities and Creative Industries,Corporate Travel Management (North) Ltd,98736151,0.25,T&S UK - Public Transport
BEIS,UKRI - AHRC,08/04/2020,T&S UK - Public Transport,Digital Arts and Humanities and Creative Industries,Corporate Travel Management (North) Ltd,98736151,24.05,T&S UK - Public Transport
BEIS,UKRI - AHRC,08/04/2020,T&S UK - Public Transport,Digital Arts and Humanities and Creative Industries,Corporate Travel Management (North) Ltd,98736151,0.25,T&S UK - Public Transport
BEIS,UKRI - AHRC,08/04/2020,T&S UK - Public Transport,Digital Arts and Humanities and Creative Industries,Corporate Travel Management (North) Ltd,98736151,15.30,T&S UK - Public Transport
BEIS,UKRI - AHRC,08/04/2020,T&S UK - Public Transport,Executive Office,Corporate Travel Management (North) Ltd,98736151,0.25,T&S UK - Public Transport
BEIS,UKRI - AHRC,08/04/2020,T&S UK - Public Transport,Executive Office,Corporate Travel Management (North) Ltd,98736151,12.20,T&S UK - Public Transport
BEIS,UKRI - AHRC,08/04/2020,T&S UK - Public Transport,Executive Office,Corporate Travel Management (North) Ltd,98736151,5.00,T&S UK - Public Transport
BEIS,UKRI - AHRC,08/04/2020,T&S UK - Public Transport,Executive Office,Corporate Travel Management (North) Ltd,98736151,-27.60,T&S UK - Public Transport
BEIS,UKRI - AHRC,08/04/2020,T&S UK - Public Transport,GCRF - Programme Delivery,Corporate Travel Management (North) Ltd,98736151,0.25,T&S UK - Public Transport
BEIS,UKRI - AHRC,08/04/2020,T&S UK - Public Transport,GCRF - Programme Delivery,Corporate Travel Management (North) Ltd,98736151,161.40,T&S UK - Public Transport
BEIS,UKRI - AHRC,08/04/2020,T&S UK - Public Transport,GCRF - Programme Delivery,Corporate Travel Management (North) Ltd,98736151,2.50,T&S UK - Public Transport
BEIS,UKRI - AHRC,08/04/2020,T&S UK - Public Transport,GCRF - Programme Delivery,Corporate Travel Management (North) Ltd,98736151,188.33,T&S UK - Public Transport
BEIS,UKRI - AHRC,08/04/2020,T&S UK - Public Transport,GCRF - Programme Delivery,Corporate Travel Management (North) Ltd,98736151,0.25,T&S UK - Public Transport
BEIS,UKRI - AHRC,08/04/2020,T&S UK - Public Transport,GCRF - Programme Delivery,Corporate Travel Management (North) Ltd,98736151,174.40,T&S UK - Public Transport
BEIS,UKRI - AHRC,08/04/2020,T&S UK - Public Transport,GCRF - Programme Delivery,Corporate Travel Management (North) Ltd,98736151,0.50,T&S UK - Public Transport
BEIS,UKRI - AHRC,08/04/2020,T&S UK - Public Transport,Health and Environmental Humanities,Corporate Travel Management (North) Ltd,98736151,0.25,T&S UK - Public Transport
BEIS,UKRI - AHRC,08/04/2020,T&S UK - Public Transport,Health and Environmental Humanities,Corporate Travel Management (North) Ltd,98736151,163.40,T&S UK - Public Transport
BEIS,UKRI - AHRC,08/04/2020,T&S UK - Public Transport,"History, Heritage, Languages and Literature",Corporate Travel Management (North) Ltd,98736151,5.00,T&S UK - Public Transport
BEIS,UKRI - AHRC,08/04/2020,T&S UK - Public Transport,"History, Heritage, Languages and Literature",Corporate Travel Management (North) Ltd,98736151,-177.00,T&S UK - Public Transport
BEIS,UKRI - AHRC,08/04/2020,T&S UK - Public Transport,"History, Heritage, Languages and Literature",Corporate Travel Management (North) Ltd,98736151,0.25,T&S UK - Public Transport
BEIS,UKRI - AHRC,08/04/2020,T&S UK - Public Transport,"History, Heritage, Languages and Literature",Corporate Travel Management (North) Ltd,98736151,193.50,T&S UK - Public Transport
BEIS,UKRI - AHRC,08/04/2020,T&S UK - Public Transport,"History, Heritage, Languages and Literature",Corporate Travel Management (North) Ltd,98736151,0.25,T&S UK - Public Transport
BEIS,UKRI - AHRC,08/04/2020,T&S UK - Public Transport,"History, Heritage, Languages and Literature",Corporate Travel Management (North) Ltd,98736151,162.00,T&S UK - Public Transport
BEIS,UKRI - AHRC,08/04/2020,T&S UK - Public Transport,"History, Heritage, Languages and Literature",Corporate Travel Management (North) Ltd,98736151,0.25,T&S UK - Public Transport
BEIS,UKRI - AHRC,08/04/2020,T&S UK - Public Transport,"History, Heritage, Languages and Literature",Corporate Travel Management (North) Ltd,98736151,148.80,T&S UK - Public Transport
BEIS,UKRI - AHRC,08/04/2020,T&S UK - Public Transport,"History, Heritage, Languages and Literature",Corporate Travel Management (North) Ltd,98736151,0.25,T&S UK - Public Transport
BEIS,UKRI - AHRC,08/04/2020,T&S UK - Public Transport,"History, Heritage, Languages and Literature",Corporate Travel Management (North) Ltd,98736151,89.30,T&S UK - Public Transport
BEIS,UKRI - AHRC,08/04/2020,T&S UK - Public Transport,"History, Heritage, Languages and Literature",Corporate Travel Management (North) Ltd,98736151,0.25,T&S UK - Public Transport
BEIS,UKRI - AHRC,08/04/2020,T&S UK - Public Transport,"History, Heritage, Languages and Literature",Corporate Travel Management (North) Ltd,98736151,37.40,T&S UK - Public Transport
BEIS,UKRI - AHRC,08/04/2020,T&S UK - Public Transport,"History, Heritage, Languages and Literature",Corporate Travel Management (North) Ltd,98736151,0.25,T&S UK - Public Transport
BEIS,UKRI - AHRC,08/04/2020,T&S UK - Public Transport,"History, Heritage, Languages and Literature",Corporate Travel Management (North) Ltd,98736151,31.50,T&S UK - Public Transport
BEIS,UKRI - AHRC,08/04/2020,T&S UK - Public Transport,"History, Heritage, Languages and Literature",Corporate Travel Management (North) Ltd,98736151,0.25,T&S UK - Public Transport
BEIS,UKRI - AHRC,08/04/2020,T&S UK - Public Transport,"History, Heritage, Languages and Literature",Corporate Travel Management (North) Ltd,98736151,111.90,T&S UK - Public Transport
BEIS,UKRI - AHRC,08/04/2020,T&S UK - Public Transport,"History, Heritage, Languages and Literature",Corporate Travel Management (North) Ltd,98736151,0.25,T&S UK - Public Transport
BEIS,UKRI - AHRC,08/04/2020,T&S UK - Public Transport,"History, Heritage, Languages and Literature",Corporate Travel Management (North) Ltd,98736151,51.20,T&S UK - Public Transport
BEIS,UKRI - AHRC,08/04/2020,T&S UK - Public Transport,Industrial Strategy Challenge Fund (ISCF) - Creative Clusters,Corporate Travel Management (North) Ltd,98736151,5.00,T&S UK - Public Transport
BEIS,UKRI - AHRC,08/04/2020,T&S UK - Public Transport,Industrial Strategy Challenge Fund (ISCF) - Creative Clusters,Corporate Travel Management (North) Ltd,98736151,-143.80,T&S UK - Public Transport
BEIS,UKRI - AHRC,08/04/2020,T&S UK - Public Transport,Industrial Strategy Challenge Fund (ISCF) - Creative Clusters,Corporate Travel Management (North) Ltd,98736151,0.25,T&S UK - Public Transport
BEIS,UKRI - AHRC,08/04/2020,T&S UK - Public Transport,Industrial Strategy Challenge Fund (ISCF) - Creative Clusters,Corporate Travel Management (North) Ltd,98736151,55.50,T&S UK - Public Transport
BEIS,UKRI - AHRC,08/04/2020,T&S UK - Public Transport,Industrial Strategy Challenge Fund (ISCF) - Creative Clusters,Corporate Travel Management (North) Ltd,98736151,0.50,T&S UK - Public Transport
BEIS,UKRI - AHRC,08/04/2020,T&S UK - Public Transport,Industrial Strategy Challenge Fund (ISCF) - Creative Clusters,Corporate Travel Management (North) Ltd,98736151,82.00,T&S UK - Public Transport
BEIS,UKRI - AHRC,08/04/2020,T&S UK - Public Transport,Industrial Strategy Challenge Fund (ISCF) - Creative Clusters,Corporate Travel Management (North) Ltd,98736151,52.60,T&S UK - Public Transport
BEIS,UKRI - AHRC,08/04/2020,T&S UK - Public Transport,Industrial Strategy Challenge Fund (ISCF) - Creative Clusters,Corporate Travel Management (North) Ltd,98736151,0.25,T&S UK - Public Transport
BEIS,UKRI - AHRC,08/04/2020,T&S UK - Public Transport,Industrial Strategy Challenge Fund (ISCF) - Creative Clusters,Corporate Travel Management (North) Ltd,98736151,147.60,T&S UK - Public Transport
BEIS,UKRI - AHRC,08/04/2020,T&S UK - Public Transport,Industrial Strategy Challenge Fund (ISCF) - Creative Clusters,Corporate Travel Management (North) Ltd,98736151,0.25,T&S UK - Public Transport
BEIS,UKRI - AHRC,08/04/2020,T&S UK - Public Transport,Industrial Strategy Challenge Fund (ISCF) - Creative Clusters,Corporate Travel Management (North) Ltd,98736151,71.10,T&S UK - Public Transport
BEIS,UKRI - AHRC,08/04/2020,T&S UK - Public Transport,Industrial Strategy Challenge Fund (ISCF) - Creative Clusters,Corporate Travel Management (North) Ltd,98736151,0.25,T&S UK - Public Transport
BEIS,UKRI - AHRC,08/04/2020,T&S UK - Public Transport,Industrial Strategy Challenge Fund (ISCF) - Creative Clusters,Corporate Travel Management (North) Ltd,98736151,136.30,T&S UK - Public Transport
BEIS,UKRI - AHRC,08/04/2020,T&S UK - Public Transport,Industrial Strategy Challenge Fund (ISCF) - Creative Clusters,Corporate Travel Management (North) Ltd,98736151,0.25,T&S UK - Public Transport
BEIS,UKRI - AHRC,08/04/2020,T&S UK - Public Transport,Industrial Strategy Challenge Fund (ISCF) - Creative Clusters,Corporate Travel Management (North) Ltd,98736151,38.00,T&S UK - Public Transport
BEIS,UKRI - AHRC,08/04/2020,T&S UK - Public Transport,Industrial Strategy Challenge Fund (ISCF) - Creative Clusters,Corporate Travel Management (North) Ltd,98736151,0.25,T&S UK - Public Transport
BEIS,UKRI - AHRC,08/04/2020,T&S UK - Public Transport,Industrial Strategy Challenge Fund (ISCF) - Creative Clusters,Corporate Travel Management (North) Ltd,98736151,25.10,T&S UK - Public Transport
BEIS,UKRI - AHRC,08/04/2020,T&S UK - Public Transport,Infrastruture Roadmap,Corporate Travel Management (North) Ltd,98736151,0.25,T&S UK - Public Transport
BEIS,UKRI - AHRC,08/04/2020,T&S UK - Public Transport,Infrastruture Roadmap,Corporate Travel Management (North) Ltd,98736151,38.00,T&S UK - Public Transport
BEIS,UKRI - AHRC,08/04/2020,T&S UK - Public Transport,Infrastruture Roadmap,Corporate Travel Management (North) Ltd,98736151,0.25,T&S UK - Public Transport
BEIS,UKRI - AHRC,08/04/2020,T&S UK - Public Transport,Infrastruture Roadmap,Corporate Travel Management (North) Ltd,98736151,62.80,T&S UK - Public Transport
BEIS,UKRI - AHRC,08/04/2020,T&S UK - Public Transport,International,Corporate Travel Management (North) Ltd,98736151,0.25,T&S UK - Public Transport
BEIS,UKRI - AHRC,08/04/2020,T&S UK - Public Transport,International,Corporate Travel Management (North) Ltd,98736151,62.95,T&S UK - Public Transport
BEIS,UKRI - AHRC,08/04/2020,T&S UK - Public Transport,International Development and Area Studies,Corporate Travel Management (North) Ltd,98736151,0.25,T&S UK - Public Transport
BEIS,UKRI - AHRC,08/04/2020,T&S UK - Public Transport,International Development and Area Studies,Corporate Travel Management (North) Ltd,98736151,155.50,T&S UK - Public Transport
BEIS,UKRI - AHRC,08/04/2020,T&S UK - Public Transport,International Development and Area Studies,Corporate Travel Management (North) Ltd,98736151,0.25,T&S UK - Public Transport
BEIS,UKRI - AHRC,08/04/2020,T&S UK - Public Transport,International Development and Area Studies,Corporate Travel Management (North) Ltd,98736151,97.70,T&S UK - Public Transport
BEIS,UKRI - AHRC,08/04/2020,T&S UK - Public Transport,International Development and Area Studies,Corporate Travel Management (North) Ltd,98736151,0.50,T&S UK - Public Transport
BEIS,UKRI - AHRC,08/04/2020,T&S UK - Public Transport,International Development and Area Studies,Corporate Travel Management (North) Ltd,98736151,33.70,T&S UK - Public Transport
BEIS,UKRI - AHRC,08/04/2020,T&S UK - Public Transport,International Development and Area Studies,Corporate Travel Management (North) Ltd,98736151,13.50,T&S UK - Public Transport
BEIS,UKRI - AHRC,08/04/2020,T&S UK - Public Transport,International Partnership and Engagement,Corporate Travel Management (North) Ltd,98736151,0.50,T&S UK - Public Transport
BEIS,UKRI - AHRC,08/04/2020,T&S UK - Public Transport,International Partnership and Engagement,Corporate Travel Management (North) Ltd,98736151,34.70,T&S UK - Public Transport
BEIS,UKRI - AHRC,08/04/2020,T&S UK - Public Transport,International Partnership and Engagement,Corporate Travel Management (North) Ltd,98736151,29.60,T&S UK - Public Transport
BEIS,UKRI - AHRC,08/04/2020,T&S UK - Public Transport,International Partnership and Engagement,Corporate Travel Management (North) Ltd,98736151,0.50,T&S UK - Public Transport
BEIS,UKRI - AHRC,08/04/2020,T&S UK - Public Transport,International Partnership and Engagement,Corporate Travel Management (North) Ltd,98736151,33.70,T&S UK - Public Transport
BEIS,UKRI - AHRC,08/04/2020,T&S UK - Public Transport,International Partnership and Engagement,Corporate Travel Management (North) Ltd,98736151,13.50,T&S UK - Public Transport
BEIS,UKRI - AHRC,08/04/2020,T&S UK - Public Transport,International Partnership and Engagement,Corporate Travel Management (North) Ltd,98736151,0.25,T&S UK - Public Transport
BEIS,UKRI - AHRC,08/04/2020,T&S UK - Public Transport,International Partnership and Engagement,Corporate Travel Management (North) Ltd,98736151,68.50,T&S UK - Public Transport
BEIS,UKRI - AHRC,08/04/2020,T&S UK - Public Transport,International Partnership and Engagement,Corporate Travel Management (North) Ltd,98736151,0.25,T&S UK - Public Transport
BEIS,UKRI - AHRC,08/04/2020,T&S UK - Public Transport,International Partnership and Engagement,Corporate Travel Management (North) Ltd,98736151,163.60,T&S UK - Public Transport
BEIS,UKRI - AHRC,08/04/2020,T&S UK - Public Transport,JPI Cultural Heritage Project,Corporate Travel Management (North) Ltd,98736151,0.25,T&S UK - Public Transport
BEIS,UKRI - AHRC,08/04/2020,T&S UK - Public Transport,JPI Cultural Heritage Project,Corporate Travel Management (North) Ltd,98736151,45.50,T&S UK - Public Transport
BEIS,UKRI - AHRC,08/04/2020,T&S UK - Public Transport,New Programme Development,Corporate Travel Management (North) Ltd,98736151,0.25,T&S UK - Public Transport
BEIS,UKRI - AHRC,08/04/2020,T&S UK - Public Transport,New Programme Development,Corporate Travel Management (North) Ltd,98736151,157.70,T&S UK - Public Transport
BEIS,UKRI - AHRC,08/04/2020,T&S UK - Public Transport,Operations,Corporate Travel Management (North) Ltd,98736151,5.00,T&S UK - Public Transport
BEIS,UKRI - AHRC,08/04/2020,T&S UK - Public Transport,Operations,Corporate Travel Management (North) Ltd,98736151,-143.80,T&S UK - Public Transport
BEIS,UKRI - AHRC,08/04/2020,T&S UK - Public Transport,Operations,Corporate Travel Management (North) Ltd,98736151,0.25,T&S UK - Public Transport
BEIS,UKRI - AHRC,08/04/2020,T&S UK - Public Transport,Operations,Corporate Travel Management (North) Ltd,98736151,12.60,T&S UK - Public Transport
BEIS,UKRI - AHRC,08/04/2020,T&S UK - Public Transport,Operations,Corporate Travel Management (North) Ltd,98736151,0.25,T&S UK - Public Transport
BEIS,UKRI - AHRC,08/04/2020,T&S UK - Public Transport,Operations,Corporate Travel Management (North) Ltd,98736151,24.60,T&S UK - Public Transport
BEIS,UKRI - AHRC,08/04/2020,T&S UK - Public Transport,Operations,Corporate Travel Management (North) Ltd,98736151,0.25,T&S UK - Public Transport
BEIS,UKRI - AHRC,08/04/2020,T&S UK - Public Transport,Operations,Corporate Travel Management (North) Ltd,98736151,24.60,T&S UK - Public Transport
BEIS,UKRI - AHRC,08/04/2020,T&S UK - Public Transport,Operations,Corporate Travel Management (North) Ltd,98736151,0.25,T&S UK - Public Transport
BEIS,UKRI - AHRC,08/04/2020,T&S UK - Public Transport,Operations,Corporate Travel Management (North) Ltd,98736151,24.60,T&S UK - Public Transport
BEIS,UKRI - AHRC,08/04/2020,T&S UK - Public Transport,Operations,Corporate Travel Management (North) Ltd,98736151,0.25,T&S UK - Public Transport
BEIS,UKRI - AHRC,08/04/2020,T&S UK - Public Transport,Operations,Corporate Travel Management (North) Ltd,98736151,24.60,T&S UK - Public Transport
BEIS,UKRI - AHRC,08/04/2020,T&S UK - Public Transport,Operations,Corporate Travel Management (North) Ltd,98736151,0.25,T&S UK - Public Transport
BEIS,UKRI - AHRC,08/04/2020,T&S UK - Public Transport,Operations,Corporate Travel Management (North) Ltd,98736151,106.85,T&S UK - Public Transport
BEIS,UKRI - AHRC,08/04/2020,T&S UK - Public Transport,Operations,Corporate Travel Management (North) Ltd,98736151,0.25,T&S UK - Public Transport
BEIS,UKRI - AHRC,08/04/2020,T&S UK - Public Transport,Operations,Corporate Travel Management (North) Ltd,98736151,24.60,T&S UK - Public Transport
BEIS,UKRI - AHRC,08/04/2020,T&S UK - Public Transport,PSU Project Office,Corporate Travel Management (North) Ltd,98736151,0.25,T&S UK - Public Transport
BEIS,UKRI - AHRC,08/04/2020,T&S UK - Public Transport,PSU Project Office,Corporate Travel Management (North) Ltd,98736151,27.80,T&S UK - Public Transport
BEIS,UKRI - AHRC,08/04/2020,T&S UK - Public Transport,Public Policy Research,Corporate Travel Management (North) Ltd,98736151,0.50,T&S UK - Public Transport
BEIS,UKRI - AHRC,08/04/2020,T&S UK - Public Transport,Public Policy Research,Corporate Travel Management (North) Ltd,98736151,33.70,T&S UK - Public Transport
BEIS,UKRI - AHRC,08/04/2020,T&S UK - Public Transport,Public Policy Research,Corporate Travel Management (North) Ltd,98736151,13.50,T&S UK - Public Transport
BEIS,UKRI - AHRC,08/04/2020,T&S UK - Public Transport,Public and Stakeholder Engagement,Corporate Travel Management (North) Ltd,98736151,0.25,T&S UK - Public Transport
BEIS,UKRI - AHRC,08/04/2020,T&S UK - Public Transport,Public and Stakeholder Engagement,Corporate Travel Management (North) Ltd,98736151,10.35,T&S UK - Public Transport
BEIS,UKRI - AHRC,08/04/2020,T&S UK - Public Transport,Public and Stakeholder Engagement,Corporate Travel Management (North) Ltd,98736151,0.25,T&S UK - Public Transport
BEIS,UKRI - AHRC,08/04/2020,T&S UK - Public Transport,Public and Stakeholder Engagement,Corporate Travel Management (North) Ltd,98736151,36.25,T&S UK - Public Transport
BEIS,UKRI - AHRC,08/04/2020,T&S UK - Public Transport,Public and Stakeholder Engagement,Corporate Travel Management (North) Ltd,98736151,0.50,T&S UK - Public Transport
BEIS,UKRI - AHRC,08/04/2020,T&S UK - Public Transport,Public and Stakeholder Engagement,Corporate Travel Management (North) Ltd,98736151,178.60,T&S UK - Public Transport
BEIS,UKRI - AHRC,08/04/2020,T&S UK - Public Transport,Public and Stakeholder Engagement,Corporate Travel Management (North) Ltd,98736151,0.50,T&S UK - Public Transport
BEIS,UKRI - AHRC,08/04/2020,T&S UK - Public Transport,Public and Stakeholder Engagement,Corporate Travel Management (North) Ltd,98736151,34.00,T&S UK - Public Transport
BEIS,UKRI - AHRC,08/04/2020,T&S UK - Public Transport,Public and Stakeholder Engagement,Corporate Travel Management (North) Ltd,98736151,27.50,T&S UK - Public Transport
BEIS,UKRI - AHRC,08/04/2020,T&S UK - Public Transport,SMT,Corporate Travel Management (North) Ltd,98736151,0.50,T&S UK - Public Transport
BEIS,UKRI - AHRC,08/04/2020,T&S UK - Public Transport,SMT,Corporate Travel Management (North) Ltd,98736151,115.10,T&S UK - Public Transport
BEIS,UKRI - AHRC,08/04/2020,T&S UK - Public Transport,SMT,Corporate Travel Management (North) Ltd,98736151,32.60,T&S UK - Public Transport
BEIS,UKRI - AHRC,08/04/2020,T&S UK - Public Transport,SMT,Corporate Travel Management (North) Ltd,98736151,0.25,T&S UK - Public Transport
BEIS,UKRI - AHRC,08/04/2020,T&S UK - Public Transport,SMT,Corporate Travel Management (North) Ltd,98736151,34.70,T&S UK - Public Transport
BEIS,UKRI - AHRC,08/04/2020,T&S UK - Public Transport,SMT,Corporate Travel Management (North) Ltd,98736151,0.25,T&S UK - Public Transport
BEIS,UKRI - AHRC,08/04/2020,T&S UK - Public Transport,SMT,Corporate Travel Management (North) Ltd,98736151,163.60,T&S UK - Public Transport
BEIS,UKRI - AHRC,08/04/2020,T&S UK - Public Transport,SMT,Corporate Travel Management (North) Ltd,98736151,0.25,T&S UK - Public Transport
BEIS,UKRI - AHRC,08/04/2020,T&S UK - Public Transport,SMT,Corporate Travel Management (North) Ltd,98736151,119.50,T&S UK - Public Transport
BEIS,UKRI - AHRC,08/04/2020,T&S UK - Public Transport,SMT,Corporate Travel Management (North) Ltd,98736151,0.25,T&S UK - Public Transport
BEIS,UKRI - AHRC,08/04/2020,T&S UK - Public Transport,SMT,Corporate Travel Management (North) Ltd,98736151,100.60,T&S UK - Public Transport
BEIS,UKRI - AHRC,08/04/2020,T&S UK - Public Transport,SMT,Corporate Travel Management (North) Ltd,98736151,0.25,T&S UK - Public Transport
BEIS,UKRI - AHRC,08/04/2020,T&S UK - Public Transport,SMT,Corporate Travel Management (North) Ltd,98736151,119.50,T&S UK - Public Transport
BEIS,UKRI - AHRC,08/04/2020,T&S UK - Public Transport,SMT,Corporate Travel Management (North) Ltd,98736151,0.25,T&S UK - Public Transport
BEIS,UKRI - AHRC,08/04/2020,T&S UK - Public Transport,SMT,Corporate Travel Management (North) Ltd,98736151,34.70,T&S UK - Public Transport
BEIS,UKRI - AHRC,08/04/2020,T&S UK - Public Transport,SMT,Corporate Travel Management (North) Ltd,98736151,0.25,T&S UK - Public Transport
BEIS,UKRI - AHRC,08/04/2020,T&S UK - Public Transport,SMT,Corporate Travel Management (North) Ltd,98736151,34.70,T&S UK - Public Transport
BEIS,UKRI - AHRC,08/04/2020,T&S UK - Public Transport,SMT,Corporate Travel Management (North) Ltd,98736151,0.25,T&S UK - Public Transport
BEIS,UKRI - AHRC,08/04/2020,T&S UK - Public Transport,SMT,Corporate Travel Management (North) Ltd,98736151,46.90,T&S UK - Public Transport
BEIS,UKRI - AHRC,08/04/2020,T&S UK - Public Transport,SMT,Corporate Travel Management (North) Ltd,98736151,0.25,T&S UK - Public Transport
BEIS,UKRI - AHRC,08/04/2020,T&S UK - Public Transport,SMT,Corporate Travel Management (North) Ltd,98736151,136.80,T&S UK - Public Transport
BEIS,UKRI - AHRC,08/04/2020,T&S UK - Public Transport,SMT,Corporate Travel Management (North) Ltd,98736151,0.25,T&S UK - Public Transport
BEIS,UKRI - AHRC,08/04/2020,T&S UK - Public Transport,SMT,Corporate Travel Management (North) Ltd,98736151,100.60,T&S UK - Public Transport
BEIS,UKRI - AHRC,08/04/2020,T&S UK - Public Transport,SMT,Corporate Travel Management (North) Ltd,98736151,0.25,T&S UK - Public Transport
BEIS,UKRI - AHRC,08/04/2020,T&S UK - Public Transport,SMT,Corporate Travel Management (North) Ltd,98736151,30.70,T&S UK - Public Transport
BEIS,UKRI - AHRC,08/04/2020,T&S UK - Public Transport,SMT,Corporate Travel Management (North) Ltd,98736151,0.50,T&S UK - Public Transport
BEIS,UKRI - AHRC,08/04/2020,T&S UK - Public Transport,SMT,Corporate Travel Management (North) Ltd,98736151,28.10,T&S UK - Public Transport
BEIS,UKRI - AHRC,08/04/2020,T&S UK - Public Transport,SMT,Corporate Travel Management (North) Ltd,98736151,28.10,T&S UK - Public Transport
BEIS,UKRI - AHRC,08/04/2020,T&S UK - Public Transport,SMT,Corporate Travel Management (North) Ltd,98736151,0.25,T&S UK - Public Transport
BEIS,UKRI - AHRC,08/04/2020,T&S UK - Public Transport,SMT,Corporate Travel Management (North) Ltd,98736151,163.60,T&S UK - Public Transport
BEIS,UKRI - AHRC,08/04/2020,T&S UK - Public Transport,SMT,Corporate Travel Management (North) Ltd,98736151,0.25,T&S UK - Public Transport
BEIS,UKRI - AHRC,08/04/2020,T&S UK - Public Transport,SMT,Corporate Travel Management (North) Ltd,98736151,117.50,T&S UK - Public Transport
BEIS,UKRI - AHRC,08/04/2020,T&S UK - Public Transport,SMT,Corporate Travel Management (North) Ltd,98736151,0.25,T&S UK - Public Transport
BEIS,UKRI - AHRC,08/04/2020,T&S UK - Public Transport,SMT,Corporate Travel Management (North) Ltd,98736151,124.10,T&S UK - Public Transport
BEIS,UKRI - AHRC,08/04/2020,T&S UK - Public Transport,SMT,Corporate Travel Management (North) Ltd,98736151,10.00,T&S UK - Public Transport
BEIS,UKRI - AHRC,08/04/2020,T&S UK - Public Transport,SMT,Corporate Travel Management (North) Ltd,98736151,-90.60,T&S UK - Public Transport
BEIS,UKRI - AHRC,08/04/2020,T&S UK - Public Transport,SMT,Corporate Travel Management (North) Ltd,98736151,0.25,T&S UK - Public Transport
BEIS,UKRI - AHRC,08/04/2020,T&S UK - Public Transport,SMT,Corporate Travel Management (North) Ltd,98736151,34.70,T&S UK - Public Transport
BEIS,UKRI - AHRC,08/04/2020,T&S UK - Public Transport,SMT,Corporate Travel Management (North) Ltd,98736151,0.25,T&S UK - Public Transport
BEIS,UKRI - AHRC,08/04/2020,T&S UK - Public Transport,SMT,Corporate Travel Management (North) Ltd,98736151,76.10,T&S UK - Public Transport
BEIS,UKRI - AHRC,08/04/2020,T&S UK - Public Transport,SMT,Corporate Travel Management (North) Ltd,98736151,0.25,T&S UK - Public Transport
BEIS,UKRI - AHRC,08/04/2020,T&S UK - Public Transport,SMT,Corporate Travel Management (North) Ltd,98736151,105.90,T&S UK - Public Transport
BEIS,UKRI - AHRC,08/04/2020,T&S UK - Public Transport,SMT,Corporate Travel Management (North) Ltd,98736151,0.25,T&S UK - Public Transport
BEIS,UKRI - AHRC,08/04/2020,T&S UK - Public Transport,SMT,Corporate Travel Management (North) Ltd,98736151,144.60,T&S UK - Public Transport
BEIS,UKRI - AHRC,08/04/2020,T&S UK - Public Transport,SMT,Corporate Travel Management (North) Ltd,98736151,0.25,T&S UK - Public Transport
BEIS,UKRI - AHRC,08/04/2020,T&S UK - Public Transport,SMT,Corporate Travel Management (North) Ltd,98736151,136.80,T&S UK - Public Transport
BEIS,UKRI - AHRC,08/04/2020,T&S UK - Public Transport,SMT,Corporate Travel Management (North) Ltd,98736151,0.25,T&S UK - Public Transport
BEIS,UKRI - AHRC,08/04/2020,T&S UK - Public Transport,SMT,Corporate Travel Management (North) Ltd,98736151,148.50,T&S UK - Public Transport
BEIS,UKRI - AHRC,08/04/2020,T&S UK - Public Transport,SMT,Corporate Travel Management (North) Ltd,98736151,0.25,T&S UK - Public Transport
BEIS,UKRI - AHRC,08/04/2020,T&S UK - Public Transport,SMT,Corporate Travel Management (North) Ltd,98736151,387.00,T&S UK - Public Transport
BEIS,UKRI - AHRC,08/04/2020,T&S UK - Public Transport,SMT,Corporate Travel Management (North) Ltd,98736151,0.25,T&S UK - Public Transport
BEIS,UKRI - AHRC,08/04/2020,T&S UK - Public Transport,SMT,Corporate Travel Management (North) Ltd,98736151,20.00,T&S UK - Public Transport
BEIS,UKRI - AHRC,08/04/2020,T&S UK - Public Transport,SMT,Corporate Travel Management (North) Ltd,98736151,5.00,T&S UK - Public Transport
BEIS,UKRI - AHRC,08/04/2020,T&S UK - Public Transport,SMT,Corporate Travel Management (North) Ltd,98736151,-41.90,T&S UK - Public Transport
BEIS,UKRI - AHRC,08/04/2020,T&S UK - Public Transport,Skills Strategy,Corporate Travel Management (North) Ltd,98736151,0.50,T&S UK - Public Transport
BEIS,UKRI - AHRC,08/04/2020,T&S UK - Public Transport,Skills Strategy,Corporate Travel Management (North) Ltd,98736151,33.70,T&S UK - Public Transport
BEIS,UKRI - AHRC,08/04/2020,T&S UK - Public Transport,Skills Strategy,Corporate Travel Management (North) Ltd,98736151,52.60,T&S UK - Public Transport
BEIS,UKRI - AHRC,08/04/2020,T&S UK - Public Transport,Skills Strategy,Corporate Travel Management (North) Ltd,98736151,0.25,T&S UK - Public Transport
BEIS,UKRI - AHRC,08/04/2020,T&S UK - Public Transport,Skills Strategy,Corporate Travel Management (North) Ltd,98736151,71.70,T&S UK - Public Transport
BEIS,UKRI - AHRC,08/04/2020,T&S UK - Public Transport,Skills Strategy,Corporate Travel Management (North) Ltd,98736151,0.25,T&S UK - Public Transport
BEIS,UKRI - AHRC,08/04/2020,T&S UK - Public Transport,Skills Strategy,Corporate Travel Management (North) Ltd,98736151,55.50,T&S UK - Public Transport
BEIS,UKRI - AHRC,08/04/2020,T&S UK - Public Transport,Skills Strategy,Corporate Travel Management (North) Ltd,98736151,0.25,T&S UK - Public Transport
BEIS,UKRI - AHRC,08/04/2020,T&S UK - Public Transport,Skills Strategy,Corporate Travel Management (North) Ltd,98736151,36.65,T&S UK - Public Transport
BEIS,UKRI - AHRC,08/04/2020,T&S UK - Public Transport,Skills Strategy,Corporate Travel Management (North) Ltd,98736151,0.50,T&S UK - Public Transport
BEIS,UKRI - AHRC,08/04/2020,T&S UK - Public Transport,Skills Strategy,Corporate Travel Management (North) Ltd,98736151,32.60,T&S UK - Public Transport
BEIS,UKRI - AHRC,08/04/2020,T&S UK - Public Transport,Skills Strategy,Corporate Travel Management (North) Ltd,98736151,39.40,T&S UK - Public Transport
BEIS,UKRI - AHRC,08/04/2020,T&S UK - Public Transport,Skills Strategy,Corporate Travel Management (North) Ltd,98736151,0.25,T&S UK - Public Transport
BEIS,UKRI - AHRC,08/04/2020,T&S UK - Public Transport,Skills Strategy,Corporate Travel Management (North) Ltd,98736151,36.65,T&S UK - Public Transport
BEIS,UKRI - AHRC,08/04/2020,T&S UK - Public Transport,Skills Strategy,Corporate Travel Management (North) Ltd,98736151,0.25,T&S UK - Public Transport
BEIS,UKRI - AHRC,08/04/2020,T&S UK - Public Transport,Skills Strategy,Corporate Travel Management (North) Ltd,98736151,167.40,T&S UK - Public Transport
BEIS,UKRI - AHRC,08/04/2020,T&S UK - Public Transport,Skills Strategy,Corporate Travel Management (North) Ltd,98736151,0.25,T&S UK - Public Transport
BEIS,UKRI - AHRC,08/04/2020,T&S UK - Public Transport,Skills Strategy,Corporate Travel Management (North) Ltd,98736151,192.30,T&S UK - Public Transport
BEIS,UKRI - AHRC,08/04/2020,T&S UK - Public Transport,Skills Strategy,Corporate Travel Management (North) Ltd,98736151,0.25,T&S UK - Public Transport
BEIS,UKRI - AHRC,08/04/2020,T&S UK - Public Transport,Skills Strategy,Corporate Travel Management (North) Ltd,98736151,190.15,T&S UK - Public Transport
BEIS,UKRI - AHRC,08/04/2020,T&S UK - Public Transport,Skills Strategy,Corporate Travel Management (North) Ltd,98736151,0.25,T&S UK - Public Transport
BEIS,UKRI - AHRC,08/04/2020,T&S UK - Public Transport,Skills Strategy,Corporate Travel Management (North) Ltd,98736151,4.10,T&S UK - Public Transport
BEIS,UKRI - AHRC,08/04/2020,T&S UK - Public Transport,Skills Strategy,Corporate Travel Management (North) Ltd,98736151,0.25,T&S UK - Public Transport
BEIS,UKRI - AHRC,08/04/2020,T&S UK - Public Transport,Skills Strategy,Corporate Travel Management (North) Ltd,98736151,86.60,T&S UK - Public Transport
BEIS,UKRI - AHRC,08/04/2020,T&S UK - Public Transport,Skills Strategy,Corporate Travel Management (North) Ltd,98736151,0.25,T&S UK - Public Transport
BEIS,UKRI - AHRC,08/04/2020,T&S UK - Public Transport,Skills Strategy,Corporate Travel Management (North) Ltd,98736151,17.00,T&S UK - Public Transport
BEIS,UKRI - AHRC,08/04/2020,T&S UK - Other Charges,International Development and Area Studies,Unspecified,98736444,198.86,T&S UK - Other Charges
BEIS,UKRI - AHRC,09/04/2020,Recruitment Costs,Corporate Services,Agenda Resource Management Ltd,98730804,158.52,Recruitment Costs
BEIS,UKRI - AHRC,09/04/2020,Recruitment Costs,Corporate Services,Agenda Resource Management Ltd,98730804,113.72,Recruitment Costs
BEIS,UKRI - AHRC,09/04/2020,Recruitment Costs,Corporate Services,Agenda Resource Management Ltd,98730804,3.32,Recruitment Costs
BEIS,UKRI - AHRC,09/04/2020,T&S UK - Accommodation,SMT,Unspecified,98735911,142.00,T&S UK - Accommodation
BEIS,UKRI - AHRC,09/04/2020,T&S UK - Public Transport,SMT,Unspecified,98735911,30.50,T&S UK - Public Transport
BEIS,UKRI - AHRC,09/04/2020,T&S UK - Subsistence,SMT,Unspecified,98735911,19.02,T&S UK - Subsistence
BEIS,UKRI - AHRC,09/04/2020,T&S UK - Subsistence,SMT,Unspecified,98735911,22.00,T&S UK - Subsistence
BEIS,UKRI - AHRC,09/04/2020,T&S UK - Subsistence,SMT,Unspecified,98735911,5.00,T&S UK - Subsistence
BEIS,UKRI - AHRC,09/04/2020,T&S UK - Subsistence,SMT,Unspecified,98735911,3.70,T&S UK - Subsistence
BEIS,UKRI - AHRC,09/04/2020,Non-staff travel and subsistance,SMT,Unspecified,98736601,179.99,Non-staff travel and subsistance
BEIS,UKRI - AHRC,14/04/2020,Research Grant Expenditure,Global Uncertainties Programme,UKRI - Economic & Social Research Council,98565831,35210.40,Research Grant Expenditure
BEIS,UKRI - AHRC,14/04/2020,Research Grant Expenditure,GCRF - Programme Delivery,UKRI - Economic & Social Research Council,98722585,31944.00,Research Grant Expenditure
BEIS,UKRI - AHRC,14/04/2020,Recharges From Councils - General,Finance,UKRI - Engineering & Physical Sciences Research Council,98736604,30576.75,Recharges From Councils - General
BEIS,UKRI - AHRC,14/04/2020,Unspecified,Balance Sheet,HM Revenue & Customs,98736818,48957.50,NI Payable Salaries
BEIS,UKRI - AHRC,14/04/2020,Unspecified,Balance Sheet,HM Revenue & Customs,98736819,41341.93,PAYE Payable Salaries
BEIS,UKRI - AHRC,14/04/2020,Unspecified,Balance Sheet,HM Revenue & Customs,98736820,4668.00,Student Loans
BEIS,UKRI - AHRC,14/04/2020,Unspecified,Corporate Services,HM Revenue & Customs,98736821,1360.00,Apprenticeship Levy
BEIS,UKRI - AHRC,14/04/2020,Staff Training,Corporate Services,UKRI - Engineering & Physical Sciences Research Council,98737425,37.92,Staff Training
BEIS,UKRI - AHRC,14/04/2020,Fees (Including College Members),Executive Office,Unspecified,98738070,910.50,Fees (Including College Members)
BEIS,UKRI - AHRC,14/04/2020,Non-staff travel and subsistance,Operations,Unspecified,98738071,52.38,Non-staff travel and subsistance
BEIS,UKRI - AHRC,15/04/2020,Research Grant Expenditure,Digital Arts and Humanities and Creative Industries,The Nuffield Foundation,98731822,50000.00,Research Grant Expenditure
BEIS,UKRI - AHRC,15/04/2020,Catering Contracts,Funds for International Collaboration (FIC 20 US),Smithsonian Institution,98735615,4918.84,Catering Contracts
BEIS,UKRI - AHRC,15/04/2020,Voluntary Deductions,Balance Sheet,Chargive,98736822,570.83,Voluntary Deductions
BEIS,UKRI - AHRC,15/04/2020,Union Deductions,Balance Sheet,PCS Union,98736824,82.18,Union Deductions
BEIS,UKRI - AHRC,15/04/2020,Unspecified,Balance Sheet,Unspecified,98736825,6.10,Ees Pension Deductions - JSS
BEIS,UKRI - AHRC,15/04/2020,Unspecified,Balance Sheet,Scottish Widows,98736826,323.87,Partnership Pension Deductions
BEIS,UKRI - AHRC,15/04/2020,Unspecified,Balance Sheet,Cabinet Office RM Shared Services,98736827,12.83,Ers Pension Deductions - JSS
BEIS,UKRI - AHRC,15/04/2020,Unspecified,Balance Sheet,Cabinet Office RM Shared Services,98736828,5807.17,Ees Pension Deductions - MyCSP
BEIS,UKRI - AHRC,15/04/2020,Unspecified,Balance Sheet,Cabinet Office RM Shared Services,98736829,29498.02,Ers Pension Deductions - MyCSP
BEIS,UKRI - AHRC,15/04/2020,Ees Pension Deductions - MRC,Balance Sheet,UKRI - Medical Research Council,98736830,134.32,Ees Pension Deductions - MRC
BEIS,UKRI - AHRC,15/04/2020,Ers Pension Deductions - MRC,Balance Sheet,UKRI - Medical Research Council,98736831,309.96,Ers Pension Deductions - MRC
BEIS,UKRI - AHRC,15/04/2020,T&S UK - Other Charges,SMT,Unspecified,98738508,172.64,T&S UK - Other Charges
BEIS,UKRI - AHRC,15/04/2020,T&S UK - Other Charges,SMT,Unspecified,98738509,225.19,T&S UK - Other Charges
BEIS,UKRI - AHRC,15/04/2020,T&S UK - Other Charges,SMT,Unspecified,98738510,2.40,T&S UK - Other Charges
BEIS,UKRI - AHRC,15/04/2020,T&S UK - Public Transport,SMT,Unspecified,98738510,10.00,T&S UK - Public Transport
BEIS,UKRI - AHRC,15/04/2020,T&S UK - Subsistence,SMT,Unspecified,98738510,21.54,T&S UK - Subsistence
BEIS,UKRI - AHRC,15/04/2020,T&S UK - Subsistence,SMT,Unspecified,98738510,5.15,T&S UK - Subsistence
BEIS,UKRI - AHRC,15/04/2020,T&S Overseas - Other Charges,SMT,Unspecified,98738511,3.64,T&S Overseas - Other Charges
BEIS,UKRI - AHRC,15/04/2020,T&S Overseas - Subsistence,SMT,Unspecified,98738511,5.15,T&S Overseas - Subsistence
BEIS,UKRI - AHRC,16/04/2020,Non-staff travel and subsistance,Operations,Unspecified,98737747,34.80,Non-staff travel and subsistance
BEIS,UKRI - AHRC,16/04/2020,Non-staff travel and subsistance,Funds for International Collaboration (FIC 20 US),Unspecified,98737748,1750.00,Non-staff travel and subsistance
BEIS,UKRI - AHRC,16/04/2020,Hospitality,Industrial Strategy Challenge Fund (ISCF) - Creative Clusters,Cardiff University,98737776,130.55,Hospitality
BEIS,UKRI - AHRC,16/04/2020,Unspecified,PSU Project Office,Alexander Mann Solutions Ltd,98738305,2795.58,Contract Staff
BEIS,UKRI - AHRC,16/04/2020,Non-staff travel and subsistance,Operations,Unspecified,98738618,36.50,Non-staff travel and subsistance
BEIS,UKRI - AHRC,16/04/2020,Non-staff travel and subsistance,Operations,Unspecified,98738619,36.90,Non-staff travel and subsistance
BEIS,UKRI - AHRC,16/04/2020,Meetings & Catering,SMT,Harbour & Jones Ltd T/A Dartmouth House,98738631,50.40,Meetings & Catering
BEIS,UKRI - AHRC,16/04/2020,T&S UK - Public Transport,International,Unspecified,98738823,15.00,T&S UK - Public Transport
BEIS,UKRI - AHRC,16/04/2020,T&S UK - Subsistence,International,Unspecified,98738823,19.26,T&S UK - Subsistence
BEIS,UKRI - AHRC,16/04/2020,T&S UK - Subsistence,International,Unspecified,98738823,20.00,T&S UK - Subsistence
BEIS,UKRI - AHRC,17/04/2020,Conferences & Seminars,SMT,Westminster Forum Projects Ltd,98739016,276.00,Conferences & Seminars
BEIS,UKRI - AHRC,17/04/2020,Unspecified,PSU Project Office,Alexander Mann Solutions Ltd,98739125,2236.46,Contract Staff
BEIS,UKRI - AHRC,17/04/2020,Non-staff travel and subsistance,Funds for International Collaboration (FIC 21 China),Unspecified,98739131,1168.10,Non-staff travel and subsistance
BEIS,UKRI - AHRC,17/04/2020,Non-staff travel and subsistance,Funds for International Collaboration (FIC 21 China),Unspecified,98739132,1056.11,Non-staff travel and subsistance
BEIS,UKRI - AHRC,17/04/2020,Non-staff travel and subsistance,Operations,Unspecified,98739190,47.42,Non-staff travel and subsistance
BEIS,UKRI - AHRC,17/04/2020,Non-staff travel and subsistance,Operations,Unspecified,98739191,71.70,Non-staff travel and subsistance
BEIS,UKRI - AHRC,17/04/2020,Non-staff travel and subsistance,Digital Arts and Humanities and Creative Industries,Unspecified,98739192,69.10,Non-staff travel and subsistance
BEIS,UKRI - AHRC,17/04/2020,Non-staff travel and subsistance,SMT,Unspecified,98739193,51.89,Non-staff travel and subsistance
BEIS,UKRI - AHRC,17/04/2020,Non-staff travel and subsistance,SMT,Unspecified,98739194,160.02,Non-staff travel and subsistance
BEIS,UKRI - AHRC,17/04/2020,Non-staff travel and subsistance,SMT,Unspecified,98739195,481.73,Non-staff travel and subsistance
BEIS,UKRI - AHRC,17/04/2020,Non-staff travel and subsistance,SMT,Unspecified,98739196,124.00,Non-staff travel and subsistance
BEIS,UKRI - AHRC,17/04/2020,Non-staff travel and subsistance,Operations,Unspecified,98739197,146.40,Non-staff travel and subsistance
BEIS,UKRI - AHRC,17/04/2020,T&S UK - Other Charges,Operations,Unspecified,98739235,92.78,T&S UK - Other Charges
BEIS,UKRI - AHRC,17/04/2020,T&S UK - Other Charges,Operations,Unspecified,98739236,65.56,T&S UK - Other Charges
BEIS,UKRI - AHRC,20/04/2020,Training Awards - Postgraduates,BGP Award,"Royal Holloway, University of London",98734867,413580.52,Training Awards - Postgraduates
BEIS,UKRI - AHRC,20/04/2020,Training Awards - Postgraduates,BGP Award,University of the West of England,98734868,67246.73,Training Awards - Postgraduates
BEIS,UKRI - AHRC,20/04/2020,Training Awards - Postgraduates,BGP Award,University of Hull,98734869,51728.25,Training Awards - Postgraduates
BEIS,UKRI - AHRC,20/04/2020,Training Awards - Postgraduates,BGP Award,University College London,98734870,74876.55,Training Awards - Postgraduates
BEIS,UKRI - AHRC,20/04/2020,Training Awards - Postgraduates,BGP Award,University College London,98734871,546991.20,Training Awards - Postgraduates
BEIS,UKRI - AHRC,20/04/2020,Training Awards - Postgraduates,BGP Award,University of Oxford,98734872,413826.00,Training Awards - Postgraduates
BEIS,UKRI - AHRC,20/04/2020,Training Awards - Postgraduates,BGP Award,University of Glasgow,98734873,413826.00,Training Awards - Postgraduates
BEIS,UKRI - AHRC,20/04/2020,Training Awards - Postgraduates,BGP Award,University of Newcastle Upon Tyne,98734874,2097.05,Training Awards - Postgraduates
BEIS,UKRI - AHRC,20/04/2020,Training Awards - Postgraduates,BGP Award,University of Newcastle Upon Tyne,98734874,2097.05,Training Awards - Postgraduates
BEIS,UKRI - AHRC,20/04/2020,Training Awards - Postgraduates,BGP Award,University of Newcastle Upon Tyne,98734874,320715.15,Training Awards - Postgraduates
BEIS,UKRI - AHRC,20/04/2020,Training Awards - Postgraduates,BGP Award,University of Newcastle Upon Tyne,98734874,2097.05,Training Awards - Postgraduates
BEIS,UKRI - AHRC,20/04/2020,Training Awards - Postgraduates,BGP Award,University of Newcastle Upon Tyne,98734874,2097.05,Training Awards - Postgraduates
BEIS,UKRI - AHRC,20/04/2020,Training Awards - Postgraduates,BGP Award,University of Bristol GRANT,98734875,413826.00,Training Awards - Postgraduates
BEIS,UKRI - AHRC,20/04/2020,Training Awards - Postgraduates,BGP Award,University of Glasgow,98734876,51728.25,Training Awards - Postgraduates
BEIS,UKRI - AHRC,20/04/2020,Training Awards - Postgraduates,BGP Award,Northumbria University,98734877,31036.95,Training Awards - Postgraduates
BEIS,UKRI - AHRC,20/04/2020,Training Awards - Postgraduates,BGP Award,Northumbria University,98734877,3152.90,Training Awards - Postgraduates
BEIS,UKRI - AHRC,20/04/2020,Training Awards - Postgraduates,BGP Award,The University of Manchester,98734878,413826.00,Training Awards - Postgraduates
BEIS,UKRI - AHRC,20/04/2020,Training Awards - Postgraduates,BGP Award,University of Cambridge,98734879,413826.00,Training Awards - Postgraduates
BEIS,UKRI - AHRC,20/04/2020,Training Awards - Postgraduates,BGP Award,University of Reading,98734880,63533.40,Training Awards - Postgraduates
BEIS,UKRI - AHRC,20/04/2020,Training Awards - Postgraduates,BGP Award,University of Sussex,98734881,489528.90,Training Awards - Postgraduates
BEIS,UKRI - AHRC,20/04/2020,Training Awards - Postgraduates,BGP Award,University of Nottingham,98734882,424171.65,Training Awards - Postgraduates
BEIS,UKRI - AHRC,20/04/2020,Training Awards - Postgraduates,BGP Award,University of York,98734883,558665.10,Training Awards - Postgraduates
BEIS,UKRI - AHRC,20/04/2020,Training Awards - Postgraduates,BGP Award,Royal College of Art,98734884,68373.90,Training Awards - Postgraduates
BEIS,UKRI - AHRC,20/04/2020,Training Awards - Postgraduates,Collabrative Doctoral Grants - Block Payment,University of Liverpool,98734885,5040.25,Training Awards - Postgraduates
BEIS,UKRI - AHRC,20/04/2020,Training Awards - Postgraduates,Collabrative Doctoral Grants - Block Payment,University of Central Lancashire,98734886,5064.00,Training Awards - Postgraduates
BEIS,UKRI - AHRC,20/04/2020,Training Awards - Postgraduates,Collabrative Doctoral Grants - Block Payment,University of St Andrews,98734887,2532.01,Training Awards - Postgraduates
BEIS,UKRI - AHRC,20/04/2020,Training Awards - Postgraduates,Collabrative Doctoral Grants - Block Payment,University of Glasgow,98734888,2532.01,Training Awards - Postgraduates
BEIS,UKRI - AHRC,20/04/2020,Training Awards - Postgraduates,Collabrative Doctoral Grants - Block Payment,University of Glasgow,98734889,2532.01,Training Awards - Postgraduates
BEIS,UKRI - AHRC,20/04/2020,Training Awards - Postgraduates,Collabrative Doctoral Grants - Block Payment,University of Liverpool,98734890,5064.00,Training Awards - Postgraduates
BEIS,UKRI - AHRC,20/04/2020,Training Awards - Postgraduates,Collabrative Doctoral Grants - Block Payment,University of Sheffield,98734891,2532.01,Training Awards - Postgraduates
BEIS,UKRI - AHRC,20/04/2020,Training Awards - Postgraduates,Collabrative Doctoral Grants - Block Payment,University of Huddersfield,98734892,2532.01,Training Awards - Postgraduates
BEIS,UKRI - AHRC,20/04/2020,Training Awards - Postgraduates,Collabrative Doctoral Grants - Block Payment,University College London,98734893,2782.01,Training Awards - Postgraduates
BEIS,UKRI - AHRC,20/04/2020,Training Awards - Postgraduates,Collabrative Doctoral Grants - Block Payment,University of York,98734894,5064.00,Training Awards - Postgraduates
BEIS,UKRI - AHRC,20/04/2020,Training Awards - Postgraduates,Collabrative Doctoral Grants - Block Payment,Coventry University,98734895,2532.01,Training Awards - Postgraduates
BEIS,UKRI - AHRC,20/04/2020,Training Awards - Postgraduates,Collabrative Doctoral Grants - Block Payment,University of Liverpool,98734896,5064.00,Training Awards - Postgraduates
BEIS,UKRI - AHRC,20/04/2020,Training Awards - Postgraduates,Collabrative Doctoral Grants - Block Payment,University of Nottingham,98734897,2532.01,Training Awards - Postgraduates
BEIS,UKRI - AHRC,20/04/2020,Training Awards - Postgraduates,Collabrative Doctoral Grants - Block Payment,University of the Highlands and Islands,98734898,2532.01,Training Awards - Postgraduates
BEIS,UKRI - AHRC,20/04/2020,Training Awards - Postgraduates,Collabrative Doctoral Grants - Block Payment,University College London,98734899,2782.01,Training Awards - Postgraduates
BEIS,UKRI - AHRC,20/04/2020,Training Awards - Postgraduates,Collabrative Doctoral Grants - Block Payment,University of Durham,98734900,2532.01,Training Awards - Postgraduates
BEIS,UKRI - AHRC,20/04/2020,Training Awards - Postgraduates,Collabrative Doctoral Grants - Block Payment,University of Liverpool,98734901,7596.01,Training Awards - Postgraduates
BEIS,UKRI - AHRC,20/04/2020,Training Awards - Postgraduates,Collabrative Doctoral Grants - Block Payment,London South Bank University,98734902,2782.01,Training Awards - Postgraduates
BEIS,UKRI - AHRC,20/04/2020,Training Awards - Postgraduates,Collabrative Doctoral Grants - Block Payment,University of Nottingham,98734903,2532.01,Training Awards - Postgraduates
BEIS,UKRI - AHRC,20/04/2020,Training Awards - Postgraduates,Collabrative Doctoral Grants - Block Payment,Queen Mary University of London,98734904,2782.01,Training Awards - Postgraduates
BEIS,UKRI - AHRC,20/04/2020,Training Awards - Postgraduates,Collabrative Doctoral Grants - Block Payment,Cardiff University,98734905,2532.01,Training Awards - Postgraduates
BEIS,UKRI - AHRC,20/04/2020,Training Awards - Postgraduates,Collabrative Doctoral Grants - Block Payment,"Royal Holloway, University of London",98734906,2782.01,Training Awards - Postgraduates
BEIS,UKRI - AHRC,20/04/2020,Training Awards - Postgraduates,Collabrative Doctoral Grants - Block Payment,Queen Mary University of London,98734907,2782.01,Training Awards - Postgraduates
BEIS,UKRI - AHRC,20/04/2020,Training Awards - Postgraduates,Collabrative Doctoral Grants - Block Payment,"Royal Holloway, University of London",98734908,2782.01,Training Awards - Postgraduates
BEIS,UKRI - AHRC,20/04/2020,Training Awards - Postgraduates,Collabrative Doctoral Grants - Block Payment,University of York,98734909,2532.01,Training Awards - Postgraduates
BEIS,UKRI - AHRC,20/04/2020,Training Awards - Postgraduates,Collabrative Doctoral Grants - Block Payment,University of Warwick,98734910,2532.01,Training Awards - Postgraduates
BEIS,UKRI - AHRC,20/04/2020,Training Awards - Postgraduates,Collabrative Doctoral Grants - Block Payment,Birkbeck College,98734911,2782.01,Training Awards - Postgraduates
BEIS,UKRI - AHRC,20/04/2020,Training Awards - Postgraduates,Collabrative Doctoral Grants - Block Payment,University of Cambridge,98734912,2532.01,Training Awards - Postgraduates
BEIS,UKRI - AHRC,20/04/2020,Training Awards - Postgraduates,Collabrative Doctoral Grants - Block Payment,University of Kent,98734913,2532.01,Training Awards - Postgraduates
BEIS,UKRI - AHRC,20/04/2020,Training Awards - Postgraduates,Collabrative Doctoral Grants - Block Payment,University of Lincoln,98734914,2532.00,Training Awards - Postgraduates
BEIS,UKRI - AHRC,20/04/2020,Training Awards - Postgraduates,Collabrative Doctoral Grants - Block Payment,University of Brighton,98734915,2532.01,Training Awards - Postgraduates
BEIS,UKRI - AHRC,20/04/2020,Training Awards - Postgraduates,Collabrative Doctoral Grants - Block Payment,Swansea University,98734916,2532.01,Training Awards - Postgraduates
BEIS,UKRI - AHRC,20/04/2020,Training Awards - Postgraduates,Collabrative Doctoral Grants - Block Payment,Bath Spa University,98734917,2532.00,Training Awards - Postgraduates
BEIS,UKRI - AHRC,20/04/2020,Training Awards - Postgraduates,Collabrative Doctoral Grants - Block Payment,University of Leeds,98734918,2532.01,Training Awards - Postgraduates
BEIS,UKRI - AHRC,20/04/2020,Training Awards - Postgraduates,Collabrative Doctoral Grants - Block Payment,University of Brighton,98734919,2532.01,Training Awards - Postgraduates
BEIS,UKRI - AHRC,20/04/2020,Training Awards - Postgraduates,Collabrative Doctoral Grants - Block Payment,University of Leeds,98734920,2532.01,Training Awards - Postgraduates
BEIS,UKRI - AHRC,20/04/2020,Training Awards - Postgraduates,Collabrative Doctoral Grants - Block Payment,University of Durham,98734921,2532.00,Training Awards - Postgraduates
BEIS,UKRI - AHRC,20/04/2020,Training Awards - Postgraduates,Collabrative Doctoral Grants - Block Payment,Manchester Metropolitan University,98734922,2532.01,Training Awards - Postgraduates
BEIS,UKRI - AHRC,20/04/2020,Training Awards - Postgraduates,Collabrative Doctoral Grants - Block Payment,University of Durham,98734923,2532.01,Training Awards - Postgraduates
BEIS,UKRI - AHRC,20/04/2020,Training Awards - Postgraduates,Collabrative Doctoral Grants - Block Payment,Courtauld Institute of Art,98734924,5463.75,Training Awards - Postgraduates
BEIS,UKRI - AHRC,20/04/2020,Training Awards - Postgraduates,Collabrative Doctoral Grants - Block Payment,Courtauld Institute of Art,98734924,2782.01,Training Awards - Postgraduates
BEIS,UKRI - AHRC,20/04/2020,Training Awards - Postgraduates,Collabrative Doctoral Grants - Block Payment,Courtauld Institute of Art,98734924,2782.01,Training Awards - Postgraduates
BEIS,UKRI - AHRC,20/04/2020,Training Awards - Postgraduates,Collabrative Doctoral Grants - Block Payment,University of Reading,98734925,2532.01,Training Awards - Postgraduates
BEIS,UKRI - AHRC,20/04/2020,Training Awards - Postgraduates,Collabrative Doctoral Grants - Block Payment,University of Bristol GRANT,98734926,2532.01,Training Awards - Postgraduates
BEIS,UKRI - AHRC,20/04/2020,Training Awards - Postgraduates,Collabrative Doctoral Grants - Block Payment,Royal College of Art,98734927,2782.01,Training Awards - Postgraduates
BEIS,UKRI - AHRC,20/04/2020,Training Awards - Postgraduates,Collabrative Doctoral Grants - Block Payment,University of Newcastle Upon Tyne,98734928,2532.01,Training Awards - Postgraduates
BEIS,UKRI - AHRC,20/04/2020,Training Awards - Postgraduates,Collabrative Doctoral Grants - Block Payment,University of Bedfordshire,98734929,2532.01,Training Awards - Postgraduates
BEIS,UKRI - AHRC,20/04/2020,Training Awards - Postgraduates,Collabrative Doctoral Grants - Block Payment,Guildhall School of Music & Drama,98734930,2782.01,Training Awards - Postgraduates
BEIS,UKRI - AHRC,20/04/2020,Training Awards - Postgraduates,Collabrative Doctoral Grants - Block Payment,The University of Manchester,98734931,2532.01,Training Awards - Postgraduates
BEIS,UKRI - AHRC,20/04/2020,Training Awards - Postgraduates,Collabrative Doctoral Grants - Block Payment,University of Glasgow,98734932,2532.01,Training Awards - Postgraduates
BEIS,UKRI - AHRC,20/04/2020,Training Awards - Postgraduates,Collabrative Doctoral Grants - Block Payment,University College London,98734933,2782.01,Training Awards - Postgraduates
BEIS,UKRI - AHRC,20/04/2020,Training Awards - Postgraduates,Collabrative Doctoral Grants - Block Payment,University of Leicester,98734934,2532.01,Training Awards - Postgraduates
BEIS,UKRI - AHRC,20/04/2020,Training Awards - Postgraduates,Collabrative Doctoral Grants - Block Payment,The University of Manchester,98734935,2532.01,Training Awards - Postgraduates
BEIS,UKRI - AHRC,20/04/2020,Training Awards - Postgraduates,Collabrative Doctoral Grants - Block Payment,Heriot Watt University,98734936,2532.01,Training Awards - Postgraduates
BEIS,UKRI - AHRC,20/04/2020,Training Awards - Postgraduates,Collabrative Doctoral Grants - Block Payment,University of Cambridge,98734937,2532.01,Training Awards - Postgraduates
BEIS,UKRI - AHRC,20/04/2020,Training Awards - Postgraduates,Collabrative Doctoral Grants - Block Payment,University of Northampton,98734938,2532.00,Training Awards - Postgraduates
BEIS,UKRI - AHRC,20/04/2020,Training Awards - Postgraduates,Collabrative Doctoral Grants - Block Payment,Queen Mary University of London,98734939,2782.01,Training Awards - Postgraduates
BEIS,UKRI - AHRC,20/04/2020,Training Awards - Postgraduates,Collabrative Doctoral Grants - Block Payment,University of York,98734940,2532.01,Training Awards - Postgraduates
BEIS,UKRI - AHRC,20/04/2020,Training Awards - Postgraduates,Collabrative Doctoral Grants - Block Payment,University of Leeds,98734941,2532.01,Training Awards - Postgraduates
BEIS,UKRI - AHRC,20/04/2020,Training Awards - Postgraduates,Collabrative Doctoral Grants - Block Payment,"City, University of London",98734942,2782.01,Training Awards - Postgraduates
BEIS,UKRI - AHRC,20/04/2020,Training Awards - Postgraduates,Collabrative Doctoral Grants - Block Payment,University of Bradford,98734943,2532.01,Training Awards - Postgraduates
BEIS,UKRI - AHRC,20/04/2020,Training Awards - Postgraduates,Collabrative Doctoral Grants - Block Payment,Birkbeck College,98734944,2782.01,Training Awards - Postgraduates
BEIS,UKRI - AHRC,20/04/2020,Training Awards - Postgraduates,Collabrative Doctoral Grants - Block Payment,University of Bristol GRANT,98734945,2532.01,Training Awards - Postgraduates
BEIS,UKRI - AHRC,20/04/2020,Training Awards - Postgraduates,Collabrative Doctoral Grants - Block Payment,Queen Mary University of London,98734946,2782.01,Training Awards - Postgraduates
BEIS,UKRI - AHRC,20/04/2020,Training Awards - Postgraduates,Collabrative Doctoral Grants - Block Payment,University of Edinburgh,98734947,2532.01,Training Awards - Postgraduates
BEIS,UKRI - AHRC,20/04/2020,Training Awards - Postgraduates,Collabrative Doctoral Grants - Block Payment,University College London,98734948,2782.01,Training Awards - Postgraduates
BEIS,UKRI - AHRC,20/04/2020,Training Awards - Postgraduates,Collabrative Doctoral Grants - Block Payment,University of Edinburgh,98734949,5057.75,Training Awards - Postgraduates
BEIS,UKRI - AHRC,20/04/2020,Training Awards - Postgraduates,Collabrative Doctoral Grants - Block Payment,University of Oxford,98734950,5064.00,Training Awards - Postgraduates
BEIS,UKRI - AHRC,20/04/2020,Training Awards - Postgraduates,Collabrative Doctoral Grants - Block Payment,Nottingham Trent University,98734951,5064.00,Training Awards - Postgraduates
BEIS,UKRI - AHRC,20/04/2020,Training Awards - Postgraduates,Collabrative Doctoral Grants - Block Payment,"Royal Holloway, University of London",98735952,5564.00,Training Awards - Postgraduates
BEIS,UKRI - AHRC,20/04/2020,Training Awards - Postgraduates,Collabrative Doctoral Grants - Block Payment,Nottingham Trent University,98735953,5064.00,Training Awards - Postgraduates
BEIS,UKRI - AHRC,20/04/2020,Training Awards - Postgraduates,Collabrative Doctoral Grants - Block Payment,University of Sheffield,98735954,5064.00,Training Awards - Postgraduates
BEIS,UKRI - AHRC,20/04/2020,Training Awards - Postgraduates,Collabrative Doctoral Grants - Block Payment,University of Kent,98735955,5064.00,Training Awards - Postgraduates
BEIS,UKRI - AHRC,20/04/2020,Training Awards - Postgraduates,Collabrative Doctoral Grants - Block Payment,Birkbeck College,98735956,5564.00,Training Awards - Postgraduates
BEIS,UKRI - AHRC,20/04/2020,Training Awards - Postgraduates,Collabrative Doctoral Grants - Block Payment,University of Wolverhampton,98735957,5064.00,Training Awards - Postgraduates
BEIS,UKRI - AHRC,20/04/2020,Training Awards - Postgraduates,Collabrative Doctoral Grants - Block Payment,University of Edinburgh,98735958,5064.00,Training Awards - Postgraduates
BEIS,UKRI - AHRC,20/04/2020,Training Awards - Postgraduates,Collabrative Doctoral Grants - Block Payment,University of Bristol GRANT,98735959,5064.00,Training Awards - Postgraduates
BEIS,UKRI - AHRC,20/04/2020,Training Awards - Postgraduates,Collabrative Doctoral Grants - Block Payment,University of Edinburgh,98735960,5064.00,Training Awards - Postgraduates
BEIS,UKRI - AHRC,20/04/2020,Training Awards - Postgraduates,Collabrative Doctoral Grants - Block Payment,University of Durham,98735961,5064.00,Training Awards - Postgraduates
BEIS,UKRI - AHRC,20/04/2020,Training Awards - Postgraduates,Collabrative Doctoral Grants - Block Payment,University of Leeds,98735962,5064.00,Training Awards - Postgraduates
BEIS,UKRI - AHRC,20/04/2020,Training Awards - Postgraduates,Collabrative Doctoral Grants - Block Payment,University of Leicester,98735963,5064.00,Training Awards - Postgraduates
BEIS,UKRI - AHRC,20/04/2020,Training Awards - Postgraduates,Collabrative Doctoral Grants - Block Payment,University of Stirling,98735964,5064.00,Training Awards - Postgraduates
BEIS,UKRI - AHRC,20/04/2020,Training Awards - Postgraduates,Collabrative Doctoral Grants - Block Payment,University of Leeds,98735965,5064.00,Training Awards - Postgraduates
BEIS,UKRI - AHRC,20/04/2020,Training Awards - Postgraduates,Collabrative Doctoral Grants - Block Payment,University of St Andrews,98735966,5064.00,Training Awards - Postgraduates
BEIS,UKRI - AHRC,20/04/2020,Training Awards - Postgraduates,Collabrative Doctoral Grants - Block Payment,University of Leicester,98735967,5064.00,Training Awards - Postgraduates
BEIS,UKRI - AHRC,20/04/2020,Training Awards - Postgraduates,Collabrative Doctoral Grants - Block Payment,University of Central Lancashire,98735968,5064.00,Training Awards - Postgraduates
BEIS,UKRI - AHRC,20/04/2020,Training Awards - Postgraduates,Collabrative Doctoral Grants - Block Payment,University of Sussex,98735969,5064.00,Training Awards - Postgraduates
BEIS,UKRI - AHRC,20/04/2020,Training Awards - Postgraduates,Collabrative Doctoral Grants - Block Payment,University of Exeter,98735970,5064.00,Training Awards - Postgraduates
BEIS,UKRI - AHRC,20/04/2020,Training Awards - Postgraduates,Collabrative Doctoral Grants - Block Payment,University of Edinburgh,98735971,5064.00,Training Awards - Postgraduates
BEIS,UKRI - AHRC,20/04/2020,Training Awards - Postgraduates,Collabrative Doctoral Grants - Block Payment,University of Nottingham,98735972,5064.00,Training Awards - Postgraduates
BEIS,UKRI - AHRC,20/04/2020,Training Awards - Postgraduates,Collabrative Doctoral Grants - Block Payment,University of Glasgow,98735973,5064.00,Training Awards - Postgraduates
BEIS,UKRI - AHRC,20/04/2020,Training Awards - Postgraduates,Collabrative Doctoral Grants - Block Payment,University College London,98735974,5564.00,Training Awards - Postgraduates
BEIS,UKRI - AHRC,20/04/2020,Training Awards - Postgraduates,Collabrative Doctoral Grants - Block Payment,University of Birmingham GRANT,98735975,5064.00,Training Awards - Postgraduates
BEIS,UKRI - AHRC,20/04/2020,Training Awards - Postgraduates,Collabrative Doctoral Grants - Block Payment,Birkbeck College,98735976,5564.00,Training Awards - Postgraduates
BEIS,UKRI - AHRC,20/04/2020,Training Awards - Postgraduates,Collabrative Doctoral Grants - Block Payment,University of Oxford,98735977,5064.00,Training Awards - Postgraduates
BEIS,UKRI - AHRC,20/04/2020,Training Awards - Postgraduates,Collabrative Doctoral Grants - Block Payment,University of London,98735978,5564.00,Training Awards - Postgraduates
BEIS,UKRI - AHRC,20/04/2020,Training Awards - Postgraduates,Collabrative Doctoral Grants - Block Payment,University of Leicester,98735979,5064.00,Training Awards - Postgraduates
BEIS,UKRI - AHRC,20/04/2020,Training Awards - Postgraduates,Collabrative Doctoral Grants - Block Payment,King's College London,98735980,5564.00,Training Awards - Postgraduates
BEIS,UKRI - AHRC,20/04/2020,Training Awards - Postgraduates,Collabrative Doctoral Grants - Block Payment,University of Leeds,98735981,5117.72,Training Awards - Postgraduates
BEIS,UKRI - AHRC,20/04/2020,Training Awards - Postgraduates,Collabrative Doctoral Grants - Block Payment,De Montfort University,98735982,5064.00,Training Awards - Postgraduates
BEIS,UKRI - AHRC,20/04/2020,Training Awards - Postgraduates,Collabrative Doctoral Grants - Block Payment,University of Leicester,98735983,5064.00,Training Awards - Postgraduates
BEIS,UKRI - AHRC,20/04/2020,Training Awards - Postgraduates,Collabrative Doctoral Grants - Block Payment,Birkbeck College,98735984,5564.00,Training Awards - Postgraduates
BEIS,UKRI - AHRC,20/04/2020,Training Awards - Postgraduates,Collabrative Doctoral Grants - Block Payment,University of Reading,98735985,5064.00,Training Awards - Postgraduates
BEIS,UKRI - AHRC,20/04/2020,Training Awards - Postgraduates,Collabrative Doctoral Grants - Block Payment,University of York,98735986,5064.00,Training Awards - Postgraduates
BEIS,UKRI - AHRC,20/04/2020,Training Awards - Postgraduates,Collabrative Doctoral Grants - Block Payment,Courtauld Institute of Art,98735987,5564.00,Training Awards - Postgraduates
BEIS,UKRI - AHRC,20/04/2020,Training Awards - Postgraduates,Collabrative Doctoral Grants - Block Payment,University of York,98735988,5064.00,Training Awards - Postgraduates
BEIS,UKRI - AHRC,20/04/2020,Training Awards - Postgraduates,Collabrative Doctoral Grants - Block Payment,The University of Manchester,98735989,5064.00,Training Awards - Postgraduates
BEIS,UKRI - AHRC,20/04/2020,Training Awards - Postgraduates,Collabrative Doctoral Grants - Block Payment,Cardiff University,98735990,5064.00,Training Awards - Postgraduates
BEIS,UKRI - AHRC,20/04/2020,Training Awards - Postgraduates,Collabrative Doctoral Grants - Block Payment,University of Reading,98735991,5064.00,Training Awards - Postgraduates
BEIS,UKRI - AHRC,20/04/2020,Training Awards - Postgraduates,Collabrative Doctoral Grants - Block Payment,De Montfort University,98735992,5064.00,Training Awards - Postgraduates
BEIS,UKRI - AHRC,20/04/2020,Training Awards - Postgraduates,Collabrative Doctoral Grants - Block Payment,University of Westminster,98735993,2830.75,Training Awards - Postgraduates
BEIS,UKRI - AHRC,20/04/2020,Training Awards - Postgraduates,Collabrative Doctoral Grants - Block Payment,The University of Manchester,98735994,5064.00,Training Awards - Postgraduates
BEIS,UKRI - AHRC,20/04/2020,Training Awards - Postgraduates,Collabrative Doctoral Grants - Block Payment,Royal College of Art,98735995,5564.00,Training Awards - Postgraduates
BEIS,UKRI - AHRC,20/04/2020,Training Awards - Postgraduates,Collabrative Doctoral Grants - Block Payment,Northumbria University,98735996,5064.00,Training Awards - Postgraduates
BEIS,UKRI - AHRC,20/04/2020,Training Awards - Postgraduates,Collabrative Doctoral Grants - Block Payment,Glasgow School of Art,98735997,5064.00,Training Awards - Postgraduates
BEIS,UKRI - AHRC,20/04/2020,Training Awards - Postgraduates,Collabrative Doctoral Grants - Block Payment,Royal College of Art,98735998,4720.08,Training Awards - Postgraduates
BEIS,UKRI - AHRC,20/04/2020,Training Awards - Postgraduates,BGP Award,University of Glasgow,98735999,63723.90,Training Awards - Postgraduates
BEIS,UKRI - AHRC,20/04/2020,Training Awards - Postgraduates,BGP Award,University of Newcastle Upon Tyne,98736000,63723.90,Training Awards - Postgraduates
BEIS,UKRI - AHRC,20/04/2020,Training Awards - Postgraduates,BGP Award,The University of Manchester,98736001,63724.00,Training Awards - Postgraduates
BEIS,UKRI - AHRC,20/04/2020,Training Awards - Postgraduates,BGP Award,University of the West of England,98736002,63723.90,Training Awards - Postgraduates
BEIS,UKRI - AHRC,20/04/2020,Training Awards - Postgraduates,BGP Award,University of Nottingham,98736003,53104.25,Training Awards - Postgraduates
BEIS,UKRI - AHRC,20/04/2020,Training Awards - Postgraduates,BGP Award,"Royal Holloway, University of London",98736004,68973.90,Training Awards - Postgraduates
BEIS,UKRI - AHRC,20/04/2020,Training Awards - Postgraduates,Collabrative Doctoral Grants - Block Payment,University of London,98736005,5523.25,Training Awards - Postgraduates
BEIS,UKRI - AHRC,20/04/2020,Training Awards - Postgraduates,Collabrative Doctoral Grants - Block Payment,University of Sheffield,98736006,5023.25,Training Awards - Postgraduates
BEIS,UKRI - AHRC,20/04/2020,Training Awards - Postgraduates,Collabrative Doctoral Grants - Block Payment,University College London,98736007,5500.75,Training Awards - Postgraduates
BEIS,UKRI - AHRC,20/04/2020,Training Awards - Postgraduates,Collabrative Doctoral Grants - Block Payment,University of Sheffield,98736008,5023.25,Training Awards - Postgraduates
BEIS,UKRI - AHRC,20/04/2020,Training Awards - Postgraduates,Collabrative Doctoral Grants - Block Payment,Northumbria University,98736009,5023.25,Training Awards - Postgraduates
BEIS,UKRI - AHRC,20/04/2020,Training Awards - Postgraduates,Collabrative Doctoral Grants - Block Payment,King's College London,98736010,5523.25,Training Awards - Postgraduates
BEIS,UKRI - AHRC,20/04/2020,Training Awards - Postgraduates,Collabrative Doctoral Grants - Block Payment,University of Brighton,98736011,5023.25,Training Awards - Postgraduates
BEIS,UKRI - AHRC,20/04/2020,Training Awards - Postgraduates,Collabrative Doctoral Grants - Block Payment,University of Stirling,98736012,5023.25,Training Awards - Postgraduates
BEIS,UKRI - AHRC,20/04/2020,Training Awards - Postgraduates,Collabrative Doctoral Grants - Block Payment,University of Liverpool,98736013,5023.25,Training Awards - Postgraduates
BEIS,UKRI - AHRC,20/04/2020,Training Awards - Postgraduates,Collabrative Doctoral Grants - Block Payment,Robert Gordon University,98736014,5023.25,Training Awards - Postgraduates
BEIS,UKRI - AHRC,20/04/2020,Training Awards - Postgraduates,Collabrative Doctoral Grants - Block Payment,University of Exeter,98736015,5023.25,Training Awards - Postgraduates
BEIS,UKRI - AHRC,20/04/2020,Training Awards - Postgraduates,Collabrative Doctoral Grants - Block Payment,University of Edinburgh,98736016,5023.25,Training Awards - Postgraduates
BEIS,UKRI - AHRC,20/04/2020,Training Awards - Postgraduates,Collabrative Doctoral Grants - Block Payment,University of Durham,98736017,5023.25,Training Awards - Postgraduates
BEIS,UKRI - AHRC,20/04/2020,Training Awards - Postgraduates,Collabrative Doctoral Grants - Block Payment,"City, University of London",98736018,5523.25,Training Awards - Postgraduates
BEIS,UKRI - AHRC,20/04/2020,Training Awards - Postgraduates,Collabrative Doctoral Grants - Block Payment,University of Strathclyde,98736019,4792.13,Training Awards - Postgraduates
BEIS,UKRI - AHRC,20/04/2020,Training Awards - Postgraduates,Collabrative Doctoral Grants - Block Payment,University College London,98736020,5523.25,Training Awards - Postgraduates
BEIS,UKRI - AHRC,20/04/2020,Training Awards - Postgraduates,Collabrative Doctoral Grants - Block Payment,University of Leeds,98736021,5023.25,Training Awards - Postgraduates
BEIS,UKRI - AHRC,20/04/2020,Training Awards - Postgraduates,Collabrative Doctoral Grants - Block Payment,University College London,98736022,5523.25,Training Awards - Postgraduates
BEIS,UKRI - AHRC,20/04/2020,Training Awards - Postgraduates,Collabrative Doctoral Grants - Block Payment,King's College London,98736023,5523.25,Training Awards - Postgraduates
BEIS,UKRI - AHRC,20/04/2020,Training Awards - Postgraduates,Collabrative Doctoral Grants - Block Payment,University of Southampton GRANT,98736024,5023.25,Training Awards - Postgraduates
BEIS,UKRI - AHRC,20/04/2020,Training Awards - Postgraduates,Collabrative Doctoral Grants - Block Payment,University of Central Lancashire,98736025,5023.25,Training Awards - Postgraduates
BEIS,UKRI - AHRC,20/04/2020,Training Awards - Postgraduates,Collabrative Doctoral Grants - Block Payment,Birkbeck College,98736026,5523.25,Training Awards - Postgraduates
BEIS,UKRI - AHRC,20/04/2020,Training Awards - Postgraduates,Collabrative Doctoral Grants - Block Payment,University of Glasgow,98736027,5023.25,Training Awards - Postgraduates
BEIS,UKRI - AHRC,20/04/2020,Training Awards - Postgraduates,Collabrative Doctoral Grants - Block Payment,University of Stirling,98736028,5023.25,Training Awards - Postgraduates
BEIS,UKRI - AHRC,20/04/2020,Training Awards - Postgraduates,Collabrative Doctoral Grants - Block Payment,University of Newcastle Upon Tyne,98736029,5023.25,Training Awards - Postgraduates
BEIS,UKRI - AHRC,20/04/2020,Training Awards - Postgraduates,Collabrative Doctoral Grants - Block Payment,University of Leeds,98736030,5023.25,Training Awards - Postgraduates
BEIS,UKRI - AHRC,20/04/2020,Training Awards - Postgraduates,Collabrative Doctoral Grants - Block Payment,University of Oxford,98736031,5023.25,Training Awards - Postgraduates
BEIS,UKRI - AHRC,20/04/2020,Training Awards - Postgraduates,Collabrative Doctoral Grants - Block Payment,University of York,98736032,5023.25,Training Awards - Postgraduates
BEIS,UKRI - AHRC,20/04/2020,Training Awards - Postgraduates,Collabrative Doctoral Grants - Block Payment,University of Kent,98736033,5023.25,Training Awards - Postgraduates
BEIS,UKRI - AHRC,20/04/2020,Training Awards - Postgraduates,Collabrative Doctoral Grants - Block Payment,University of Cambridge,98736034,5023.25,Training Awards - Postgraduates
BEIS,UKRI - AHRC,20/04/2020,Training Awards - Postgraduates,Collabrative Doctoral Grants - Block Payment,Courtauld Institute of Art,98736035,5523.25,Training Awards - Postgraduates
BEIS,UKRI - AHRC,20/04/2020,Training Awards - Postgraduates,Collabrative Doctoral Grants - Block Payment,Queen Mary University of London,98736036,5523.25,Training Awards - Postgraduates
BEIS,UKRI - AHRC,20/04/2020,Training Awards - Postgraduates,Collabrative Doctoral Grants - Block Payment,University of Aberdeen,98736037,5023.25,Training Awards - Postgraduates
BEIS,UKRI - AHRC,20/04/2020,Training Awards - Postgraduates,Collabrative Doctoral Grants - Block Payment,University of Aberdeen,98736037,5023.25,Training Awards - Postgraduates
BEIS,UKRI - AHRC,20/04/2020,Training Awards - Postgraduates,Collabrative Doctoral Grants - Block Payment,University of Durham,98736038,5023.25,Training Awards - Postgraduates
BEIS,UKRI - AHRC,20/04/2020,Training Awards - Postgraduates,Collabrative Doctoral Grants - Block Payment,University College London,98736039,5523.25,Training Awards - Postgraduates
BEIS,UKRI - AHRC,20/04/2020,Training Awards - Postgraduates,Collabrative Doctoral Grants - Block Payment,University of Kent,98736040,5023.25,Training Awards - Postgraduates
BEIS,UKRI - AHRC,20/04/2020,Training Awards - Postgraduates,Collabrative Doctoral Grants - Block Payment,University of Cambridge,98736041,5023.25,Training Awards - Postgraduates
BEIS,UKRI - AHRC,20/04/2020,Training Awards - Postgraduates,Collabrative Doctoral Grants - Block Payment,University of Cambridge,98736042,5023.25,Training Awards - Postgraduates
BEIS,UKRI - AHRC,20/04/2020,Training Awards - Postgraduates,Collabrative Doctoral Grants - Block Payment,University of Leeds,98736043,5023.25,Training Awards - Postgraduates
BEIS,UKRI - AHRC,20/04/2020,Training Awards - Postgraduates,Collabrative Doctoral Grants - Block Payment,University of Leeds,98736044,5023.25,Training Awards - Postgraduates
BEIS,UKRI - AHRC,20/04/2020,Training Awards - Postgraduates,Collabrative Doctoral Grants - Block Payment,University of Strathclyde,98736045,5023.25,Training Awards - Postgraduates
BEIS,UKRI - AHRC,20/04/2020,Training Awards - Postgraduates,Collabrative Doctoral Grants - Block Payment,University of London,98736046,4342.97,Training Awards - Postgraduates
BEIS,UKRI - AHRC,20/04/2020,Training Awards - Postgraduates,Collabrative Doctoral Grants - Block Payment,Keele University,98736047,5023.25,Training Awards - Postgraduates
BEIS,UKRI - AHRC,20/04/2020,Training Awards - Postgraduates,Collabrative Doctoral Grants - Block Payment,Goldsmiths College University of London,98736048,5523.25,Training Awards - Postgraduates
BEIS,UKRI - AHRC,20/04/2020,Training Awards - Postgraduates,Collabrative Doctoral Grants - Block Payment,De Montfort University,98736049,5023.25,Training Awards - Postgraduates
BEIS,UKRI - AHRC,20/04/2020,Training Awards - Postgraduates,Collabrative Doctoral Grants - Block Payment,Sheffield Hallam University,98736050,5023.25,Training Awards - Postgraduates
BEIS,UKRI - AHRC,20/04/2020,Training Awards - Postgraduates,Collabrative Doctoral Grants - Block Payment,De Montfort University,98736051,5023.25,Training Awards - Postgraduates
BEIS,UKRI - AHRC,20/04/2020,Training Awards - Postgraduates,Collabrative Doctoral Grants - Block Payment,University of the Arts London,98736052,5523.25,Training Awards - Postgraduates
BEIS,UKRI - AHRC,20/04/2020,Training Awards - Postgraduates,Collabrative Doctoral Grants - Block Payment,Royal College of Art,98736053,5523.25,Training Awards - Postgraduates
BEIS,UKRI - AHRC,20/04/2020,Training Awards - Postgraduates,Industrial Strategy Challenge Fund (ISCF) - Skills,The University of Manchester,98736054,19666.12,Training Awards - Postgraduates
BEIS,UKRI - AHRC,20/04/2020,Training Awards - Postgraduates,Industrial Strategy Challenge Fund (ISCF) - Skills,University of Glasgow,98736055,19666.12,Training Awards - Postgraduates
BEIS,UKRI - AHRC,20/04/2020,Training Awards - Postgraduates,Industrial Strategy Challenge Fund (ISCF) - Skills,University of Newcastle Upon Tyne,98736056,19666.12,Training Awards - Postgraduates
BEIS,UKRI - AHRC,20/04/2020,Training Awards - Postgraduates,Industrial Strategy Challenge Fund (ISCF) - Skills,"Royal Holloway, University of London",98736057,21606.87,Training Awards - Postgraduates
BEIS,UKRI - AHRC,20/04/2020,Training Awards - Postgraduates,Industrial Strategy Challenge Fund (ISCF) - Skills,University of Nottingham,98736058,19666.12,Training Awards - Postgraduates
BEIS,UKRI - AHRC,20/04/2020,Training Awards - Postgraduates,Industrial Strategy Challenge Fund (ISCF) - Skills,University of the West of England,98736059,19665.67,Training Awards - Postgraduates
BEIS,UKRI - AHRC,20/04/2020,Training Awards - Postgraduates,BGP Award,University of Nottingham,98736060,240095.68,Training Awards - Postgraduates
BEIS,UKRI - AHRC,20/04/2020,Training Awards - Postgraduates,BGP Award,University of York,98736061,167374.20,Training Awards - Postgraduates
BEIS,UKRI - AHRC,20/04/2020,Training Awards - Postgraduates,BGP Award,University College London,98736062,258670.13,Training Awards - Postgraduates
BEIS,UKRI - AHRC,20/04/2020,Training Awards - Postgraduates,BGP Award,University of Newcastle Upon Tyne,98736063,199031.18,Training Awards - Postgraduates
BEIS,UKRI - AHRC,20/04/2020,Training Awards - Postgraduates,BGP Award,The University of Manchester,98736064,157129.88,Training Awards - Postgraduates
BEIS,UKRI - AHRC,20/04/2020,Training Awards - Postgraduates,BGP Award,University of Oxford,98736065,266752.63,Training Awards - Postgraduates
BEIS,UKRI - AHRC,20/04/2020,Training Awards - Postgraduates,BGP Award,University of Bristol GRANT,98736066,104464.50,Training Awards - Postgraduates
BEIS,UKRI - AHRC,20/04/2020,Training Awards - Postgraduates,BGP Award,University of Glasgow,98736067,199031.18,Training Awards - Postgraduates
BEIS,UKRI - AHRC,20/04/2020,Training Awards - Postgraduates,BGP Award,"Royal Holloway, University of London",98736068,214991.18,Training Awards - Postgraduates
BEIS,UKRI - AHRC,20/04/2020,Training Awards - Postgraduates,BGP Award,University of Sussex,98736069,202971.82,Training Awards - Postgraduates
BEIS,UKRI - AHRC,20/04/2020,Training Awards - Postgraduates,Collabrative Doctoral Grants - Block Payment,Glasgow Caledonian University,98736070,5021.50,Training Awards - Postgraduates
BEIS,UKRI - AHRC,20/04/2020,Training Awards - Postgraduates,Collabrative Doctoral Grants - Block Payment,Glasgow Caledonian University,98736070,5021.50,Training Awards - Postgraduates
BEIS,UKRI - AHRC,20/04/2020,Training Awards - Postgraduates,Collabrative Doctoral Grants - Block Payment,University of Edinburgh,98736071,5021.50,Training Awards - Postgraduates
BEIS,UKRI - AHRC,20/04/2020,Training Awards - Postgraduates,Collabrative Doctoral Grants - Block Payment,"City, University of London",98736072,5521.50,Training Awards - Postgraduates
BEIS,UKRI - AHRC,20/04/2020,Training Awards - Postgraduates,Collabrative Doctoral Grants - Block Payment,University of York,98736073,5021.50,Training Awards - Postgraduates
BEIS,UKRI - AHRC,20/04/2020,Training Awards - Postgraduates,Collabrative Doctoral Grants - Block Payment,University of Leicester,98736074,5021.50,Training Awards - Postgraduates
BEIS,UKRI - AHRC,20/04/2020,Training Awards - Postgraduates,Collabrative Doctoral Grants - Block Payment,Loughborough University,98736075,5021.50,Training Awards - Postgraduates
BEIS,UKRI - AHRC,20/04/2020,Training Awards - Postgraduates,Collabrative Doctoral Grants - Block Payment,University of Hull,98736076,5021.50,Training Awards - Postgraduates
BEIS,UKRI - AHRC,20/04/2020,Training Awards - Postgraduates,Collabrative Doctoral Grants - Block Payment,University College London,98736077,5521.50,Training Awards - Postgraduates
BEIS,UKRI - AHRC,20/04/2020,Training Awards - Postgraduates,Collabrative Doctoral Grants - Block Payment,University of Brighton,98736078,5021.50,Training Awards - Postgraduates
BEIS,UKRI - AHRC,20/04/2020,Training Awards - Postgraduates,Collabrative Doctoral Grants - Block Payment,University of Glasgow,98736079,5021.50,Training Awards - Postgraduates
BEIS,UKRI - AHRC,20/04/2020,Training Awards - Postgraduates,Collabrative Doctoral Grants - Block Payment,University of East Anglia,98736080,5021.50,Training Awards - Postgraduates
BEIS,UKRI - AHRC,20/04/2020,Training Awards - Postgraduates,Collabrative Doctoral Grants - Block Payment,University of East Anglia,98736080,5021.50,Training Awards - Postgraduates
BEIS,UKRI - AHRC,20/04/2020,Training Awards - Postgraduates,Collabrative Doctoral Grants - Block Payment,University of London,98736081,5521.50,Training Awards - Postgraduates
BEIS,UKRI - AHRC,20/04/2020,Training Awards - Postgraduates,Collabrative Doctoral Grants - Block Payment,University of Bristol GRANT,98736082,5021.50,Training Awards - Postgraduates
BEIS,UKRI - AHRC,20/04/2020,Training Awards - Postgraduates,Collabrative Doctoral Grants - Block Payment,Imperial College London,98736083,5521.50,Training Awards - Postgraduates
BEIS,UKRI - AHRC,20/04/2020,Training Awards - Postgraduates,Collabrative Doctoral Grants - Block Payment,University of St Andrews,98736084,5021.50,Training Awards - Postgraduates
BEIS,UKRI - AHRC,20/04/2020,Training Awards - Postgraduates,Collabrative Doctoral Grants - Block Payment,Goldsmiths College University of London,98736085,5521.50,Training Awards - Postgraduates
BEIS,UKRI - AHRC,20/04/2020,Training Awards - Postgraduates,Collabrative Doctoral Grants - Block Payment,University of Leeds,98736086,5021.50,Training Awards - Postgraduates
BEIS,UKRI - AHRC,20/04/2020,Training Awards - Postgraduates,Collabrative Doctoral Grants - Block Payment,University of Hertfordshire,98736087,4487.55,Training Awards - Postgraduates
BEIS,UKRI - AHRC,20/04/2020,Training Awards - Postgraduates,Collabrative Doctoral Grants - Block Payment,University of Hertfordshire,98736087,4487.55,Training Awards - Postgraduates
BEIS,UKRI - AHRC,20/04/2020,Training Awards - Postgraduates,Collabrative Doctoral Grants - Block Payment,De Montfort University,98736088,4487.52,Training Awards - Postgraduates
BEIS,UKRI - AHRC,20/04/2020,Training Awards - Postgraduates,Collabrative Doctoral Grants - Block Payment,University of Edinburgh,98736089,5021.50,Training Awards - Postgraduates
BEIS,UKRI - AHRC,20/04/2020,Training Awards - Postgraduates,Collabrative Doctoral Grants - Block Payment,University of Edinburgh,98736090,5021.50,Training Awards - Postgraduates
BEIS,UKRI - AHRC,20/04/2020,Training Awards - Postgraduates,Collabrative Doctoral Grants - Block Payment,University of Leicester,98736091,5021.50,Training Awards - Postgraduates
BEIS,UKRI - AHRC,20/04/2020,Training Awards - Postgraduates,Collabrative Doctoral Grants - Block Payment,University of York,98736092,5021.50,Training Awards - Postgraduates
BEIS,UKRI - AHRC,20/04/2020,Training Awards - Postgraduates,Collabrative Doctoral Grants - Block Payment,University of Durham,98736093,5021.50,Training Awards - Postgraduates
BEIS,UKRI - AHRC,20/04/2020,Training Awards - Postgraduates,Collabrative Doctoral Grants - Block Payment,University of Warwick,98736094,5021.50,Training Awards - Postgraduates
BEIS,UKRI - AHRC,20/04/2020,Training Awards - Postgraduates,Collabrative Doctoral Grants - Block Payment,University of Brighton,98736095,5021.50,Training Awards - Postgraduates
BEIS,UKRI - AHRC,20/04/2020,Training Awards - Postgraduates,Collabrative Doctoral Grants - Block Payment,University of Southampton GRANT,98736096,5021.50,Training Awards - Postgraduates
BEIS,UKRI - AHRC,20/04/2020,Training Awards - Postgraduates,Collabrative Doctoral Grants - Block Payment,University College London,98736097,5521.50,Training Awards - Postgraduates
BEIS,UKRI - AHRC,20/04/2020,Training Awards - Postgraduates,Collabrative Doctoral Grants - Block Payment,University of East Anglia,98736098,5021.50,Training Awards - Postgraduates
BEIS,UKRI - AHRC,20/04/2020,Training Awards - Postgraduates,Collabrative Doctoral Grants - Block Payment,University of Nottingham,98736099,5021.50,Training Awards - Postgraduates
BEIS,UKRI - AHRC,20/04/2020,Training Awards - Postgraduates,Collabrative Doctoral Grants - Block Payment,University of Leeds,98736100,5021.50,Training Awards - Postgraduates
BEIS,UKRI - AHRC,20/04/2020,Training Awards - Postgraduates,Collabrative Doctoral Grants - Block Payment,University of Bristol GRANT,98736101,5021.50,Training Awards - Postgraduates
BEIS,UKRI - AHRC,20/04/2020,Training Awards - Postgraduates,Collabrative Doctoral Grants - Block Payment,The Open University,98736102,5021.50,Training Awards - Postgraduates
BEIS,UKRI - AHRC,20/04/2020,Training Awards - Postgraduates,Collabrative Doctoral Grants - Block Payment,University of the Arts London,98736103,5521.50,Training Awards - Postgraduates
BEIS,UKRI - AHRC,20/04/2020,Training Awards - Postgraduates,Collabrative Doctoral Grants - Block Payment,University of Strathclyde,98736104,5021.50,Training Awards - Postgraduates
BEIS,UKRI - AHRC,20/04/2020,Training Awards - Postgraduates,Collabrative Doctoral Grants - Block Payment,University of Oxford,98736105,5021.50,Training Awards - Postgraduates
BEIS,UKRI - AHRC,20/04/2020,Training Awards - Postgraduates,Collabrative Doctoral Grants - Block Payment,King's College London,98736106,5521.50,Training Awards - Postgraduates
BEIS,UKRI - AHRC,20/04/2020,Training Awards - Postgraduates,Collabrative Doctoral Grants - Block Payment,Birkbeck College,98736107,5521.50,Training Awards - Postgraduates
BEIS,UKRI - AHRC,20/04/2020,Training Awards - Postgraduates,Collabrative Doctoral Grants - Block Payment,University of Edinburgh,98736108,5021.50,Training Awards - Postgraduates
BEIS,UKRI - AHRC,20/04/2020,Training Awards - Postgraduates,Collabrative Doctoral Grants - Block Payment,University College London,98736109,5521.50,Training Awards - Postgraduates
BEIS,UKRI - AHRC,20/04/2020,Training Awards - Postgraduates,Collabrative Doctoral Grants - Block Payment,University of Leeds,98736110,5021.50,Training Awards - Postgraduates
BEIS,UKRI - AHRC,20/04/2020,Training Awards - Postgraduates,Collabrative Doctoral Grants - Block Payment,University College London,98736111,4987.53,Training Awards - Postgraduates
BEIS,UKRI - AHRC,20/04/2020,Training Awards - Postgraduates,Collabrative Doctoral Grants - Block Payment,Sheffield Hallam University,98736112,5021.50,Training Awards - Postgraduates
BEIS,UKRI - AHRC,20/04/2020,Training Awards - Postgraduates,Collabrative Doctoral Grants - Block Payment,University of Kent,98736113,5021.50,Training Awards - Postgraduates
BEIS,UKRI - AHRC,20/04/2020,Training Awards - Postgraduates,Collabrative Doctoral Grants - Block Payment,University of East Anglia,98736114,5021.50,Training Awards - Postgraduates
BEIS,UKRI - AHRC,20/04/2020,Training Awards - Postgraduates,Collabrative Doctoral Grants - Block Payment,University of the Arts London,98736115,5521.50,Training Awards - Postgraduates
BEIS,UKRI - AHRC,20/04/2020,Training Awards - Postgraduates,Collabrative Doctoral Grants - Block Payment,University College London,98736116,5521.50,Training Awards - Postgraduates
BEIS,UKRI - AHRC,20/04/2020,Training Awards - Postgraduates,Collabrative Doctoral Grants - Block Payment,King's College London,98736117,5521.50,Training Awards - Postgraduates
BEIS,UKRI - AHRC,20/04/2020,Training Awards - Postgraduates,Collabrative Doctoral Grants - Block Payment,University of Warwick,98736118,3162.49,Training Awards - Postgraduates
BEIS,UKRI - AHRC,20/04/2020,Training Awards - Postgraduates,International Placement Scheme,University of Leeds,98736119,4470.00,Training Awards - Postgraduates
BEIS,UKRI - AHRC,20/04/2020,Training Awards - Postgraduates,International Placement Scheme,University of Sussex,98736120,4470.00,Training Awards - Postgraduates
BEIS,UKRI - AHRC,20/04/2020,Training Awards - Postgraduates,International Placement Scheme,Lancaster University,98736121,4470.00,Training Awards - Postgraduates
BEIS,UKRI - AHRC,20/04/2020,Training Awards - Postgraduates,International Placement Scheme,Queen Mary University of London,98736122,4470.00,Training Awards - Postgraduates
BEIS,UKRI - AHRC,20/04/2020,Training Awards - Postgraduates,International Placement Scheme,University of Nottingham,98736123,4470.00,Training Awards - Postgraduates
BEIS,UKRI - AHRC,20/04/2020,Training Awards - Postgraduates,International Placement Scheme,King's College London,98736124,4470.00,Training Awards - Postgraduates
BEIS,UKRI - AHRC,20/04/2020,Training Awards - Postgraduates,International Placement Scheme,University of Sussex,98736125,4470.00,Training Awards - Postgraduates
BEIS,UKRI - AHRC,20/04/2020,Training Awards - Postgraduates,International Placement Scheme,University of Cambridge,98736126,5670.00,Training Awards - Postgraduates
BEIS,UKRI - AHRC,20/04/2020,Training Awards - Postgraduates,International Placement Scheme,University of York,98736127,4470.00,Training Awards - Postgraduates
BEIS,UKRI - AHRC,20/04/2020,Training Awards - Postgraduates,International Placement Scheme,University of Reading,98736128,4470.00,Training Awards - Postgraduates
BEIS,UKRI - AHRC,20/04/2020,Training Awards - Postgraduates,International Placement Scheme,King's College London,98736129,3270.00,Training Awards - Postgraduates
BEIS,UKRI - AHRC,20/04/2020,Training Awards - Postgraduates,International Placement Scheme,King's College London,98736130,6870.00,Training Awards - Postgraduates
BEIS,UKRI - AHRC,20/04/2020,Training Awards - Postgraduates,International Placement Scheme,University of Newcastle Upon Tyne,98736131,4470.00,Training Awards - Postgraduates
BEIS,UKRI - AHRC,20/04/2020,Training Awards - Postgraduates,International Placement Scheme,University of Liverpool,98736132,4470.00,Training Awards - Postgraduates
BEIS,UKRI - AHRC,20/04/2020,Training Awards - Postgraduates,International Placement Scheme,University of Edinburgh,98736133,4035.00,Training Awards - Postgraduates
BEIS,UKRI - AHRC,20/04/2020,Training Awards - Postgraduates,International Placement Scheme,University of Edinburgh,98736133,4035.00,Training Awards - Postgraduates
BEIS,UKRI - AHRC,20/04/2020,Training Awards - Postgraduates,Collabrative Doctoral Grants - Block Payment,Cardiff University,98736134,4487.55,Training Awards - Postgraduates
BEIS,UKRI - AHRC,20/04/2020,Training Awards - Postgraduates,Collabrative Doctoral Grants - Block Payment,University of Brighton,98736135,5021.50,Training Awards - Postgraduates
BEIS,UKRI - AHRC,20/04/2020,Training Awards - Postgraduates,Collabrative Doctoral Grants - Block Payment,University College London,98736136,808.00,Training Awards - Postgraduates
BEIS,UKRI - AHRC,20/04/2020,Training Awards - Postgraduates,Collabrative Doctoral Grants - Block Payment,University of Cambridge,98736138,8521.71,Training Awards - Postgraduates
BEIS,UKRI - AHRC,20/04/2020,Training Awards - Postgraduates,Collabrative Doctoral Grants - Block Payment,Courtauld Institute of Art,98736139,-783.00,Training Awards - Postgraduates
BEIS,UKRI - AHRC,20/04/2020,Training Awards - Postgraduates,Collabrative Doctoral Grants - Block Payment,University of Leicester,98736140,4746.26,Training Awards - Postgraduates
BEIS,UKRI - AHRC,20/04/2020,Training Awards - Postgraduates,International Placement Scheme,University of East Anglia,98736141,-2400.00,Training Awards - Postgraduates
BEIS,UKRI - AHRC,20/04/2020,Training Awards - Postgraduates,International Placement Scheme,University of Newcastle Upon Tyne,98736142,4470.00,Training Awards - Postgraduates
BEIS,UKRI - AHRC,20/04/2020,Training Awards - Postgraduates,International Placement Scheme,King's College London,98736143,4470.00,Training Awards - Postgraduates
BEIS,UKRI - AHRC,20/04/2020,Training Awards - Postgraduates,International Placement Scheme,University of Cambridge,98736144,3270.00,Training Awards - Postgraduates
BEIS,UKRI - AHRC,20/04/2020,Training Awards - Postgraduates,International Placement Scheme,University of Cambridge,98736145,3270.00,Training Awards - Postgraduates
BEIS,UKRI - AHRC,20/04/2020,Training Awards - Postgraduates,International Placement Scheme,University of Edinburgh,98736146,3270.00,Training Awards - Postgraduates
BEIS,UKRI - AHRC,20/04/2020,Training Awards - Postgraduates,International Placement Scheme,University of Oxford,98736147,2070.00,Training Awards - Postgraduates
BEIS,UKRI - AHRC,20/04/2020,Training Awards - Postgraduates,International Placement Scheme,University of Newcastle Upon Tyne,98736148,-4470.00,Training Awards - Postgraduates
BEIS,UKRI - AHRC,20/04/2020,Training Awards - Postgraduates,International Placement Scheme,University of Exeter,98736149,4470.00,Training Awards - Postgraduates
BEIS,UKRI - AHRC,20/04/2020,Training Awards - Postgraduates,International Placement Scheme,The University of Manchester,98736150,-4465.00,Training Awards - Postgraduates
BEIS,UKRI - AHRC,20/04/2020,Conferences & Seminars,SMT,Westminster Legal Policy Forum,98740450,228.00,Conferences & Seminars
BEIS,UKRI - AHRC,20/04/2020,Other Programme Costs,SMT,Four Communications Group Ltd,98740538,10200.00,Other Programme Costs
BEIS,UKRI - AHRC,21/04/2020,Non-staff travel and subsistance,Infrastruture Roadmap,Unspecified,98740946,62.70,Non-staff travel and subsistance
BEIS,UKRI - AHRC,21/04/2020,Non-staff travel and subsistance,Operations,Unspecified,98740947,59.45,Non-staff travel and subsistance
BEIS,UKRI - AHRC,21/04/2020,T&S UK - Other Charges,Digital Arts and Humanities and Creative Industries,Unspecified,98741014,18.95,T&S UK - Other Charges
BEIS,UKRI - AHRC,21/04/2020,T&S UK - Other Charges,Skills Strategy,Unspecified,98741015,71.99,T&S UK - Other Charges
BEIS,UKRI - AHRC,21/04/2020,Hospitality,Public and Stakeholder Engagement,Shoreditch Meeting Rooms Ltd,98741935,1890.00,Hospitality
BEIS,UKRI - AHRC,22/04/2020,Research Grant Expenditure,HERA JRP Project,Irish Research Council,98740299,590001.31,Research Grant Expenditure
BEIS,UKRI - AHRC,22/04/2020,T&S UK - Other Charges,Digital Arts and Humanities and Creative Industries,Unspecified,98741252,133.87,T&S UK - Other Charges
BEIS,UKRI - AHRC,22/04/2020,T&S UK - Other Charges,SMT,Unspecified,98741253,119.00,T&S UK - Other Charges
BEIS,UKRI - AHRC,22/04/2020,Non-staff travel and subsistance,Executive Office,Unspecified,98742219,113.20,Non-staff travel and subsistance
BEIS,UKRI - AHRC,23/04/2020,Non-staff travel and subsistance,Operations,Unspecified,98742296,26.25,Non-staff travel and subsistance
BEIS,UKRI - AHRC,24/04/2020,Voluntary Deductions,Balance Sheet,Swindon Office Sports and Social Club,98736823,32.00,Voluntary Deductions
BEIS,UKRI - AHRC,24/04/2020,Non-staff travel and subsistance,Operations,Unspecified,98741609,70.05,Non-staff travel and subsistance
BEIS,UKRI - AHRC,24/04/2020,Non-staff travel and subsistance,Operations,Unspecified,98741610,78.67,Non-staff travel and subsistance
BEIS,UKRI - AHRC,24/04/2020,T&S UK - Public Transport,Digital Arts and Humanities and Creative Industries,Unspecified,98741725,4.60,T&S UK - Public Transport
BEIS,UKRI - AHRC,24/04/2020,T&S UK - Subsistence,Digital Arts and Humanities and Creative Industries,Unspecified,98741725,17.50,T&S UK - Subsistence
BEIS,UKRI - AHRC,24/04/2020,T&S UK - Subsistence,Digital Arts and Humanities and Creative Industries,Unspecified,98741725,13.25,T&S UK - Subsistence
BEIS,UKRI - AHRC,24/04/2020,Nursery Deductions,Balance Sheet,EDENRED (UK GROUP) LTD,98742354,1307.00,Nursery Deductions
BEIS,UKRI - AHRC,24/04/2020,Unspecified,PSU Project Office,Alexander Mann Solutions Ltd,98742452,2236.46,Contract Staff
BEIS,UKRI - AHRC,27/04/2020,Fees (Including College Members),Newton Programme Delivery,Unspecified,98742803,340.00,Fees (Including College Members)
BEIS,UKRI - AHRC,27/04/2020,Fees (Including College Members),Newton Programme Delivery,Unspecified,98742804,460.00,Fees (Including College Members)
BEIS,UKRI - AHRC,28/04/2020,Non-staff travel and subsistance,International,Unspecified,98743813,176.90,Non-staff travel and subsistance
BEIS,UKRI - AHRC,28/04/2020,Non-staff travel and subsistance,Operations,Unspecified,98743814,14.45,Non-staff travel and subsistance
BEIS,UKRI - AHRC,28/04/2020,Marketing & PR,Public and Stakeholder Engagement,Dragon Rouge Ltd,98743834,3000.00,Marketing & PR
BEIS,UKRI - AHRC,28/04/2020,T&S UK - Other Charges,SMT,Unspecified,98743893,4.05,T&S UK - Other Charges
BEIS,UKRI - AHRC,28/04/2020,T&S UK - Public Transport,SMT,Unspecified,98743893,58.90,T&S UK - Public Transport
BEIS,UKRI - AHRC,28/04/2020,T&S UK - Subsistence,SMT,Unspecified,98743893,5.20,T&S UK - Subsistence
BEIS,UKRI - AHRC,29/04/2020,T&S UK - Subsistence,Operations,Unspecified,98713649,60.30,T&S UK - Subsistence
BEIS,UKRI - AHRC,29/04/2020,T&S UK - Subsistence,Operations,Unspecified,98713649,16.37,T&S UK - Subsistence
BEIS,UKRI - AHRC,29/04/2020,T&S UK - Subsistence,Operations,Unspecified,98713649,20.00,T&S UK - Subsistence
BEIS,UKRI - AHRC,29/04/2020,Recruitment Costs,Corporate Services,Onefix Recruitment Ltd,98741570,150.00,Recruitment Costs
BEIS,UKRI - AHRC,29/04/2020,Non-staff travel and subsistance,Operations,Unspecified,98743240,88.80,Non-staff travel and subsistance
BEIS,UKRI - AHRC,29/04/2020,Recruitment Costs,Corporate Services,Warwick University Services Ltd,98743861,250.00,Recruitment Costs
BEIS,UKRI - AHRC,29/04/2020,T&S UK - Other Charges,Digital Arts and Humanities and Creative Industries,Unspecified,98744039,138.00,T&S UK - Other Charges
BEIS,UKRI - AHRC,30/04/2020,Financial Services,Corporate Services,CCI Credit Management Ltd,98729669,1.32,Financial Services
BEIS,UKRI - AHRC,30/04/2020,Financial Services,Corporate Services,CCI Credit Management Ltd,98742677,1.32,Financial Services
BEIS,UKRI - AHRC,30/04/2020,Non-staff travel and subsistance,Operations,Unspecified,98743592,22.00,Non-staff travel and subsistance
BEIS,UKRI - AHRC,30/04/2020,Non-staff travel and subsistance,Operations,Unspecified,98743593,38.70,Non-staff travel and subsistance
BEIS,UKRI - AHRC,30/04/2020,T&S UK - Other Charges,Executive Office,Unspecified,98743617,94.37,T&S UK - Other Charges
BEIS,UKRI - AHRC,30/04/2020,Corporate Events,"History, Heritage, Languages and Literature",Calder Conference Ltd,98744205,3376.80,Corporate Events
BEIS,UKRI - BBSRC,01/04/2020,Research Institutes - Capital Grants: Minor Works,Rothamsted Research,Rothamsted Research Ltd,98723781,91440.00,Research Institutes - Capital Grants: Minor Works
BEIS,UKRI - BBSRC,01/04/2020,International Subscriptions,CE - IRU,Wheat Initiative,98724417,9047.07,International Subscriptions
BEIS,UKRI - BBSRC,01/04/2020,Research Institutes - Capital Grants: Minor Works,Rothamsted Research,Rothamsted Research Ltd,98727796,-1920.00,Research Institutes - Capital Grants: Minor Works
BEIS,UKRI - BBSRC,01/04/2020,Research Institutes - Capital Grants: Major Works,Pirbright,The Pirbright Institute,98730409,53456.50,Research Institutes - Capital Grants: Major Works
BEIS,UKRI - BBSRC,01/04/2020,Research Institutes - Capital Grants: Minor Works,Pirbright,The Pirbright Institute,98730410,4862.40,Research Institutes - Capital Grants: Minor Works
BEIS,UKRI - BBSRC,01/04/2020,Other Programme Costs,Babraham Institute,Babraham Institute,98730744,30826.00,Other Programme Costs
BEIS,UKRI - BBSRC,01/04/2020,Research Institutes - Capital Grants: Major Works,Strategic Priorities Fund,EMBL (European Molecular Biology Laboratory),98730773,75966.50,Research Institutes - Capital Grants: Major Works
BEIS,UKRI - BBSRC,01/04/2020,Dep't of Environ Food & Rural Affairs (DEFRA),Pirbright,The Pirbright Institute,98730775,860000.00,Dep't of Environ Food & Rural Affairs (DEFRA)
BEIS,UKRI - BBSRC,01/04/2020,Non-staff travel and subsistance,Innovation and Skills Group CDSU,Agri-Food Solutions Ltd,98730796,355.56,Non-staff travel and subsistance
BEIS,UKRI - BBSRC,01/04/2020,Health & Safety (inc. Medicals & Opticians),Innovation and Skills Group,Unspecified,98730808,50.00,Health & Safety (inc. Medicals & Opticians)
BEIS,UKRI - BBSRC,01/04/2020,T&S UK - Public Transport,Innovation and Skills Group,Unspecified,98730808,29.60,T&S UK - Public Transport
BEIS,UKRI - BBSRC,01/04/2020,T&S UK - Public Transport,Innovation and Skills Group,Unspecified,98730808,50.00,T&S UK - Public Transport
BEIS,UKRI - BBSRC,01/04/2020,T&S UK - Public Transport,Innovation and Skills Group,Unspecified,98730808,99.40,T&S UK - Public Transport
BEIS,UKRI - BBSRC,01/04/2020,T&S UK - Subsistence,Innovation and Skills Group,Unspecified,98730808,4.45,T&S UK - Subsistence
BEIS,UKRI - BBSRC,01/04/2020,T&S UK - Subsistence,Innovation and Skills Group,Unspecified,98730808,10.00,T&S UK - Subsistence
BEIS,UKRI - BBSRC,02/04/2020,Research Institutes - Capital Grants: Major Works,Estates - Projects,EMBL (European Molecular Biology Laboratory),98730849,15203.48,Research Institutes - Capital Grants: Major Works
BEIS,UKRI - BBSRC,02/04/2020,Research Institutes - Capital Grants: Major Works,Estates - Projects,EMBL (European Molecular Biology Laboratory),98730850,20444.46,Research Institutes - Capital Grants: Major Works
BEIS,UKRI - BBSRC,02/04/2020,Research Institutes - Capital Grants: Minor Works,JIC,John Innes Centre,98730936,2592.00,Research Institutes - Capital Grants: Minor Works
BEIS,UKRI - BBSRC,02/04/2020,Research Institutes - Capital Grants: Minor Works,JIC,John Innes Centre,98731252,3042.61,Research Institutes - Capital Grants: Minor Works
BEIS,UKRI - BBSRC,02/04/2020,T&S UK - Other Charges,Science Group,Unspecified,98732032,81.48,T&S UK - Other Charges
BEIS,UKRI - BBSRC,02/04/2020,T&S UK - Other Charges,CIMG - Information Management,Unspecified,98732033,206.00,T&S UK - Other Charges
BEIS,UKRI - BBSRC,02/04/2020,GPC Clearing - BBSRC,Balance Sheet,Unspecified,98732035,-34.20,GPC Clearing - BBSRC
BEIS,UKRI - BBSRC,02/04/2020,T&S UK - Parking Tolls Congestion Charges,FG - Estates,Unspecified,98732035,12.00,T&S UK - Parking Tolls Congestion Charges
BEIS,UKRI - BBSRC,02/04/2020,T&S UK - Subsistence,FG - Estates,Unspecified,98732035,7.60,T&S UK - Subsistence
BEIS,UKRI - BBSRC,02/04/2020,T&S UK - Subsistence,FG - Estates,Unspecified,98732035,22.20,T&S UK - Subsistence
BEIS,UKRI - BBSRC,02/04/2020,T&S UK - Subsistence,FG - Estates,Unspecified,98732035,5.00,T&S UK - Subsistence
BEIS,UKRI - BBSRC,02/04/2020,Other Programme Costs,Strategic Priorities Fund,BCQ Group Ltd,98732037,1530.00,Other Programme Costs
BEIS,UKRI - BBSRC,03/04/2020,Research Grant Expenditure,Impact & Knowledge Exchange,Agriculture And Horticulture Development Board (AHDB),98731591,224098.90,Research Grant Expenditure
BEIS,UKRI - BBSRC,03/04/2020,Recruitment Costs,PDG - Director,Onefix Recruitment Ltd,98732627,300.00,Recruitment Costs
BEIS,UKRI - BBSRC,03/04/2020,T&S UK - Other Charges,Science Group,Unspecified,98732663,239.93,T&S UK - Other Charges
BEIS,UKRI - BBSRC,06/04/2020,Recruitment Costs,PDG - Director,Onefix Recruitment Ltd,98731694,450.00,Recruitment Costs
BEIS,UKRI - BBSRC,06/04/2020,T&S UK - Other Charges,Innovation and Skills Group,Unspecified,98731843,155.04,T&S UK - Other Charges
BEIS,UKRI - BBSRC,06/04/2020,T&S UK - Other Charges,Science Group,Unspecified,98731844,45.65,T&S UK - Other Charges
BEIS,UKRI - BBSRC,06/04/2020,T&S UK - Subsistence,Innovation and Skills Group CDSU,Unspecified,98731845,22.25,T&S UK - Subsistence
BEIS,UKRI - BBSRC,06/04/2020,Non-staff travel and subsistance,Innovation and Skills Group CDSU,Unspecified,98732766,360.84,Non-staff travel and subsistance
BEIS,UKRI - BBSRC,06/04/2020,Non-staff travel and subsistance,CE - IRU,Unspecified,98732767,1093.47,Non-staff travel and subsistance
BEIS,UKRI - BBSRC,06/04/2020,Non-staff travel and subsistance,CE - IRU,Unspecified,98732768,926.20,Non-staff travel and subsistance
BEIS,UKRI - BBSRC,06/04/2020,Non-staff travel and subsistance,CE - IRU,Unspecified,98732769,54.32,Non-staff travel and subsistance
BEIS,UKRI - BBSRC,06/04/2020,Non-staff travel and subsistance,CE - IRU,Unspecified,98732770,780.02,Non-staff travel and subsistance
BEIS,UKRI - BBSRC,06/04/2020,Non-staff travel and subsistance,Innovation and Skills Group CDSU,Unspecified,98732771,92.20,Non-staff travel and subsistance
BEIS,UKRI - BBSRC,06/04/2020,Non-staff travel and subsistance,Innovation and Skills Group CDSU,Unspecified,98732772,66.30,Non-staff travel and subsistance
BEIS,UKRI - BBSRC,06/04/2020,Non-staff travel and subsistance,Innovation and Skills Group CDSU,Unspecified,98732773,31.70,Non-staff travel and subsistance
BEIS,UKRI - BBSRC,06/04/2020,Non-staff travel and subsistance,Innovation and Skills Group CDSU,Unspecified,98732774,65.00,Non-staff travel and subsistance
BEIS,UKRI - BBSRC,06/04/2020,Non-staff travel and subsistance,Innovation and Skills Group CDSU,Unspecified,98732775,117.80,Non-staff travel and subsistance
BEIS,UKRI - BBSRC,06/04/2020,Non-staff travel and subsistance,Innovation and Skills Group CDSU,Unspecified,98732776,54.76,Non-staff travel and subsistance
BEIS,UKRI - BBSRC,06/04/2020,Non-staff travel and subsistance,CE - CPS,Unspecified,98732777,239.39,Non-staff travel and subsistance
BEIS,UKRI - BBSRC,06/04/2020,Non-staff travel and subsistance,Innovation and Skills Group CDSU,Unspecified,98732778,273.00,Non-staff travel and subsistance
BEIS,UKRI - BBSRC,06/04/2020,Non-staff travel and subsistance,Innovation and Skills Group CDSU,Unspecified,98732779,58.40,Non-staff travel and subsistance
BEIS,UKRI - BBSRC,06/04/2020,Non-staff travel and subsistance,Innovation and Skills Group CDSU,Unspecified,98732780,76.60,Non-staff travel and subsistance
BEIS,UKRI - BBSRC,06/04/2020,Non-staff travel and subsistance,Innovation and Skills Group CDSU,Unspecified,98732781,176.80,Non-staff travel and subsistance
BEIS,UKRI - BBSRC,06/04/2020,Non-staff travel and subsistance,Innovation and Skills Group CDSU,Unspecified,98732782,339.50,Non-staff travel and subsistance
BEIS,UKRI - BBSRC,06/04/2020,Research Institutes - Capital Grants: Minor Works,JIC,John Innes Centre,98732982,10428.66,Research Institutes - Capital Grants: Minor Works
BEIS,UKRI - BBSRC,07/04/2020,Recruitment Costs,PDG - Director,Onefix Recruitment Ltd,98731691,450.00,Recruitment Costs
BEIS,UKRI - BBSRC,07/04/2020,T&S UK - Other Charges,CIMG - Information Management,Unspecified,98732034,154.99,T&S UK - Other Charges
BEIS,UKRI - BBSRC,07/04/2020,Fellowships,Innovation and Skills Group,UKRI - Natural Environment Research Council,98735032,46431.08,Fellowships
BEIS,UKRI - BBSRC,07/04/2020,Other Programme Costs,Strategic Priorities Fund,Bright Harbour Research Ltd,98735085,22410.00,Other Programme Costs
BEIS,UKRI - BBSRC,07/04/2020,Other Programme Costs,CIMG - Director,Midven Limited,98735117,29310.57,Other Programme Costs
BEIS,UKRI - BBSRC,07/04/2020,T&S UK - Other Charges,Science Group,Unspecified,98735263,219.44,T&S UK - Other Charges
BEIS,UKRI - BBSRC,07/04/2020,T&S UK - Other Charges,CIMG - Programme Office,Unspecified,98735264,128.66,T&S UK - Other Charges
BEIS,UKRI - BBSRC,07/04/2020,T&S UK - Other Charges,CE - IRU,Unspecified,98735266,216.57,T&S UK - Other Charges
BEIS,UKRI - BBSRC,07/04/2020,T&S UK - Other Charges,CIMG - Information Management,Unspecified,98735267,119.00,T&S UK - Other Charges
BEIS,UKRI - BBSRC,07/04/2020,T&S UK - Subsistence,Innovation and Skills Group CDSU,Unspecified,98735268,27.31,T&S UK - Subsistence
BEIS,UKRI - BBSRC,07/04/2020,T&S UK - Subsistence,Innovation and Skills Group CDSU,Unspecified,98735268,5.00,T&S UK - Subsistence
BEIS,UKRI - BBSRC,08/04/2020,Unspecified,CIMG - Information Management,Iron Mountain (UK) PLC,98732658,485.52,Data Storage & Recovery
BEIS,UKRI - BBSRC,08/04/2020,Research Institutes - Capital Grants: Minor Works,Estates - Projects,Anglia Innovation Partnership LLP,98733104,319891.48,Research Institutes - Capital Grants: Minor Works
BEIS,UKRI - BBSRC,08/04/2020,Unspecified,FG - Estates,Powis Hughes Ltd,98735225,8255.65,Legal & Professional Services
BEIS,UKRI - BBSRC,08/04/2020,Non-staff travel and subsistance,Science Group - Delivery Function,Corporate Travel Management (North) Ltd,98735362,2.50,Non-staff travel and subsistance
BEIS,UKRI - BBSRC,08/04/2020,Non-staff travel and subsistance,Science Group - Delivery Function,Corporate Travel Management (North) Ltd,98735362,0.80,Non-staff travel and subsistance
BEIS,UKRI - BBSRC,08/04/2020,Non-staff travel and subsistance,Science Group - Delivery Function,Corporate Travel Management (North) Ltd,98735362,158.98,Non-staff travel and subsistance
BEIS,UKRI - BBSRC,08/04/2020,Non-staff travel and subsistance,Science Group - Delivery Function,Corporate Travel Management (North) Ltd,98735362,96.00,Non-staff travel and subsistance
BEIS,UKRI - BBSRC,08/04/2020,Non-staff travel and subsistance,Science Group - Delivery Function,Corporate Travel Management (North) Ltd,98735362,0.16,Non-staff travel and subsistance
BEIS,UKRI - BBSRC,08/04/2020,T&S Overseas - Accommodation,CE - Chief Executive,Corporate Travel Management (North) Ltd,98735362,0.80,T&S Overseas - Accommodation
BEIS,UKRI - BBSRC,08/04/2020,T&S Overseas - Accommodation,CE - Chief Executive,Corporate Travel Management (North) Ltd,98735362,363.65,T&S Overseas - Accommodation
BEIS,UKRI - BBSRC,08/04/2020,T&S Overseas - Accommodation,CE - Chief Executive,Corporate Travel Management (North) Ltd,98735362,0.16,T&S Overseas - Accommodation
BEIS,UKRI - BBSRC,08/04/2020,T&S Overseas - Accommodation,CE - IRU,Corporate Travel Management (North) Ltd,98735362,0.80,T&S Overseas - Accommodation
BEIS,UKRI - BBSRC,08/04/2020,T&S Overseas - Accommodation,CE - IRU,Corporate Travel Management (North) Ltd,98735362,418.51,T&S Overseas - Accommodation
BEIS,UKRI - BBSRC,08/04/2020,T&S Overseas - Accommodation,CE - IRU,Corporate Travel Management (North) Ltd,98735362,174.83,T&S Overseas - Accommodation
BEIS,UKRI - BBSRC,08/04/2020,T&S Overseas - Accommodation,CE - IRU,Corporate Travel Management (North) Ltd,98735362,0.16,T&S Overseas - Accommodation
BEIS,UKRI - BBSRC,08/04/2020,T&S Overseas - Accommodation,European Initiatives,Corporate Travel Management (North) Ltd,98735362,1.17,T&S Overseas - Accommodation
BEIS,UKRI - BBSRC,08/04/2020,T&S Overseas - Accommodation,European Initiatives,Corporate Travel Management (North) Ltd,98735362,0.23,T&S Overseas - Accommodation
BEIS,UKRI - BBSRC,08/04/2020,T&S Overseas - Accommodation,Science Group,Corporate Travel Management (North) Ltd,98735362,0.80,T&S Overseas - Accommodation
BEIS,UKRI - BBSRC,08/04/2020,T&S Overseas - Accommodation,Science Group,Corporate Travel Management (North) Ltd,98735362,163.55,T&S Overseas - Accommodation
BEIS,UKRI - BBSRC,08/04/2020,T&S Overseas - Accommodation,Science Group,Corporate Travel Management (North) Ltd,98735362,0.80,T&S Overseas - Accommodation
BEIS,UKRI - BBSRC,08/04/2020,T&S Overseas - Accommodation,Science Group,Corporate Travel Management (North) Ltd,98735362,110.25,T&S Overseas - Accommodation
BEIS,UKRI - BBSRC,08/04/2020,T&S Overseas - Accommodation,Science Group,Corporate Travel Management (North) Ltd,98735362,-618.06,T&S Overseas - Accommodation
BEIS,UKRI - BBSRC,08/04/2020,T&S Overseas - Accommodation,Science Group,Corporate Travel Management (North) Ltd,98735362,-957.08,T&S Overseas - Accommodation
BEIS,UKRI - BBSRC,08/04/2020,T&S Overseas - Accommodation,Science Group,Corporate Travel Management (North) Ltd,98735362,0.32,T&S Overseas - Accommodation
BEIS,UKRI - BBSRC,08/04/2020,T&S Overseas - Flights,CE - IRU,Corporate Travel Management (North) Ltd,98735362,7.00,T&S Overseas - Flights
BEIS,UKRI - BBSRC,08/04/2020,T&S Overseas - Flights,CE - IRU,Corporate Travel Management (North) Ltd,98735362,571.71,T&S Overseas - Flights
BEIS,UKRI - BBSRC,08/04/2020,T&S Overseas - Public Transport,RISD - UKRO,Corporate Travel Management (North) Ltd,98735362,4.50,T&S Overseas - Public Transport
BEIS,UKRI - BBSRC,08/04/2020,T&S Overseas - Public Transport,RISD - UKRO,Corporate Travel Management (North) Ltd,98735362,188.00,T&S Overseas - Public Transport
BEIS,UKRI - BBSRC,08/04/2020,T&S Overseas - Public Transport,RISD - UKRO,Corporate Travel Management (North) Ltd,98735362,4.50,T&S Overseas - Public Transport
BEIS,UKRI - BBSRC,08/04/2020,T&S Overseas - Public Transport,RISD - UKRO,Corporate Travel Management (North) Ltd,98735362,113.00,T&S Overseas - Public Transport
BEIS,UKRI - BBSRC,08/04/2020,T&S UK - Accommodation,CE - CPS,Corporate Travel Management (North) Ltd,98735362,0.80,T&S UK - Accommodation
BEIS,UKRI - BBSRC,08/04/2020,T&S UK - Accommodation,CE - CPS,Corporate Travel Management (North) Ltd,98735362,108.95,T&S UK - Accommodation
BEIS,UKRI - BBSRC,08/04/2020,T&S UK - Accommodation,CE - CPS,Corporate Travel Management (North) Ltd,98735362,2.00,T&S UK - Accommodation
BEIS,UKRI - BBSRC,08/04/2020,T&S UK - Accommodation,CE - CPS,Corporate Travel Management (North) Ltd,98735362,621.00,T&S UK - Accommodation
BEIS,UKRI - BBSRC,08/04/2020,T&S UK - Accommodation,CE - CPS,Corporate Travel Management (North) Ltd,98735362,0.80,T&S UK - Accommodation
BEIS,UKRI - BBSRC,08/04/2020,T&S UK - Accommodation,CE - CPS,Corporate Travel Management (North) Ltd,98735362,0.80,T&S UK - Accommodation
BEIS,UKRI - BBSRC,08/04/2020,T&S UK - Accommodation,CE - CPS,Corporate Travel Management (North) Ltd,98735362,0.32,T&S UK - Accommodation
BEIS,UKRI - BBSRC,08/04/2020,T&S UK - Accommodation,CE - CPS,Corporate Travel Management (North) Ltd,98735362,0.56,T&S UK - Accommodation
BEIS,UKRI - BBSRC,08/04/2020,T&S UK - Accommodation,CE - Chief Executive,Corporate Travel Management (North) Ltd,98735362,0.80,T&S UK - Accommodation
BEIS,UKRI - BBSRC,08/04/2020,T&S UK - Accommodation,CE - Chief Executive,Corporate Travel Management (North) Ltd,98735362,179.00,T&S UK - Accommodation
BEIS,UKRI - BBSRC,08/04/2020,T&S UK - Accommodation,CE - Chief Executive,Corporate Travel Management (North) Ltd,98735362,0.80,T&S UK - Accommodation
BEIS,UKRI - BBSRC,08/04/2020,T&S UK - Accommodation,CE - Chief Executive,Corporate Travel Management (North) Ltd,98735362,0.80,T&S UK - Accommodation
BEIS,UKRI - BBSRC,08/04/2020,T&S UK - Accommodation,CE - Chief Executive,Corporate Travel Management (North) Ltd,98735362,0.80,T&S UK - Accommodation
BEIS,UKRI - BBSRC,08/04/2020,T&S UK - Accommodation,CE - Chief Executive,Corporate Travel Management (North) Ltd,98735362,0.64,T&S UK - Accommodation
BEIS,UKRI - BBSRC,08/04/2020,T&S UK - Accommodation,CIMG - Director,Corporate Travel Management (North) Ltd,98735362,0.80,T&S UK - Accommodation
BEIS,UKRI - BBSRC,08/04/2020,T&S UK - Accommodation,CIMG - Director,Corporate Travel Management (North) Ltd,98735362,70.00,T&S UK - Accommodation
BEIS,UKRI - BBSRC,08/04/2020,T&S UK - Accommodation,CIMG - Director,Corporate Travel Management (North) Ltd,98735362,0.16,T&S UK - Accommodation
BEIS,UKRI - BBSRC,08/04/2020,T&S UK - Accommodation,FG - Estates,Corporate Travel Management (North) Ltd,98735362,0.80,T&S UK - Accommodation
BEIS,UKRI - BBSRC,08/04/2020,T&S UK - Accommodation,FG - Estates,Corporate Travel Management (North) Ltd,98735362,118.00,T&S UK - Accommodation
BEIS,UKRI - BBSRC,08/04/2020,T&S UK - Accommodation,FG - Estates,Corporate Travel Management (North) Ltd,98735362,0.80,T&S UK - Accommodation
BEIS,UKRI - BBSRC,08/04/2020,T&S UK - Accommodation,FG - Estates,Corporate Travel Management (North) Ltd,98735362,99.00,T&S UK - Accommodation
BEIS,UKRI - BBSRC,08/04/2020,T&S UK - Accommodation,FG - Estates,Corporate Travel Management (North) Ltd,98735362,0.80,T&S UK - Accommodation
BEIS,UKRI - BBSRC,08/04/2020,T&S UK - Accommodation,FG - Estates,Corporate Travel Management (North) Ltd,98735362,80.00,T&S UK - Accommodation
BEIS,UKRI - BBSRC,08/04/2020,T&S UK - Accommodation,FG - Estates,Corporate Travel Management (North) Ltd,98735362,0.80,T&S UK - Accommodation
BEIS,UKRI - BBSRC,08/04/2020,T&S UK - Accommodation,FG - Estates,Corporate Travel Management (North) Ltd,98735362,0.64,T&S UK - Accommodation
BEIS,UKRI - BBSRC,08/04/2020,T&S UK - Accommodation,Innovation and Skills Group,Corporate Travel Management (North) Ltd,98735362,0.80,T&S UK - Accommodation
BEIS,UKRI - BBSRC,08/04/2020,T&S UK - Accommodation,Innovation and Skills Group,Corporate Travel Management (North) Ltd,98735362,168.92,T&S UK - Accommodation
BEIS,UKRI - BBSRC,08/04/2020,T&S UK - Accommodation,Innovation and Skills Group,Corporate Travel Management (North) Ltd,98735362,0.80,T&S UK - Accommodation
BEIS,UKRI - BBSRC,08/04/2020,T&S UK - Accommodation,Innovation and Skills Group,Corporate Travel Management (North) Ltd,98735362,154.00,T&S UK - Accommodation
BEIS,UKRI - BBSRC,08/04/2020,T&S UK - Accommodation,Innovation and Skills Group,Corporate Travel Management (North) Ltd,98735362,0.80,T&S UK - Accommodation
BEIS,UKRI - BBSRC,08/04/2020,T&S UK - Accommodation,Innovation and Skills Group,Corporate Travel Management (North) Ltd,98735362,154.00,T&S UK - Accommodation
BEIS,UKRI - BBSRC,08/04/2020,T&S UK - Accommodation,Innovation and Skills Group,Corporate Travel Management (North) Ltd,98735362,0.80,T&S UK - Accommodation
BEIS,UKRI - BBSRC,08/04/2020,T&S UK - Accommodation,Innovation and Skills Group,Corporate Travel Management (North) Ltd,98735362,106.00,T&S UK - Accommodation
BEIS,UKRI - BBSRC,08/04/2020,T&S UK - Accommodation,Innovation and Skills Group,Corporate Travel Management (North) Ltd,98735362,0.80,T&S UK - Accommodation
BEIS,UKRI - BBSRC,08/04/2020,T&S UK - Accommodation,Innovation and Skills Group,Corporate Travel Management (North) Ltd,98735362,129.60,T&S UK - Accommodation
BEIS,UKRI - BBSRC,08/04/2020,T&S UK - Accommodation,Innovation and Skills Group,Corporate Travel Management (North) Ltd,98735362,1.60,T&S UK - Accommodation
BEIS,UKRI - BBSRC,08/04/2020,T&S UK - Accommodation,Innovation and Skills Group,Corporate Travel Management (North) Ltd,98735362,430.20,T&S UK - Accommodation
BEIS,UKRI - BBSRC,08/04/2020,T&S UK - Accommodation,Innovation and Skills Group,Corporate Travel Management (North) Ltd,98735362,0.80,T&S UK - Accommodation
BEIS,UKRI - BBSRC,08/04/2020,T&S UK - Accommodation,Innovation and Skills Group,Corporate Travel Management (North) Ltd,98735362,1.28,T&S UK - Accommodation
BEIS,UKRI - BBSRC,08/04/2020,T&S UK - Accommodation,Science Group,Corporate Travel Management (North) Ltd,98735362,0.80,T&S UK - Accommodation
BEIS,UKRI - BBSRC,08/04/2020,T&S UK - Accommodation,Science Group,Corporate Travel Management (North) Ltd,98735362,108.95,T&S UK - Accommodation
BEIS,UKRI - BBSRC,08/04/2020,T&S UK - Accommodation,Science Group,Corporate Travel Management (North) Ltd,98735362,0.80,T&S UK - Accommodation
BEIS,UKRI - BBSRC,08/04/2020,T&S UK - Accommodation,Science Group,Corporate Travel Management (North) Ltd,98735362,226.50,T&S UK - Accommodation
BEIS,UKRI - BBSRC,08/04/2020,T&S UK - Accommodation,Science Group,Corporate Travel Management (North) Ltd,98735362,0.80,T&S UK - Accommodation
BEIS,UKRI - BBSRC,08/04/2020,T&S UK - Accommodation,Science Group,Corporate Travel Management (North) Ltd,98735362,0.80,T&S UK - Accommodation
BEIS,UKRI - BBSRC,08/04/2020,T&S UK - Accommodation,Science Group,Corporate Travel Management (North) Ltd,98735362,122.00,T&S UK - Accommodation
BEIS,UKRI - BBSRC,08/04/2020,T&S UK - Accommodation,Science Group,Corporate Travel Management (North) Ltd,98735362,2.00,T&S UK - Accommodation
BEIS,UKRI - BBSRC,08/04/2020,T&S UK - Accommodation,Science Group,Corporate Travel Management (North) Ltd,98735362,1.04,T&S UK - Accommodation
BEIS,UKRI - BBSRC,08/04/2020,T&S UK - Flights,FG - Estates,Corporate Travel Management (North) Ltd,98735362,2.50,T&S UK - Flights
BEIS,UKRI - BBSRC,08/04/2020,T&S UK - Flights,FG - Estates,Corporate Travel Management (North) Ltd,98735362,62.98,T&S UK - Flights
BEIS,UKRI - BBSRC,08/04/2020,T&S UK - Parking Tolls Congestion Charges,CE - CPS,Corporate Travel Management (North) Ltd,98735362,4.50,T&S UK - Parking Tolls Congestion Charges
BEIS,UKRI - BBSRC,08/04/2020,T&S UK - Parking Tolls Congestion Charges,CE - CPS,Corporate Travel Management (North) Ltd,98735362,4.50,T&S UK - Parking Tolls Congestion Charges
BEIS,UKRI - BBSRC,08/04/2020,T&S UK - Parking Tolls Congestion Charges,CE - CPS,Corporate Travel Management (North) Ltd,98735362,44.99,T&S UK - Parking Tolls Congestion Charges
BEIS,UKRI - BBSRC,08/04/2020,T&S UK - Parking Tolls Congestion Charges,CE - CPS,Corporate Travel Management (North) Ltd,98735362,31.99,T&S UK - Parking Tolls Congestion Charges
BEIS,UKRI - BBSRC,08/04/2020,T&S UK - Parking Tolls Congestion Charges,CE - CPS,Corporate Travel Management (North) Ltd,98735362,0.90,T&S UK - Parking Tolls Congestion Charges
BEIS,UKRI - BBSRC,08/04/2020,T&S UK - Parking Tolls Congestion Charges,CE - CPS,Corporate Travel Management (North) Ltd,98735362,0.90,T&S UK - Parking Tolls Congestion Charges
BEIS,UKRI - BBSRC,08/04/2020,T&S UK - Public Transport,CE - CPS,Corporate Travel Management (North) Ltd,98735362,5.00,T&S UK - Public Transport
BEIS,UKRI - BBSRC,08/04/2020,T&S UK - Public Transport,CE - CPS,Corporate Travel Management (North) Ltd,98735362,-130.80,T&S UK - Public Transport
BEIS,UKRI - BBSRC,08/04/2020,T&S UK - Public Transport,CE - CPS,Corporate Travel Management (North) Ltd,98735362,0.25,T&S UK - Public Transport
BEIS,UKRI - BBSRC,08/04/2020,T&S UK - Public Transport,CE - CPS,Corporate Travel Management (North) Ltd,98735362,53.80,T&S UK - Public Transport
BEIS,UKRI - BBSRC,08/04/2020,T&S UK - Public Transport,CE - CPS,Corporate Travel Management (North) Ltd,98735362,0.25,T&S UK - Public Transport
BEIS,UKRI - BBSRC,08/04/2020,T&S UK - Public Transport,CE - CPS,Corporate Travel Management (North) Ltd,98735362,91.00,T&S UK - Public Transport
BEIS,UKRI - BBSRC,08/04/2020,T&S UK - Public Transport,CE - CPS,Corporate Travel Management (North) Ltd,98735362,0.25,T&S UK - Public Transport
BEIS,UKRI - BBSRC,08/04/2020,T&S UK - Public Transport,CE - CPS,Corporate Travel Management (North) Ltd,98735362,19.60,T&S UK - Public Transport
BEIS,UKRI - BBSRC,08/04/2020,T&S UK - Public Transport,CE - CPS,Corporate Travel Management (North) Ltd,98735362,0.25,T&S UK - Public Transport
BEIS,UKRI - BBSRC,08/04/2020,T&S UK - Public Transport,CE - CPS,Corporate Travel Management (North) Ltd,98735362,132.10,T&S UK - Public Transport
BEIS,UKRI - BBSRC,08/04/2020,T&S UK - Public Transport,CE - CPS,Corporate Travel Management (North) Ltd,98735362,0.25,T&S UK - Public Transport
BEIS,UKRI - BBSRC,08/04/2020,T&S UK - Public Transport,CE - CPS,Corporate Travel Management (North) Ltd,98735362,60.05,T&S UK - Public Transport
BEIS,UKRI - BBSRC,08/04/2020,T&S UK - Public Transport,CE - CPS,Corporate Travel Management (North) Ltd,98735362,0.25,T&S UK - Public Transport
BEIS,UKRI - BBSRC,08/04/2020,T&S UK - Public Transport,CE - CPS,Corporate Travel Management (North) Ltd,98735362,132.10,T&S UK - Public Transport
BEIS,UKRI - BBSRC,08/04/2020,T&S UK - Public Transport,CE - CPS,Corporate Travel Management (North) Ltd,98735362,0.50,T&S UK - Public Transport
BEIS,UKRI - BBSRC,08/04/2020,T&S UK - Public Transport,CE - CPS,Corporate Travel Management (North) Ltd,98735362,28.30,T&S UK - Public Transport
BEIS,UKRI - BBSRC,08/04/2020,T&S UK - Public Transport,CE - CPS,Corporate Travel Management (North) Ltd,98735362,105.50,T&S UK - Public Transport
BEIS,UKRI - BBSRC,08/04/2020,T&S UK - Public Transport,CE - CPS,Corporate Travel Management (North) Ltd,98735362,0.25,T&S UK - Public Transport
BEIS,UKRI - BBSRC,08/04/2020,T&S UK - Public Transport,CE - CPS,Corporate Travel Management (North) Ltd,98735362,28.30,T&S UK - Public Transport
BEIS,UKRI - BBSRC,08/04/2020,T&S UK - Public Transport,CE - CPS,Corporate Travel Management (North) Ltd,98735362,0.50,T&S UK - Public Transport
BEIS,UKRI - BBSRC,08/04/2020,T&S UK - Public Transport,CE - CPS,Corporate Travel Management (North) Ltd,98735362,18.70,T&S UK - Public Transport
BEIS,UKRI - BBSRC,08/04/2020,T&S UK - Public Transport,CE - CPS,Corporate Travel Management (North) Ltd,98735362,105.50,T&S UK - Public Transport
BEIS,UKRI - BBSRC,08/04/2020,T&S UK - Public Transport,CE - CPS,Corporate Travel Management (North) Ltd,98735362,0.50,T&S UK - Public Transport
BEIS,UKRI - BBSRC,08/04/2020,T&S UK - Public Transport,CE - CPS,Corporate Travel Management (North) Ltd,98735362,28.30,T&S UK - Public Transport
BEIS,UKRI - BBSRC,08/04/2020,T&S UK - Public Transport,CE - CPS,Corporate Travel Management (North) Ltd,98735362,127.20,T&S UK - Public Transport
BEIS,UKRI - BBSRC,08/04/2020,T&S UK - Public Transport,CE - CPS,Corporate Travel Management (North) Ltd,98735362,0.25,T&S UK - Public Transport
BEIS,UKRI - BBSRC,08/04/2020,T&S UK - Public Transport,CE - CPS,Corporate Travel Management (North) Ltd,98735362,135.30,T&S UK - Public Transport
BEIS,UKRI - BBSRC,08/04/2020,T&S UK - Public Transport,CE - Chief Executive,Corporate Travel Management (North) Ltd,98735362,0.25,T&S UK - Public Transport
BEIS,UKRI - BBSRC,08/04/2020,T&S UK - Public Transport,CE - Chief Executive,Corporate Travel Management (North) Ltd,98735362,40.50,T&S UK - Public Transport
BEIS,UKRI - BBSRC,08/04/2020,T&S UK - Public Transport,CE - Chief Executive,Corporate Travel Management (North) Ltd,98735362,0.25,T&S UK - Public Transport
BEIS,UKRI - BBSRC,08/04/2020,T&S UK - Public Transport,CE - Chief Executive,Corporate Travel Management (North) Ltd,98735362,76.10,T&S UK - Public Transport
BEIS,UKRI - BBSRC,08/04/2020,T&S UK - Public Transport,CE - Chief Executive,Corporate Travel Management (North) Ltd,98735362,0.25,T&S UK - Public Transport
BEIS,UKRI - BBSRC,08/04/2020,T&S UK - Public Transport,CE - Chief Executive,Corporate Travel Management (North) Ltd,98735362,73.00,T&S UK - Public Transport
BEIS,UKRI - BBSRC,08/04/2020,T&S UK - Public Transport,CE - Chief Executive,Corporate Travel Management (North) Ltd,98735362,0.25,T&S UK - Public Transport
BEIS,UKRI - BBSRC,08/04/2020,T&S UK - Public Transport,CE - Chief Executive,Corporate Travel Management (North) Ltd,98735362,11.10,T&S UK - Public Transport
BEIS,UKRI - BBSRC,08/04/2020,T&S UK - Public Transport,CE - IRU,Corporate Travel Management (North) Ltd,98735362,0.25,T&S UK - Public Transport
BEIS,UKRI - BBSRC,08/04/2020,T&S UK - Public Transport,CE - IRU,Corporate Travel Management (North) Ltd,98735362,106.60,T&S UK - Public Transport
BEIS,UKRI - BBSRC,08/04/2020,T&S UK - Public Transport,CE - IRU,Corporate Travel Management (North) Ltd,98735362,5.00,T&S UK - Public Transport
BEIS,UKRI - BBSRC,08/04/2020,T&S UK - Public Transport,CE - IRU,Corporate Travel Management (North) Ltd,98735362,-11.90,T&S UK - Public Transport
BEIS,UKRI - BBSRC,08/04/2020,T&S UK - Public Transport,CE - IRU,Corporate Travel Management (North) Ltd,98735362,0.25,T&S UK - Public Transport
BEIS,UKRI - BBSRC,08/04/2020,T&S UK - Public Transport,CE - IRU,Corporate Travel Management (North) Ltd,98735362,51.60,T&S UK - Public Transport
BEIS,UKRI - BBSRC,08/04/2020,T&S UK - Public Transport,CIMG - Director,Corporate Travel Management (North) Ltd,98735362,0.25,T&S UK - Public Transport
BEIS,UKRI - BBSRC,08/04/2020,T&S UK - Public Transport,CIMG - Director,Corporate Travel Management (North) Ltd,98735362,73.00,T&S UK - Public Transport
BEIS,UKRI - BBSRC,08/04/2020,T&S UK - Public Transport,CIMG - Director,Corporate Travel Management (North) Ltd,98735362,0.25,T&S UK - Public Transport
BEIS,UKRI - BBSRC,08/04/2020,T&S UK - Public Transport,CIMG - Director,Corporate Travel Management (North) Ltd,98735362,106.60,T&S UK - Public Transport
BEIS,UKRI - BBSRC,08/04/2020,T&S UK - Public Transport,CIMG - Director,Corporate Travel Management (North) Ltd,98735362,0.25,T&S UK - Public Transport
BEIS,UKRI - BBSRC,08/04/2020,T&S UK - Public Transport,CIMG - Director,Corporate Travel Management (North) Ltd,98735362,12.20,T&S UK - Public Transport
BEIS,UKRI - BBSRC,08/04/2020,T&S UK - Public Transport,Innovation and Skills Group,Corporate Travel Management (North) Ltd,98735362,5.00,T&S UK - Public Transport
BEIS,UKRI - BBSRC,08/04/2020,T&S UK - Public Transport,Innovation and Skills Group,Corporate Travel Management (North) Ltd,98735362,-94.30,T&S UK - Public Transport
BEIS,UKRI - BBSRC,08/04/2020,T&S UK - Public Transport,Innovation and Skills Group,Corporate Travel Management (North) Ltd,98735362,0.25,T&S UK - Public Transport
BEIS,UKRI - BBSRC,08/04/2020,T&S UK - Public Transport,Innovation and Skills Group,Corporate Travel Management (North) Ltd,98735362,148.00,T&S UK - Public Transport
BEIS,UKRI - BBSRC,08/04/2020,T&S UK - Public Transport,Innovation and Skills Group,Corporate Travel Management (North) Ltd,98735362,0.25,T&S UK - Public Transport
BEIS,UKRI - BBSRC,08/04/2020,T&S UK - Public Transport,Innovation and Skills Group,Corporate Travel Management (North) Ltd,98735362,74.00,T&S UK - Public Transport
BEIS,UKRI - BBSRC,08/04/2020,T&S UK - Public Transport,Innovation and Skills Group,Corporate Travel Management (North) Ltd,98735362,0.25,T&S UK - Public Transport
BEIS,UKRI - BBSRC,08/04/2020,T&S UK - Public Transport,Innovation and Skills Group,Corporate Travel Management (North) Ltd,98735362,148.00,T&S UK - Public Transport
BEIS,UKRI - BBSRC,08/04/2020,T&S UK - Public Transport,Innovation and Skills Group,Corporate Travel Management (North) Ltd,98735362,0.25,T&S UK - Public Transport
BEIS,UKRI - BBSRC,08/04/2020,T&S UK - Public Transport,Innovation and Skills Group,Corporate Travel Management (North) Ltd,98735362,200.30,T&S UK - Public Transport
BEIS,UKRI - BBSRC,08/04/2020,T&S UK - Public Transport,Innovation and Skills Group,Corporate Travel Management (North) Ltd,98735362,0.50,T&S UK - Public Transport
BEIS,UKRI - BBSRC,08/04/2020,T&S UK - Public Transport,Innovation and Skills Group,Corporate Travel Management (North) Ltd,98735362,32.60,T&S UK - Public Transport
BEIS,UKRI - BBSRC,08/04/2020,T&S UK - Public Transport,Innovation and Skills Group,Corporate Travel Management (North) Ltd,98735362,24.20,T&S UK - Public Transport
BEIS,UKRI - BBSRC,08/04/2020,T&S UK - Public Transport,Innovation and Skills Group,Corporate Travel Management (North) Ltd,98735362,0.25,T&S UK - Public Transport
BEIS,UKRI - BBSRC,08/04/2020,T&S UK - Public Transport,Innovation and Skills Group,Corporate Travel Management (North) Ltd,98735362,71.70,T&S UK - Public Transport
BEIS,UKRI - BBSRC,08/04/2020,T&S UK - Public Transport,Innovation and Skills Group,Corporate Travel Management (North) Ltd,98735362,0.50,T&S UK - Public Transport
BEIS,UKRI - BBSRC,08/04/2020,T&S UK - Public Transport,Innovation and Skills Group,Corporate Travel Management (North) Ltd,98735362,74.00,T&S UK - Public Transport
BEIS,UKRI - BBSRC,08/04/2020,T&S UK - Public Transport,Innovation and Skills Group,Corporate Travel Management (North) Ltd,98735362,28.80,T&S UK - Public Transport
BEIS,UKRI - BBSRC,08/04/2020,T&S UK - Public Transport,Innovation and Skills Group,Corporate Travel Management (North) Ltd,98735362,0.25,T&S UK - Public Transport
BEIS,UKRI - BBSRC,08/04/2020,T&S UK - Public Transport,Innovation and Skills Group,Corporate Travel Management (North) Ltd,98735362,54.90,T&S UK - Public Transport
BEIS,UKRI - BBSRC,08/04/2020,T&S UK - Public Transport,Innovation and Skills Group,Corporate Travel Management (North) Ltd,98735362,0.25,T&S UK - Public Transport
BEIS,UKRI - BBSRC,08/04/2020,T&S UK - Public Transport,Innovation and Skills Group,Corporate Travel Management (North) Ltd,98735362,106.60,T&S UK - Public Transport
BEIS,UKRI - BBSRC,08/04/2020,T&S UK - Public Transport,Innovation and Skills Group,Corporate Travel Management (North) Ltd,98735362,0.75,T&S UK - Public Transport
BEIS,UKRI - BBSRC,08/04/2020,T&S UK - Public Transport,Innovation and Skills Group,Corporate Travel Management (North) Ltd,98735362,255.40,T&S UK - Public Transport
BEIS,UKRI - BBSRC,08/04/2020,T&S UK - Public Transport,Innovation and Skills Group,Corporate Travel Management (North) Ltd,98735362,0.25,T&S UK - Public Transport
BEIS,UKRI - BBSRC,08/04/2020,T&S UK - Public Transport,Innovation and Skills Group,Corporate Travel Management (North) Ltd,98735362,148.00,T&S UK - Public Transport
BEIS,UKRI - BBSRC,08/04/2020,T&S UK - Public Transport,Innovation and Skills Group,Corporate Travel Management (North) Ltd,98735362,0.50,T&S UK - Public Transport
BEIS,UKRI - BBSRC,08/04/2020,T&S UK - Public Transport,Innovation and Skills Group,Corporate Travel Management (North) Ltd,98735362,168.10,T&S UK - Public Transport
BEIS,UKRI - BBSRC,08/04/2020,T&S UK - Public Transport,Innovation and Skills Group,Corporate Travel Management (North) Ltd,98735362,0.25,T&S UK - Public Transport
BEIS,UKRI - BBSRC,08/04/2020,T&S UK - Public Transport,Innovation and Skills Group,Corporate Travel Management (North) Ltd,98735362,148.80,T&S UK - Public Transport
BEIS,UKRI - BBSRC,08/04/2020,T&S UK - Public Transport,Innovation and Skills Group,Corporate Travel Management (North) Ltd,98735362,0.25,T&S UK - Public Transport
BEIS,UKRI - BBSRC,08/04/2020,T&S UK - Public Transport,Innovation and Skills Group,Corporate Travel Management (North) Ltd,98735362,82.75,T&S UK - Public Transport
BEIS,UKRI - BBSRC,08/04/2020,T&S UK - Public Transport,Innovation and Skills Group,Corporate Travel Management (North) Ltd,98735362,5.00,T&S UK - Public Transport
BEIS,UKRI - BBSRC,08/04/2020,T&S UK - Public Transport,Innovation and Skills Group,Corporate Travel Management (North) Ltd,98735362,-27.60,T&S UK - Public Transport
BEIS,UKRI - BBSRC,08/04/2020,T&S UK - Public Transport,Innovation and Skills Group,Corporate Travel Management (North) Ltd,98735362,0.25,T&S UK - Public Transport
BEIS,UKRI - BBSRC,08/04/2020,T&S UK - Public Transport,Innovation and Skills Group,Corporate Travel Management (North) Ltd,98735362,196.90,T&S UK - Public Transport
BEIS,UKRI - BBSRC,08/04/2020,T&S UK - Public Transport,Innovation and Skills Group,Corporate Travel Management (North) Ltd,98735362,0.06,T&S UK - Public Transport
BEIS,UKRI - BBSRC,08/04/2020,T&S UK - Public Transport,Innovation and Skills Group,Corporate Travel Management (North) Ltd,98735362,97.00,T&S UK - Public Transport
BEIS,UKRI - BBSRC,08/04/2020,T&S UK - Public Transport,Innovation and Skills Group,Corporate Travel Management (North) Ltd,98735362,0.06,T&S UK - Public Transport
BEIS,UKRI - BBSRC,08/04/2020,T&S UK - Public Transport,Innovation and Skills Group,Corporate Travel Management (North) Ltd,98735362,97.00,T&S UK - Public Transport
BEIS,UKRI - BBSRC,08/04/2020,T&S UK - Public Transport,Innovation and Skills Group,Corporate Travel Management (North) Ltd,98735362,5.00,T&S UK - Public Transport
BEIS,UKRI - BBSRC,08/04/2020,T&S UK - Public Transport,Innovation and Skills Group,Corporate Travel Management (North) Ltd,98735362,-143.00,T&S UK - Public Transport
BEIS,UKRI - BBSRC,08/04/2020,T&S UK - Public Transport,Innovation and Skills Group,Corporate Travel Management (North) Ltd,98735362,5.00,T&S UK - Public Transport
BEIS,UKRI - BBSRC,08/04/2020,T&S UK - Public Transport,Innovation and Skills Group,Corporate Travel Management (North) Ltd,98735362,-49.90,T&S UK - Public Transport
BEIS,UKRI - BBSRC,08/04/2020,T&S UK - Public Transport,Innovation and Skills Group CDSU,Corporate Travel Management (North) Ltd,98735362,5.00,T&S UK - Public Transport
BEIS,UKRI - BBSRC,08/04/2020,T&S UK - Public Transport,Innovation and Skills Group CDSU,Corporate Travel Management (North) Ltd,98735362,-143.80,T&S UK - Public Transport
BEIS,UKRI - BBSRC,08/04/2020,T&S UK - Public Transport,Science Group,Corporate Travel Management (North) Ltd,98735362,0.25,T&S UK - Public Transport
BEIS,UKRI - BBSRC,08/04/2020,T&S UK - Public Transport,Science Group,Corporate Travel Management (North) Ltd,98735362,230.20,T&S UK - Public Transport
BEIS,UKRI - BBSRC,08/04/2020,T&S UK - Public Transport,Science Group,Corporate Travel Management (North) Ltd,98735362,0.25,T&S UK - Public Transport
BEIS,UKRI - BBSRC,08/04/2020,T&S UK - Public Transport,Science Group,Corporate Travel Management (North) Ltd,98735362,117.50,T&S UK - Public Transport
BEIS,UKRI - BBSRC,08/04/2020,T&S UK - Public Transport,Science Group,Corporate Travel Management (North) Ltd,98735362,0.25,T&S UK - Public Transport
BEIS,UKRI - BBSRC,08/04/2020,T&S UK - Public Transport,Science Group,Corporate Travel Management (North) Ltd,98735362,148.00,T&S UK - Public Transport
BEIS,UKRI - BBSRC,08/04/2020,T&S UK - Public Transport,Science Group,Corporate Travel Management (North) Ltd,98735362,0.25,T&S UK - Public Transport
BEIS,UKRI - BBSRC,08/04/2020,T&S UK - Public Transport,Science Group,Corporate Travel Management (North) Ltd,98735362,32.60,T&S UK - Public Transport
BEIS,UKRI - BBSRC,08/04/2020,T&S UK - Public Transport,Science Group,Corporate Travel Management (North) Ltd,98735362,0.25,T&S UK - Public Transport
BEIS,UKRI - BBSRC,08/04/2020,T&S UK - Public Transport,Science Group,Corporate Travel Management (North) Ltd,98735362,55.50,T&S UK - Public Transport
BEIS,UKRI - BBSRC,08/04/2020,T&S UK - Public Transport,Science Group,Corporate Travel Management (North) Ltd,98735362,0.50,T&S UK - Public Transport
BEIS,UKRI - BBSRC,08/04/2020,T&S UK - Public Transport,Science Group,Corporate Travel Management (North) Ltd,98735362,25.00,T&S UK - Public Transport
BEIS,UKRI - BBSRC,08/04/2020,T&S UK - Public Transport,Science Group,Corporate Travel Management (North) Ltd,98735362,106.60,T&S UK - Public Transport
BEIS,UKRI - BBSRC,08/04/2020,T&S UK - Public Transport,Science Group,Corporate Travel Management (North) Ltd,98735362,0.25,T&S UK - Public Transport
BEIS,UKRI - BBSRC,08/04/2020,T&S UK - Public Transport,Science Group,Corporate Travel Management (North) Ltd,98735362,117.50,T&S UK - Public Transport
BEIS,UKRI - BBSRC,08/04/2020,T&S UK - Public Transport,Science Group,Corporate Travel Management (North) Ltd,98735362,0.25,T&S UK - Public Transport
BEIS,UKRI - BBSRC,08/04/2020,T&S UK - Public Transport,Science Group,Corporate Travel Management (North) Ltd,98735362,73.00,T&S UK - Public Transport
BEIS,UKRI - BBSRC,08/04/2020,T&S UK - Public Transport,Science Group,Corporate Travel Management (North) Ltd,98735362,0.25,T&S UK - Public Transport
BEIS,UKRI - BBSRC,08/04/2020,T&S UK - Public Transport,Science Group,Corporate Travel Management (North) Ltd,98735362,38.00,T&S UK - Public Transport
BEIS,UKRI - BBSRC,08/04/2020,T&S UK - Public Transport,Science Group,Corporate Travel Management (North) Ltd,98735362,0.25,T&S UK - Public Transport
BEIS,UKRI - BBSRC,08/04/2020,T&S UK - Public Transport,Science Group,Corporate Travel Management (North) Ltd,98735362,117.50,T&S UK - Public Transport
BEIS,UKRI - BBSRC,08/04/2020,T&S UK - Public Transport,Science Group,Corporate Travel Management (North) Ltd,98735362,0.25,T&S UK - Public Transport
BEIS,UKRI - BBSRC,08/04/2020,T&S UK - Public Transport,Science Group,Corporate Travel Management (North) Ltd,98735362,69.60,T&S UK - Public Transport
BEIS,UKRI - BBSRC,08/04/2020,T&S UK - Public Transport,Science Group,Corporate Travel Management (North) Ltd,98735362,0.25,T&S UK - Public Transport
BEIS,UKRI - BBSRC,08/04/2020,T&S UK - Public Transport,Science Group,Corporate Travel Management (North) Ltd,98735362,106.60,T&S UK - Public Transport
BEIS,UKRI - BBSRC,08/04/2020,T&S UK - Public Transport,Science Group,Corporate Travel Management (North) Ltd,98735362,0.25,T&S UK - Public Transport
BEIS,UKRI - BBSRC,08/04/2020,T&S UK - Public Transport,Science Group,Corporate Travel Management (North) Ltd,98735362,69.40,T&S UK - Public Transport
BEIS,UKRI - BBSRC,08/04/2020,T&S UK - Public Transport,Science Group,Corporate Travel Management (North) Ltd,98735362,0.25,T&S UK - Public Transport
BEIS,UKRI - BBSRC,08/04/2020,T&S UK - Public Transport,Science Group,Corporate Travel Management (North) Ltd,98735362,87.00,T&S UK - Public Transport
BEIS,UKRI - BBSRC,08/04/2020,T&S UK - Public Transport,Science Group,Corporate Travel Management (North) Ltd,98735362,0.25,T&S UK - Public Transport
BEIS,UKRI - BBSRC,08/04/2020,T&S UK - Public Transport,Science Group,Corporate Travel Management (North) Ltd,98735362,74.50,T&S UK - Public Transport
BEIS,UKRI - BBSRC,08/04/2020,T&S UK - Public Transport,Science Group,Corporate Travel Management (North) Ltd,98735362,5.00,T&S UK - Public Transport
BEIS,UKRI - BBSRC,08/04/2020,T&S UK - Public Transport,Science Group,Corporate Travel Management (North) Ltd,98735362,-162.60,T&S UK - Public Transport
BEIS,UKRI - BBSRC,08/04/2020,T&S UK - Public Transport,Science Group - Delivery Function,Corporate Travel Management (North) Ltd,98735362,0.25,T&S UK - Public Transport
BEIS,UKRI - BBSRC,08/04/2020,T&S UK - Public Transport,Science Group - Delivery Function,Corporate Travel Management (North) Ltd,98735362,95.40,T&S UK - Public Transport
BEIS,UKRI - BBSRC,08/04/2020,T&S UK - Public Transport,Science Group - Delivery Function,Corporate Travel Management (North) Ltd,98735362,0.12,T&S UK - Public Transport
BEIS,UKRI - BBSRC,08/04/2020,T&S UK - Public Transport,Science Group - Delivery Function,Corporate Travel Management (North) Ltd,98735362,148.00,T&S UK - Public Transport
BEIS,UKRI - BBSRC,08/04/2020,T&S UK - Public Transport,Science Group - Delivery Function,Corporate Travel Management (North) Ltd,98735362,0.25,T&S UK - Public Transport
BEIS,UKRI - BBSRC,08/04/2020,T&S UK - Public Transport,Science Group - Delivery Function,Corporate Travel Management (North) Ltd,98735362,98.20,T&S UK - Public Transport
BEIS,UKRI - BBSRC,08/04/2020,T&S UK - Public Transport,Science Group - Delivery Function,Corporate Travel Management (North) Ltd,98735362,0.13,T&S UK - Public Transport
BEIS,UKRI - BBSRC,08/04/2020,T&S UK - Public Transport,Science Group - Delivery Function,Corporate Travel Management (North) Ltd,98735362,148.00,T&S UK - Public Transport
BEIS,UKRI - BBSRC,08/04/2020,T&S UK - Public Transport,Science Group - Delivery Function,Corporate Travel Management (North) Ltd,98735362,0.25,T&S UK - Public Transport
BEIS,UKRI - BBSRC,08/04/2020,T&S UK - Public Transport,Science Group - Delivery Function,Corporate Travel Management (North) Ltd,98735362,77.55,T&S UK - Public Transport
BEIS,UKRI - BBSRC,08/04/2020,T&S UK - Public Transport,Science Group - Delivery Function,Corporate Travel Management (North) Ltd,98735362,0.06,T&S UK - Public Transport
BEIS,UKRI - BBSRC,08/04/2020,T&S UK - Public Transport,Science Group - Delivery Function,Corporate Travel Management (North) Ltd,98735362,97.00,T&S UK - Public Transport
BEIS,UKRI - BBSRC,08/04/2020,T&S UK - Public Transport,Science Group - Delivery Function,Corporate Travel Management (North) Ltd,98735362,0.07,T&S UK - Public Transport
BEIS,UKRI - BBSRC,08/04/2020,T&S UK - Public Transport,Science Group - Delivery Function,Corporate Travel Management (North) Ltd,98735362,97.00,T&S UK - Public Transport
BEIS,UKRI - BBSRC,08/04/2020,T&S UK - Vehicle Hire,CE - Chief Executive,Corporate Travel Management (North) Ltd,98735362,2.50,T&S UK - Vehicle Hire
BEIS,UKRI - BBSRC,08/04/2020,T&S UK - Vehicle Hire,CE - Chief Executive,Corporate Travel Management (North) Ltd,98735362,9.73,T&S UK - Vehicle Hire
BEIS,UKRI - BBSRC,08/04/2020,T&S UK - Vehicle Hire,CE - Chief Executive,Corporate Travel Management (North) Ltd,98735362,0.50,T&S UK - Vehicle Hire
BEIS,UKRI - BBSRC,08/04/2020,T&S UK - Vehicle Hire,CE - IRU,Corporate Travel Management (North) Ltd,98735362,5.00,T&S UK - Vehicle Hire
BEIS,UKRI - BBSRC,08/04/2020,T&S UK - Vehicle Hire,CE - IRU,Corporate Travel Management (North) Ltd,98735362,12.67,T&S UK - Vehicle Hire
BEIS,UKRI - BBSRC,08/04/2020,T&S UK - Vehicle Hire,CE - IRU,Corporate Travel Management (North) Ltd,98735362,12.67,T&S UK - Vehicle Hire
BEIS,UKRI - BBSRC,08/04/2020,T&S UK - Vehicle Hire,CE - IRU,Corporate Travel Management (North) Ltd,98735362,1.00,T&S UK - Vehicle Hire
BEIS,UKRI - BBSRC,08/04/2020,T&S UK - Vehicle Hire,Innovation and Skills Group,Corporate Travel Management (North) Ltd,98735362,2.50,T&S UK - Vehicle Hire
BEIS,UKRI - BBSRC,08/04/2020,T&S UK - Vehicle Hire,Innovation and Skills Group,Corporate Travel Management (North) Ltd,98735362,20.76,T&S UK - Vehicle Hire
BEIS,UKRI - BBSRC,08/04/2020,T&S UK - Vehicle Hire,Innovation and Skills Group,Corporate Travel Management (North) Ltd,98735362,2.50,T&S UK - Vehicle Hire
BEIS,UKRI - BBSRC,08/04/2020,T&S UK - Vehicle Hire,Innovation and Skills Group,Corporate Travel Management (North) Ltd,98735362,9.66,T&S UK - Vehicle Hire
BEIS,UKRI - BBSRC,08/04/2020,T&S UK - Vehicle Hire,Innovation and Skills Group,Corporate Travel Management (North) Ltd,98735362,1.00,T&S UK - Vehicle Hire
BEIS,UKRI - BBSRC,08/04/2020,T&S UK - Vehicle Hire,Science Group,Corporate Travel Management (North) Ltd,98735362,2.50,T&S UK - Vehicle Hire
BEIS,UKRI - BBSRC,08/04/2020,T&S UK - Vehicle Hire,Science Group,Corporate Travel Management (North) Ltd,98735362,28.06,T&S UK - Vehicle Hire
BEIS,UKRI - BBSRC,08/04/2020,T&S UK - Vehicle Hire,Science Group,Corporate Travel Management (North) Ltd,98735362,2.50,T&S UK - Vehicle Hire
BEIS,UKRI - BBSRC,08/04/2020,T&S UK - Vehicle Hire,Science Group,Corporate Travel Management (North) Ltd,98735362,25.54,T&S UK - Vehicle Hire
BEIS,UKRI - BBSRC,08/04/2020,T&S UK - Vehicle Hire,Science Group,Corporate Travel Management (North) Ltd,98735362,7.50,T&S UK - Vehicle Hire
BEIS,UKRI - BBSRC,08/04/2020,T&S UK - Vehicle Hire,Science Group,Corporate Travel Management (North) Ltd,98735362,9.66,T&S UK - Vehicle Hire
BEIS,UKRI - BBSRC,08/04/2020,T&S UK - Vehicle Hire,Science Group,Corporate Travel Management (North) Ltd,98735362,12.67,T&S UK - Vehicle Hire
BEIS,UKRI - BBSRC,08/04/2020,T&S UK - Vehicle Hire,Science Group,Corporate Travel Management (North) Ltd,98735362,12.67,T&S UK - Vehicle Hire
BEIS,UKRI - BBSRC,08/04/2020,T&S UK - Vehicle Hire,Science Group,Corporate Travel Management (North) Ltd,98735362,2.50,T&S UK - Vehicle Hire
BEIS,UKRI - BBSRC,08/04/2020,T&S UK - Vehicle Hire,Science Group,Corporate Travel Management (North) Ltd,98735362,25.54,T&S UK - Vehicle Hire
BEIS,UKRI - BBSRC,08/04/2020,T&S UK - Vehicle Hire,Science Group,Corporate Travel Management (North) Ltd,98735362,3.00,T&S UK - Vehicle Hire
BEIS,UKRI - BBSRC,08/04/2020,Conferences & Seminars,Science Group,Calder Conference Ltd,98735427,280.00,Conferences & Seminars
BEIS,UKRI - BBSRC,08/04/2020,Recruitment Costs,PDG - Director,Warwick University Services Ltd,98735447,300.00,Recruitment Costs
BEIS,UKRI - BBSRC,08/04/2020,Recruitment Costs,PDG - Director,Warwick University Services Ltd,98735447,300.00,Recruitment Costs
BEIS,UKRI - BBSRC,08/04/2020,Recruitment Costs,PDG - Director,Warwick University Services Ltd,98735447,300.00,Recruitment Costs
BEIS,UKRI - BBSRC,08/04/2020,T&S UK - Parking Tolls Congestion Charges,CE - CPS,Unspecified,98736480,12.90,T&S UK - Parking Tolls Congestion Charges
BEIS,UKRI - BBSRC,08/04/2020,T&S UK - Other Charges,Science Group,Unspecified,98736481,234.37,T&S UK - Other Charges
BEIS,UKRI - BBSRC,09/04/2020,Conferences & Seminars,Science Group,Unspecified,98730431,102.00,Conferences & Seminars
BEIS,UKRI - BBSRC,09/04/2020,Health & Safety (inc. Medicals & Opticians),PDG - Director,Swindon Occupational Medical Services Ltd,98735781,1325.00,Health & Safety (inc. Medicals & Opticians)
BEIS,UKRI - BBSRC,09/04/2020,Health & Safety (inc. Medicals & Opticians),PDG - Director,Swindon Occupational Medical Services Ltd,98735781,600.00,Health & Safety (inc. Medicals & Opticians)
BEIS,UKRI - BBSRC,09/04/2020,Telecoms - Tele/ Video conferencing,CE - Chief Executive,BT Conferencing,98736691,8.38,Telecoms - Tele/ Video conferencing
BEIS,UKRI - BBSRC,09/04/2020,Telecoms - Tele/ Video conferencing,FG - Director,BT Conferencing,98736691,115.33,Telecoms - Tele/ Video conferencing
BEIS,UKRI - BBSRC,09/04/2020,T&S UK - Other Charges,Innovation and Skills Group CDSU,Unspecified,98736731,102.96,T&S UK - Other Charges
BEIS,UKRI - BBSRC,09/04/2020,T&S UK - Other Charges,Innovation and Skills Group CDSU,Unspecified,98736732,119.97,T&S UK - Other Charges
BEIS,UKRI - BBSRC,09/04/2020,T&S UK - Other Charges,Science Group,Unspecified,98736733,177.67,T&S UK - Other Charges
BEIS,UKRI - BBSRC,09/04/2020,T&S UK - Other Charges,CE - IRU,Unspecified,98736734,80.40,T&S UK - Other Charges
BEIS,UKRI - BBSRC,09/04/2020,T&S UK - Other Charges,Innovation and Skills Group,Unspecified,98736735,233.93,T&S UK - Other Charges
BEIS,UKRI - BBSRC,14/04/2020,Recharges From Councils - General,RISD - UKRO,UKRI - Engineering & Physical Sciences Research Council,98724450,-394724.42,Recharges From Councils - General
BEIS,UKRI - BBSRC,14/04/2020,Recharges From Councils - General,RISD - UKRO,UKRI - Engineering & Physical Sciences Research Council,98724466,394724.42,Recharges From Councils - General
BEIS,UKRI - BBSRC,14/04/2020,Unspecified,Balance Sheet,HM Revenue & Customs,98731677,66743.20,PAYE Payable Salaries
BEIS,UKRI - BBSRC,14/04/2020,Unspecified,Balance Sheet,HM Revenue & Customs,98731678,4369.00,Student Loans
BEIS,UKRI - BBSRC,14/04/2020,Unspecified,Balance Sheet,HM Revenue & Customs,98731679,95430.08,NI Payable Salaries
BEIS,UKRI - BBSRC,14/04/2020,Unspecified,FG - Accounts & Business Planning,HM Revenue & Customs,98731680,2417.00,Apprenticeship Levy
BEIS,UKRI - BBSRC,14/04/2020,Training Awards - Postgraduates,FG - Accounts & Business Planning,University of Edinburgh,98732039,6013.30,Training Awards - Postgraduates
BEIS,UKRI - BBSRC,14/04/2020,Training Awards - Postgraduates,FG - Accounts & Business Planning,Royal Veterinary College,98732040,3904.16,Training Awards - Postgraduates
BEIS,UKRI - BBSRC,14/04/2020,Training Awards - Postgraduates,FG - Accounts & Business Planning,University College London,98732041,1107189.94,Training Awards - Postgraduates
BEIS,UKRI - BBSRC,14/04/2020,Training Awards - Postgraduates,FG - Accounts & Business Planning,University of Nottingham,98732042,846149.00,Training Awards - Postgraduates
BEIS,UKRI - BBSRC,14/04/2020,Training Awards - Postgraduates,FG - Accounts & Business Planning,University of Cambridge,98732043,1020376.00,Training Awards - Postgraduates
BEIS,UKRI - BBSRC,14/04/2020,Training Awards - Postgraduates,FG - Accounts & Business Planning,John Innes Centre,98732044,854149.00,Training Awards - Postgraduates
BEIS,UKRI - BBSRC,14/04/2020,Training Awards - Postgraduates,FG - Accounts & Business Planning,University of Warwick,98732045,871000.00,Training Awards - Postgraduates
BEIS,UKRI - BBSRC,14/04/2020,Training Awards - Postgraduates,FG - Accounts & Business Planning,University of Oxford,98732046,846149.00,Training Awards - Postgraduates
BEIS,UKRI - BBSRC,14/04/2020,Training Awards - Postgraduates,FG - Accounts & Business Planning,University of Leeds,98732047,771596.00,Training Awards - Postgraduates
BEIS,UKRI - BBSRC,14/04/2020,Training Awards - Postgraduates,FG - Accounts & Business Planning,University of Newcastle Upon Tyne,98732048,273766.00,Training Awards - Postgraduates
BEIS,UKRI - BBSRC,14/04/2020,Training Awards - Postgraduates,FG - Accounts & Business Planning,Imperial College London,98732049,564546.00,Training Awards - Postgraduates
BEIS,UKRI - BBSRC,14/04/2020,Training Awards - Postgraduates,FG - Accounts & Business Planning,The University of Manchester,98732050,498100.00,Training Awards - Postgraduates
BEIS,UKRI - BBSRC,14/04/2020,Training Awards - Postgraduates,FG - Accounts & Business Planning,The University of Manchester,98732050,1997.40,Training Awards - Postgraduates
BEIS,UKRI - BBSRC,14/04/2020,Training Awards - Postgraduates,FG - Accounts & Business Planning,University of Edinburgh,98732051,497695.00,Training Awards - Postgraduates
BEIS,UKRI - BBSRC,14/04/2020,Training Awards - Postgraduates,FG - Accounts & Business Planning,University of Bristol GRANT,98732052,522546.00,Training Awards - Postgraduates
BEIS,UKRI - BBSRC,14/04/2020,Training Awards - Postgraduates,FG - Accounts & Business Planning,University of Edinburgh,98732053,5483.18,Training Awards - Postgraduates
BEIS,UKRI - BBSRC,14/04/2020,Training Awards - Postgraduates,FG - Accounts & Business Planning,University of Reading,98732054,5445.14,Training Awards - Postgraduates
BEIS,UKRI - BBSRC,14/04/2020,Training Awards - Postgraduates,FG - Accounts & Business Planning,University of Glasgow,98732055,5940.12,Training Awards - Postgraduates
BEIS,UKRI - BBSRC,14/04/2020,Training Awards - Postgraduates,FG - Accounts & Business Planning,University of Oxford,98732056,5940.12,Training Awards - Postgraduates
BEIS,UKRI - BBSRC,14/04/2020,Training Awards - Postgraduates,FG - Accounts & Business Planning,Lancaster University,98732057,4356.08,Training Awards - Postgraduates
BEIS,UKRI - BBSRC,14/04/2020,Training Awards - Postgraduates,FG - Accounts & Business Planning,Earlham Institute,98732058,4242.99,Training Awards - Postgraduates
BEIS,UKRI - BBSRC,14/04/2020,Training Awards - Postgraduates,FG - Accounts & Business Planning,King's College London,98732059,4953.94,Training Awards - Postgraduates
BEIS,UKRI - BBSRC,14/04/2020,Training Awards - Postgraduates,FG - Accounts & Business Planning,University of Cambridge,98732060,5940.12,Training Awards - Postgraduates
BEIS,UKRI - BBSRC,14/04/2020,Training Awards - Postgraduates,FG - Accounts & Business Planning,University of Leeds,98732061,5483.18,Training Awards - Postgraduates
BEIS,UKRI - BBSRC,14/04/2020,Training Awards - Postgraduates,FG - Accounts & Business Planning,University College London,98732062,6543.50,Training Awards - Postgraduates
BEIS,UKRI - BBSRC,14/04/2020,Training Awards - Postgraduates,FG - Accounts & Business Planning,University of Oxford,98732063,6043.50,Training Awards - Postgraduates
BEIS,UKRI - BBSRC,14/04/2020,Training Awards - Postgraduates,FG - Accounts & Business Planning,Royal Veterinary College,98732064,6543.50,Training Awards - Postgraduates
BEIS,UKRI - BBSRC,14/04/2020,Training Awards - Postgraduates,FG - Accounts & Business Planning,The University of Manchester,98732065,6043.50,Training Awards - Postgraduates
BEIS,UKRI - BBSRC,14/04/2020,Training Awards - Postgraduates,FG - Accounts & Business Planning,University of Leicester,98732066,6043.50,Training Awards - Postgraduates
BEIS,UKRI - BBSRC,14/04/2020,Training Awards - Postgraduates,FG - Accounts & Business Planning,University of Oxford,98732067,6043.50,Training Awards - Postgraduates
BEIS,UKRI - BBSRC,14/04/2020,Training Awards - Postgraduates,FG - Accounts & Business Planning,University of Oxford,98732068,5113.72,Training Awards - Postgraduates
BEIS,UKRI - BBSRC,14/04/2020,Training Awards - Postgraduates,FG - Accounts & Business Planning,Liverpool John Moores University,98732069,6043.50,Training Awards - Postgraduates
BEIS,UKRI - BBSRC,14/04/2020,Training Awards - Postgraduates,FG - Accounts & Business Planning,The University of Manchester,98732070,6043.50,Training Awards - Postgraduates
BEIS,UKRI - BBSRC,14/04/2020,Training Awards - Postgraduates,FG - Accounts & Business Planning,University of Newcastle Upon Tyne,98732071,6043.50,Training Awards - Postgraduates
BEIS,UKRI - BBSRC,14/04/2020,Training Awards - Postgraduates,FG - Accounts & Business Planning,University of Surrey,98732072,5180.15,Training Awards - Postgraduates
BEIS,UKRI - BBSRC,14/04/2020,Training Awards - Postgraduates,FG - Accounts & Business Planning,University College London,98732073,6543.50,Training Awards - Postgraduates
BEIS,UKRI - BBSRC,14/04/2020,Training Awards - Postgraduates,FG - Accounts & Business Planning,Queen Mary University of London,98732074,6543.50,Training Awards - Postgraduates
BEIS,UKRI - BBSRC,14/04/2020,Training Awards - Postgraduates,FG - Accounts & Business Planning,University of York,98732075,6043.50,Training Awards - Postgraduates
BEIS,UKRI - BBSRC,14/04/2020,Training Awards - Postgraduates,FG - Accounts & Business Planning,Queen Mary University of London,98732076,6543.50,Training Awards - Postgraduates
BEIS,UKRI - BBSRC,14/04/2020,Training Awards - Postgraduates,FG - Accounts & Business Planning,Wellcome Trust Sanger Institute,98732077,6043.50,Training Awards - Postgraduates
BEIS,UKRI - BBSRC,14/04/2020,Training Awards - Postgraduates,FG - Accounts & Business Planning,John Innes Centre,98732078,6043.50,Training Awards - Postgraduates
BEIS,UKRI - BBSRC,14/04/2020,Training Awards - Postgraduates,FG - Accounts & Business Planning,University of Leicester,98732079,6043.50,Training Awards - Postgraduates
BEIS,UKRI - BBSRC,14/04/2020,Training Awards - Postgraduates,FG - Accounts & Business Planning,University of Surrey,98732080,4532.61,Training Awards - Postgraduates
BEIS,UKRI - BBSRC,14/04/2020,Training Awards - Postgraduates,FG - Accounts & Business Planning,The University of Manchester,98732081,6043.50,Training Awards - Postgraduates
BEIS,UKRI - BBSRC,14/04/2020,Training Awards - Postgraduates,FG - Accounts & Business Planning,University of Glasgow,98732082,6043.50,Training Awards - Postgraduates
BEIS,UKRI - BBSRC,14/04/2020,Training Awards - Postgraduates,FG - Accounts & Business Planning,The Francis Crick Institute,98732083,6543.50,Training Awards - Postgraduates
BEIS,UKRI - BBSRC,14/04/2020,Training Awards - Postgraduates,FG - Accounts & Business Planning,King's College London,98732084,6543.50,Training Awards - Postgraduates
BEIS,UKRI - BBSRC,14/04/2020,Training Awards - Postgraduates,FG - Accounts & Business Planning,King's College London,98732085,6543.50,Training Awards - Postgraduates
BEIS,UKRI - BBSRC,14/04/2020,Training Awards - Postgraduates,FG - Accounts & Business Planning,The Francis Crick Institute,98732086,6543.50,Training Awards - Postgraduates
BEIS,UKRI - BBSRC,14/04/2020,Training Awards - Postgraduates,FG - Accounts & Business Planning,University of Edinburgh,98732087,6043.50,Training Awards - Postgraduates
BEIS,UKRI - BBSRC,14/04/2020,Training Awards - Postgraduates,FG - Accounts & Business Planning,University of Cambridge,98732088,6043.50,Training Awards - Postgraduates
BEIS,UKRI - BBSRC,14/04/2020,Training Awards - Postgraduates,FG - Accounts & Business Planning,Babraham Institute,98732089,6043.50,Training Awards - Postgraduates
BEIS,UKRI - BBSRC,14/04/2020,Training Awards - Postgraduates,FG - Accounts & Business Planning,University of York,98732090,6043.50,Training Awards - Postgraduates
BEIS,UKRI - BBSRC,14/04/2020,Training Awards - Postgraduates,FG - Accounts & Business Planning,Cambridge Crystallographic Data Centre,98732091,6043.50,Training Awards - Postgraduates
BEIS,UKRI - BBSRC,14/04/2020,Training Awards - Postgraduates,FG - Accounts & Business Planning,University of Nottingham,98732092,5578.62,Training Awards - Postgraduates
BEIS,UKRI - BBSRC,14/04/2020,Training Awards - Postgraduates,FG - Accounts & Business Planning,King's College London,98732093,6543.50,Training Awards - Postgraduates
BEIS,UKRI - BBSRC,14/04/2020,Training Awards - Postgraduates,FG - Accounts & Business Planning,"Royal Holloway, University of London",98732094,6543.50,Training Awards - Postgraduates
BEIS,UKRI - BBSRC,14/04/2020,Training Awards - Postgraduates,FG - Accounts & Business Planning,University College London,98732095,6543.50,Training Awards - Postgraduates
BEIS,UKRI - BBSRC,14/04/2020,Training Awards - Postgraduates,FG - Accounts & Business Planning,Imperial College London,98732096,6543.50,Training Awards - Postgraduates
BEIS,UKRI - BBSRC,14/04/2020,Training Awards - Postgraduates,FG - Accounts & Business Planning,King's College London,98732097,6543.50,Training Awards - Postgraduates
BEIS,UKRI - BBSRC,14/04/2020,Training Awards - Postgraduates,FG - Accounts & Business Planning,Liverpool John Moores University,98732098,6043.50,Training Awards - Postgraduates
BEIS,UKRI - BBSRC,14/04/2020,Training Awards - Postgraduates,FG - Accounts & Business Planning,Imperial College London,98732099,6543.50,Training Awards - Postgraduates
BEIS,UKRI - BBSRC,14/04/2020,Training Awards - Postgraduates,FG - Accounts & Business Planning,University of Southampton GRANT,98732100,6043.50,Training Awards - Postgraduates
BEIS,UKRI - BBSRC,14/04/2020,Training Awards - Postgraduates,FG - Accounts & Business Planning,Imperial College London,98732101,6543.50,Training Awards - Postgraduates
BEIS,UKRI - BBSRC,14/04/2020,Training Awards - Postgraduates,FG - Accounts & Business Planning,University of Bath,98732102,6043.50,Training Awards - Postgraduates
BEIS,UKRI - BBSRC,14/04/2020,Training Awards - Postgraduates,FG - Accounts & Business Planning,National Institute For Agricultural Botany (NIAB),98732103,4910.35,Training Awards - Postgraduates
BEIS,UKRI - BBSRC,14/04/2020,Training Awards - Postgraduates,FG - Accounts & Business Planning,University of Leicester,98732104,6043.50,Training Awards - Postgraduates
BEIS,UKRI - BBSRC,14/04/2020,Training Awards - Postgraduates,FG - Accounts & Business Planning,University of Exeter,98732105,3453.43,Training Awards - Postgraduates
BEIS,UKRI - BBSRC,14/04/2020,Training Awards - Postgraduates,FG - Accounts & Business Planning,University of Newcastle Upon Tyne,98732106,6043.50,Training Awards - Postgraduates
BEIS,UKRI - BBSRC,14/04/2020,Training Awards - Postgraduates,FG - Accounts & Business Planning,University of Exeter,98732107,6043.50,Training Awards - Postgraduates
BEIS,UKRI - BBSRC,14/04/2020,Training Awards - Postgraduates,FG - Accounts & Business Planning,University of Cambridge,98732108,6043.50,Training Awards - Postgraduates
BEIS,UKRI - BBSRC,14/04/2020,Training Awards - Postgraduates,FG - Accounts & Business Planning,University of Bristol GRANT,98732109,6043.50,Training Awards - Postgraduates
BEIS,UKRI - BBSRC,14/04/2020,Training Awards - Postgraduates,FG - Accounts & Business Planning,University of Essex,98732110,6043.50,Training Awards - Postgraduates
BEIS,UKRI - BBSRC,14/04/2020,Training Awards - Postgraduates,FG - Accounts & Business Planning,Loughborough University,98732111,6043.50,Training Awards - Postgraduates
BEIS,UKRI - BBSRC,14/04/2020,Training Awards - Postgraduates,FG - Accounts & Business Planning,Cardiff University,98732112,6043.50,Training Awards - Postgraduates
BEIS,UKRI - BBSRC,14/04/2020,Training Awards - Postgraduates,FG - Accounts & Business Planning,Imperial College London,98732113,6543.50,Training Awards - Postgraduates
BEIS,UKRI - BBSRC,14/04/2020,Training Awards - Postgraduates,FG - Accounts & Business Planning,University College London,98732114,6543.50,Training Awards - Postgraduates
BEIS,UKRI - BBSRC,14/04/2020,Training Awards - Postgraduates,FG - Accounts & Business Planning,Imperial College London,98732115,6543.50,Training Awards - Postgraduates
BEIS,UKRI - BBSRC,14/04/2020,Training Awards - Postgraduates,FG - Accounts & Business Planning,University of Cambridge,98732116,6043.50,Training Awards - Postgraduates
BEIS,UKRI - BBSRC,14/04/2020,Training Awards - Postgraduates,FG - Accounts & Business Planning,University of Oxford,98732117,6043.50,Training Awards - Postgraduates
BEIS,UKRI - BBSRC,14/04/2020,Training Awards - Postgraduates,FG - Accounts & Business Planning,The University of Manchester,98732118,6043.50,Training Awards - Postgraduates
BEIS,UKRI - BBSRC,14/04/2020,Training Awards - Postgraduates,FG - Accounts & Business Planning,University of Nottingham,98732119,6043.50,Training Awards - Postgraduates
BEIS,UKRI - BBSRC,14/04/2020,Training Awards - Postgraduates,FG - Accounts & Business Planning,University of York,98732120,6043.50,Training Awards - Postgraduates
BEIS,UKRI - BBSRC,14/04/2020,Training Awards - Postgraduates,FG - Accounts & Business Planning,University of Southampton GRANT,98732121,6043.50,Training Awards - Postgraduates
BEIS,UKRI - BBSRC,14/04/2020,Training Awards - Postgraduates,FG - Accounts & Business Planning,University of Cambridge,98732122,6043.50,Training Awards - Postgraduates
BEIS,UKRI - BBSRC,14/04/2020,Training Awards - Postgraduates,FG - Accounts & Business Planning,University of Nottingham,98732123,6043.50,Training Awards - Postgraduates
BEIS,UKRI - BBSRC,14/04/2020,Training Awards - Postgraduates,FG - Accounts & Business Planning,University of York,98732124,6043.50,Training Awards - Postgraduates
BEIS,UKRI - BBSRC,14/04/2020,Training Awards - Postgraduates,FG - Accounts & Business Planning,University of Reading,98732125,5288.06,Training Awards - Postgraduates
BEIS,UKRI - BBSRC,14/04/2020,Training Awards - Postgraduates,FG - Accounts & Business Planning,University of Sheffield,98732126,6043.50,Training Awards - Postgraduates
BEIS,UKRI - BBSRC,14/04/2020,Training Awards - Postgraduates,FG - Accounts & Business Planning,University of Edinburgh,98732127,6043.50,Training Awards - Postgraduates
BEIS,UKRI - BBSRC,14/04/2020,Training Awards - Postgraduates,FG - Accounts & Business Planning,University of Edinburgh,98732128,6043.50,Training Awards - Postgraduates
BEIS,UKRI - BBSRC,14/04/2020,Training Awards - Postgraduates,FG - Accounts & Business Planning,Brunel University London,98732129,6543.50,Training Awards - Postgraduates
BEIS,UKRI - BBSRC,14/04/2020,Training Awards - Postgraduates,FG - Accounts & Business Planning,University of Newcastle Upon Tyne,98732130,6043.50,Training Awards - Postgraduates
BEIS,UKRI - BBSRC,14/04/2020,Training Awards - Postgraduates,FG - Accounts & Business Planning,University of Leeds,98732131,6043.50,Training Awards - Postgraduates
BEIS,UKRI - BBSRC,14/04/2020,Training Awards - Postgraduates,FG - Accounts & Business Planning,University of Oxford,98732132,5688.00,Training Awards - Postgraduates
BEIS,UKRI - BBSRC,14/04/2020,Training Awards - Postgraduates,FG - Accounts & Business Planning,University of Newcastle Upon Tyne,98732133,1428.58,Training Awards - Postgraduates
BEIS,UKRI - BBSRC,14/04/2020,Training Awards - Postgraduates,FG - Accounts & Business Planning,University of Cambridge,98732134,6043.50,Training Awards - Postgraduates
BEIS,UKRI - BBSRC,14/04/2020,Training Awards - Postgraduates,FG - Accounts & Business Planning,Cardiff University,98732135,6138.25,Training Awards - Postgraduates
BEIS,UKRI - BBSRC,14/04/2020,Training Awards - Postgraduates,FG - Accounts & Business Planning,The University of Manchester,98732136,6138.25,Training Awards - Postgraduates
BEIS,UKRI - BBSRC,14/04/2020,Training Awards - Postgraduates,FG - Accounts & Business Planning,University of York,98732137,5699.80,Training Awards - Postgraduates
BEIS,UKRI - BBSRC,14/04/2020,Training Awards - Postgraduates,FG - Accounts & Business Planning,University of Surrey,98732138,6138.25,Training Awards - Postgraduates
BEIS,UKRI - BBSRC,14/04/2020,Training Awards - Postgraduates,FG - Accounts & Business Planning,King's College London,98732139,6669.50,Training Awards - Postgraduates
BEIS,UKRI - BBSRC,14/04/2020,Training Awards - Postgraduates,FG - Accounts & Business Planning,University of Reading,98732140,6138.25,Training Awards - Postgraduates
BEIS,UKRI - BBSRC,14/04/2020,Training Awards - Postgraduates,FG - Accounts & Business Planning,University of Oxford,98732141,6043.50,Training Awards - Postgraduates
BEIS,UKRI - BBSRC,14/04/2020,Training Awards - Postgraduates,FG - Accounts & Business Planning,Quadram Institute Bioscience,98732142,6138.25,Training Awards - Postgraduates
BEIS,UKRI - BBSRC,14/04/2020,Training Awards - Postgraduates,FG - Accounts & Business Planning,University of Warwick,98732143,6138.25,Training Awards - Postgraduates
BEIS,UKRI - BBSRC,14/04/2020,Training Awards - Postgraduates,FG - Accounts & Business Planning,Lancaster University,98732144,5319.81,Training Awards - Postgraduates
BEIS,UKRI - BBSRC,14/04/2020,Training Awards - Postgraduates,FG - Accounts & Business Planning,The University of Manchester,98732145,6138.25,Training Awards - Postgraduates
BEIS,UKRI - BBSRC,14/04/2020,Training Awards - Postgraduates,FG - Accounts & Business Planning,University of Exeter,98732146,6138.25,Training Awards - Postgraduates
BEIS,UKRI - BBSRC,14/04/2020,Training Awards - Postgraduates,FG - Accounts & Business Planning,University of Edinburgh,98732147,6138.25,Training Awards - Postgraduates
BEIS,UKRI - BBSRC,14/04/2020,Training Awards - Postgraduates,FG - Accounts & Business Planning,Heriot Watt University,98732148,6138.25,Training Awards - Postgraduates
BEIS,UKRI - BBSRC,14/04/2020,Training Awards - Postgraduates,FG - Accounts & Business Planning,Abertay University,98732149,6138.25,Training Awards - Postgraduates
BEIS,UKRI - BBSRC,14/04/2020,Training Awards - Postgraduates,FG - Accounts & Business Planning,The University of Manchester,98732150,3069.13,Training Awards - Postgraduates
BEIS,UKRI - BBSRC,14/04/2020,Training Awards - Postgraduates,FG - Accounts & Business Planning,National Institute For Agricultural Botany (NIAB),98732151,6138.25,Training Awards - Postgraduates
BEIS,UKRI - BBSRC,14/04/2020,Training Awards - Postgraduates,FG - Accounts & Business Planning,Imperial College London,98732152,6638.25,Training Awards - Postgraduates
BEIS,UKRI - BBSRC,14/04/2020,Training Awards - Postgraduates,FG - Accounts & Business Planning,University of Cambridge,98732153,6138.25,Training Awards - Postgraduates
BEIS,UKRI - BBSRC,14/04/2020,Training Awards - Postgraduates,FG - Accounts & Business Planning,National Institute For Agricultural Botany (NIAB),98732154,6138.25,Training Awards - Postgraduates
BEIS,UKRI - BBSRC,14/04/2020,Training Awards - Postgraduates,FG - Accounts & Business Planning,University of Birmingham GRANT,98732155,6138.25,Training Awards - Postgraduates
BEIS,UKRI - BBSRC,14/04/2020,Training Awards - Postgraduates,FG - Accounts & Business Planning,Liverpool John Moores University,98732156,6138.25,Training Awards - Postgraduates
BEIS,UKRI - BBSRC,14/04/2020,Training Awards - Postgraduates,FG - Accounts & Business Planning,University of Exeter,98732157,6138.25,Training Awards - Postgraduates
BEIS,UKRI - BBSRC,14/04/2020,Training Awards - Postgraduates,FG - Accounts & Business Planning,Queen Mary University of London,98732158,6638.25,Training Awards - Postgraduates
BEIS,UKRI - BBSRC,14/04/2020,Training Awards - Postgraduates,FG - Accounts & Business Planning,University of Southampton GRANT,98732159,6043.50,Training Awards - Postgraduates
BEIS,UKRI - BBSRC,14/04/2020,Training Awards - Postgraduates,FG - Accounts & Business Planning,University of Warwick,98732160,4910.61,Training Awards - Postgraduates
BEIS,UKRI - BBSRC,14/04/2020,Training Awards - Postgraduates,FG - Accounts & Business Planning,University of Cambridge,98732161,6138.25,Training Awards - Postgraduates
BEIS,UKRI - BBSRC,14/04/2020,Training Awards - Postgraduates,FG - Accounts & Business Planning,University of Cambridge,98732162,6138.25,Training Awards - Postgraduates
BEIS,UKRI - BBSRC,14/04/2020,Training Awards - Postgraduates,FG - Accounts & Business Planning,University of Glasgow,98732163,6138.25,Training Awards - Postgraduates
BEIS,UKRI - BBSRC,14/04/2020,Training Awards - Postgraduates,FG - Accounts & Business Planning,University of Exeter,98732164,6138.25,Training Awards - Postgraduates
BEIS,UKRI - BBSRC,14/04/2020,Training Awards - Postgraduates,FG - Accounts & Business Planning,University of Cambridge,98732165,6138.25,Training Awards - Postgraduates
BEIS,UKRI - BBSRC,14/04/2020,Training Awards - Postgraduates,FG - Accounts & Business Planning,University of Reading,98732166,6138.25,Training Awards - Postgraduates
BEIS,UKRI - BBSRC,14/04/2020,Training Awards - Postgraduates,FG - Accounts & Business Planning,University of Southampton GRANT,98732167,6138.25,Training Awards - Postgraduates
BEIS,UKRI - BBSRC,14/04/2020,Training Awards - Postgraduates,FG - Accounts & Business Planning,Lancaster University,98732168,6138.25,Training Awards - Postgraduates
BEIS,UKRI - BBSRC,14/04/2020,Training Awards - Postgraduates,FG - Accounts & Business Planning,University of Sheffield,98732169,6138.25,Training Awards - Postgraduates
BEIS,UKRI - BBSRC,14/04/2020,Training Awards - Postgraduates,FG - Accounts & Business Planning,University of Liverpool,98732170,6138.25,Training Awards - Postgraduates
BEIS,UKRI - BBSRC,14/04/2020,Training Awards - Postgraduates,FG - Accounts & Business Planning,University of Liverpool,98732171,6138.25,Training Awards - Postgraduates
BEIS,UKRI - BBSRC,14/04/2020,Training Awards - Postgraduates,FG - Accounts & Business Planning,Queen Mary University of London,98732172,6638.25,Training Awards - Postgraduates
BEIS,UKRI - BBSRC,14/04/2020,Training Awards - Postgraduates,FG - Accounts & Business Planning,University of Leeds,98732173,5193.90,Training Awards - Postgraduates
BEIS,UKRI - BBSRC,14/04/2020,Training Awards - Postgraduates,FG - Accounts & Business Planning,University of Southampton GRANT,98732174,6138.25,Training Awards - Postgraduates
BEIS,UKRI - BBSRC,14/04/2020,Training Awards - Postgraduates,FG - Accounts & Business Planning,University of St Andrews,98732175,6138.25,Training Awards - Postgraduates
BEIS,UKRI - BBSRC,14/04/2020,Training Awards - Postgraduates,FG - Accounts & Business Planning,University of Leeds,98732176,6138.25,Training Awards - Postgraduates
BEIS,UKRI - BBSRC,14/04/2020,Training Awards - Postgraduates,FG - Accounts & Business Planning,University of Edinburgh,98732177,6138.25,Training Awards - Postgraduates
BEIS,UKRI - BBSRC,14/04/2020,Training Awards - Postgraduates,FG - Accounts & Business Planning,University of Edinburgh,98732178,6138.25,Training Awards - Postgraduates
BEIS,UKRI - BBSRC,14/04/2020,Training Awards - Postgraduates,FG - Accounts & Business Planning,University of Cambridge,98732179,6138.25,Training Awards - Postgraduates
BEIS,UKRI - BBSRC,14/04/2020,Training Awards - Postgraduates,FG - Accounts & Business Planning,University of Aberdeen,98732180,6138.25,Training Awards - Postgraduates
BEIS,UKRI - BBSRC,14/04/2020,Training Awards - Postgraduates,FG - Accounts & Business Planning,John Innes Centre,98732181,6138.25,Training Awards - Postgraduates
BEIS,UKRI - BBSRC,14/04/2020,Training Awards - Postgraduates,FG - Accounts & Business Planning,University of Newcastle Upon Tyne,98732182,6138.25,Training Awards - Postgraduates
BEIS,UKRI - BBSRC,14/04/2020,Training Awards - Postgraduates,FG - Accounts & Business Planning,University of Bristol GRANT,98732183,6138.25,Training Awards - Postgraduates
BEIS,UKRI - BBSRC,14/04/2020,Training Awards - Postgraduates,FG - Accounts & Business Planning,University of Bath,98732184,6138.25,Training Awards - Postgraduates
BEIS,UKRI - BBSRC,14/04/2020,Training Awards - Postgraduates,FG - Accounts & Business Planning,National Institute For Agricultural Botany (NIAB),98732185,4987.33,Training Awards - Postgraduates
BEIS,UKRI - BBSRC,14/04/2020,Training Awards - Postgraduates,FG - Accounts & Business Planning,National Institute For Agricultural Botany (NIAB),98732186,6138.25,Training Awards - Postgraduates
BEIS,UKRI - BBSRC,14/04/2020,Training Awards - Postgraduates,FG - Accounts & Business Planning,Imperial College London,98732187,6638.25,Training Awards - Postgraduates
BEIS,UKRI - BBSRC,14/04/2020,Training Awards - Postgraduates,FG - Accounts & Business Planning,Imperial College London,98732188,6638.25,Training Awards - Postgraduates
BEIS,UKRI - BBSRC,14/04/2020,Training Awards - Postgraduates,FG - Accounts & Business Planning,The University of Manchester,98732189,6138.25,Training Awards - Postgraduates
BEIS,UKRI - BBSRC,14/04/2020,Training Awards - Postgraduates,FG - Accounts & Business Planning,Imperial College London,98732190,6638.25,Training Awards - Postgraduates
BEIS,UKRI - BBSRC,14/04/2020,Training Awards - Postgraduates,FG - Accounts & Business Planning,University of Sheffield,98732191,6138.25,Training Awards - Postgraduates
BEIS,UKRI - BBSRC,14/04/2020,Training Awards - Postgraduates,FG - Accounts & Business Planning,University of Edinburgh,98732192,6138.25,Training Awards - Postgraduates
BEIS,UKRI - BBSRC,14/04/2020,Training Awards - Postgraduates,FG - Accounts & Business Planning,University of Cambridge,98732193,6138.25,Training Awards - Postgraduates
BEIS,UKRI - BBSRC,14/04/2020,Training Awards - Postgraduates,FG - Accounts & Business Planning,University of Edinburgh,98732194,6138.25,Training Awards - Postgraduates
BEIS,UKRI - BBSRC,14/04/2020,Training Awards - Postgraduates,FG - Accounts & Business Planning,Imperial College London,98732195,6638.25,Training Awards - Postgraduates
BEIS,UKRI - BBSRC,14/04/2020,Training Awards - Postgraduates,FG - Accounts & Business Planning,"Royal Holloway, University of London",98732196,6638.25,Training Awards - Postgraduates
BEIS,UKRI - BBSRC,14/04/2020,Training Awards - Postgraduates,FG - Accounts & Business Planning,"Royal Holloway, University of London",98732197,6638.25,Training Awards - Postgraduates
BEIS,UKRI - BBSRC,14/04/2020,Training Awards - Postgraduates,FG - Accounts & Business Planning,Imperial College London,98732198,6638.25,Training Awards - Postgraduates
BEIS,UKRI - BBSRC,14/04/2020,Training Awards - Postgraduates,FG - Accounts & Business Planning,Imperial College London,98732199,6263.25,Training Awards - Postgraduates
BEIS,UKRI - BBSRC,14/04/2020,Training Awards - Postgraduates,FG - Accounts & Business Planning,Imperial College London,98732200,6638.25,Training Awards - Postgraduates
BEIS,UKRI - BBSRC,14/04/2020,Training Awards - Postgraduates,FG - Accounts & Business Planning,Imperial College London,98732201,6638.25,Training Awards - Postgraduates
BEIS,UKRI - BBSRC,14/04/2020,Training Awards - Postgraduates,FG - Accounts & Business Planning,Imperial College London,98732202,6638.25,Training Awards - Postgraduates
BEIS,UKRI - BBSRC,14/04/2020,Training Awards - Postgraduates,FG - Accounts & Business Planning,Imperial College London,98732203,6638.25,Training Awards - Postgraduates
BEIS,UKRI - BBSRC,14/04/2020,Training Awards - Postgraduates,FG - Accounts & Business Planning,The University of Manchester,98732204,6138.25,Training Awards - Postgraduates
BEIS,UKRI - BBSRC,14/04/2020,Training Awards - Postgraduates,FG - Accounts & Business Planning,University of Warwick,98732205,6138.25,Training Awards - Postgraduates
BEIS,UKRI - BBSRC,14/04/2020,Training Awards - Postgraduates,FG - Accounts & Business Planning,University of Sheffield,98732206,6138.25,Training Awards - Postgraduates
BEIS,UKRI - BBSRC,14/04/2020,Training Awards - Postgraduates,FG - Accounts & Business Planning,University of Sheffield,98732207,6138.25,Training Awards - Postgraduates
BEIS,UKRI - BBSRC,14/04/2020,Training Awards - Postgraduates,FG - Accounts & Business Planning,University of Newcastle Upon Tyne,98732208,6138.25,Training Awards - Postgraduates
BEIS,UKRI - BBSRC,14/04/2020,Training Awards - Postgraduates,FG - Accounts & Business Planning,University of Sheffield,98732209,6138.25,Training Awards - Postgraduates
